Workbook

Sheet RCN
A1: Runnoff Curve Number
A3: Project:
A4: Designer: | H4: Checked:
A5: Date: | H5: Date:
A8: Cover Type | B8: Treatment | C8: Hydrologic Condition | E8: Runoff Curve Number - Pre Development | S8: Runoff Curve Number - Post Development
E9: A | H9: B | K9: C | N9: D | S9: A | V9: B | Y9: C | AB9: D
E10: Area | F10: CN | G10: Area x CN | H10: Area | I10: CN | J10: Area x CN | K10: Area | L10: CN | M10: Area x CN | N10: Area | O10: CN | P10: Area x CN | S10: Area | T10: CN | U10: Area x CN | V10: Area | W10: CN | X10: Area x CN | Y10: Area | Z10: CN | AA10: Area x CN | AB10: Area | AC10: CN | AD10: Area x CN
A11: CULTIVATED AGRICULTURAL LANDS
A12: Fallow | B12: Bare soil | C12: ---- | E12: - | F12: 77 | G12: =IF(AND(E12>0,E12<10000),E12*F12,0) -> 0 | H12: - | I12: 86 | J12: =IF(AND(H12>0,H12<10000),H12*I12,0) -> 0 | K12: - | L12: 91 | M12: =IF(AND(K12>0,K12<10000),K12*L12,0) -> 0 | N12: - | O12: 94 | P12: =IF(AND(N12>0,N12<10000),N12*O12,0) -> 0 | Q12: - | S12: - | T12: 77 | U12: =IF(AND(S12>0,S12<10000),S12*T12,0) -> 0 | V12: - | W12: 86 | X12: =IF(AND(V12>0,V12<10000),V12*W12,0) -> 0 | Y12: - | Z12: 91 | AA12: =IF(AND(Y12>0,Y12<10000),Y12*Z12,0) -> 0 | AB12: - | AC12: 94 | AD12: =IF(AND(AB12>0,AB12<10000),AB12*AC12,0) -> 0 | AE12: -
B13: Crop residue (CR) | C13: poor | E13: - | F13: 76 | G13: 0 | H13: - | I13: 85 | J13: 0 | K13: - | L13: 90 | M13: 0 | N13: - | O13: 93 | P13: 0 | Q13: - | S13: - | T13: 76 | U13: 0 | V13: - | W13: 85 | X13: 0 | Y13: - | Z13: 90 | AA13: 0 | AB13: - | AC13: 93 | AD13: 0 | AE13: -
B14: Crop residue (CR) | C14: good | E14: - | F14: 74 | G14: 0 | H14: - | I14: 83 | J14: 0 | K14: - | L14: 88 | M14: 0 | N14: - | O14: 90 | P14: 0 | Q14: - | S14: - | T14: 74 | U14: 0 | V14: - | W14: 83 | X14: 0 | Y14: - | Z14: 88 | AA14: 0 | AB14: - | AC14: 90 | AD14: 0 | AE14: -
A15: Row Crops | B15: Straight row (SR) | C15: poor | E15: - | F15: 72 | G15: 0 | H15: - | I15: 81 | J15: 0 | K15: - | L15: 88 | M15: 0 | N15: - | O15: 91 | P15: 0 | Q15: - | S15: - | T15: 72 | U15: 0 | V15: - | W15: 81 | X15: 0 | Y15: - | Z15: 88 | AA15: 0 | AB15: - | AC15: 91 | AD15: 0 | AE15: -
B16: Straight row (SR) | C16: good | E16: - | F16: 67 | G16: 0 | H16: - | I16: 78 | J16: 0 | K16: - | L16: 85 | M16: 0 | N16: - | O16: 89 | P16: 0 | Q16: - | S16: - | T16: 67 | U16: 0 | V16: - | W16: 78 | X16: 0 | Y16: - | Z16: 85 | AA16: 0 | AB16: - | AC16: 89 | AD16: 0 | AE16: -
B17: SR + Crop residue | C17: poor | E17: - | F17: 71 | G17: 0 | H17: - | I17: 80 | J17: 0 | K17: - | L17: 87 | M17: 0 | N17: - | O17: 90 | P17: 0 | Q17: - | S17: - | T17: 71 | U17: 0 | V17: - | W17: 80 | X17: 0 | Y17: - | Z17: 87 | AA17: 0 | AB17: - | AC17: 90 | AD17: 0 | AE17: -
B18: SR + Crop residue | C18: good | E18: - | F18: 64 | G18: 0 | H18: - | I18: 75 | J18: 0 | K18: - | L18: 82 | M18: 0 | N18: - | O18: 85 | P18: 0 | Q18: - | S18: - | T18: 64 | U18: 0 | V18: - | W18: 75 | X18: 0 | Y18: - | Z18: 82 | AA18: 0 | AB18: - | AC18: 85 | AD18: 0 | AE18: -
B19: Contoured (C) | C19: poor | E19: - | F19: 70 | G19: 0 | H19: - | I19: 79 | J19: 0 | K19: - | L19: 84 | M19: 0 | N19: - | O19: 88 | P19: 0 | Q19: - | S19: - | T19: 70 | U19: 0 | V19: - | W19: 79 | X19: 0 | Y19: - | Z19: 84 | AA19: 0 | AB19: - | AC19: 88 | AD19: 0 | AE19: -
B20: Contoured (C) | C20: good | E20: - | F20: 65 | G20: 0 | H20: - | I20: 75 | J20: 0 | K20: - | L20: 82 | M20: 0 | N20: - | O20: 86 | P20: 0 | Q20: - | S20: - | T20: 65 | U20: 0 | V20: - | W20: 75 | X20: 0 | Y20: - | Z20: 82 | AA20: 0 | AB20: - | AC20: 86 | AD20: 0 | AE20: -
B21: C + Crop residue | C21: poor | E21: - | F21: 69 | G21: 0 | H21: - | I21: 78 | J21: 0 | K21: - | L21: 83 | M21: 0 | N21: - | O21: 87 | P21: 0 | Q21: - | S21: - | T21: 69 | U21: 0 | V21: - | W21: 78 | X21: 0 | Y21: - | Z21: 83 | AA21: 0 | AB21: - | AC21: 87 | AD21: 0 | AE21: -
B22: C + Crop residue | C22: good | E22: - | F22: 64 | G22: 0 | H22: - | I22: 74 | J22: 0 | K22: - | L22: 81 | M22: 0 | N22: - | O22: 85 | P22: 0 | Q22: - | S22: - | T22: 64 | U22: 0 | V22: - | W22: 74 | X22: 0 | Y22: - | Z22: 81 | AA22: 0 | AB22: - | AC22: 85 | AD22: 0 | AE22: -
B23: Cont & terraced(C&T) | C23: poor | E23: - | F23: 66 | G23: 0 | H23: - | I23: 74 | J23: 0 | K23: - | L23: 80 | M23: 0 | N23: - | O23: 82 | P23: 0 | Q23: - | S23: - | T23: 66 | U23: 0 | V23: - | W23: 74 | X23: 0 | Y23: - | Z23: 80 | AA23: 0 | AB23: - | AC23: 82 | AD23: 0 | AE23: -
B24: Cont & terraced(C&T) | C24: good | E24: - | F24: 62 | G24: 0 | H24: - | I24: 71 | J24: 0 | K24: - | L24: 78 | M24: 0 | N24: - | O24: 81 | P24: 0 | Q24: - | S24: - | T24: 62 | U24: 0 | V24: - | W24: 71 | X24: 0 | Y24: - | Z24: 78 | AA24: 0 | AB24: - | AC24: 81 | AD24: 0 | AE24: -
B25: C&T + Crop residue | C25: poor | E25: - | F25: 65 | G25: 0 | H25: - | I25: 73 | J25: 0 | K25: - | L25: 79 | M25: 0 | N25: - | O25: 81 | P25: 0 | Q25: - | S25: - | T25: 65 | U25: 0 | V25: - | W25: 73 | X25: 0 | Y25: - | Z25: 79 | AA25: 0 | AB25: - | AC25: 81 | AD25: 0 | AE25: -
B26: C&T + Crop residue | C26: good | E26: - | F26: 61 | G26: 0 | H26: - | I26: 70 | J26: 0 | K26: - | L26: 77 | M26: 0 | N26: - | O26: 80 | P26: 0 | Q26: - | S26: - | T26: 61 | U26: 0 | V26: - | W26: 70 | X26: 0 | Y26: - | Z26: 77 | AA26: 0 | AB26: - | AC26: 80 | AD26: 0 | AE26: -
A27: Small Grain | B27: Straight row (SR) | C27: poor | E27: - | F27: 65 | G27: 0 | H27: - | I27: 76 | J27: 0 | K27: - | L27: 84 | M27: 0 | N27: - | O27: 88 | P27: 0 | Q27: - | S27: - | T27: 65 | U27: 0 | V27: - | W27: 76 | X27: 0 | Y27: - | Z27: 84 | AA27: 0 | AB27: - | AC27: 88 | AD27: 0 | AE27: -
B28: Straight row (SR) | C28: good | E28: - | F28: 63 | G28: 0 | H28: - | I28: 75 | J28: 0 | K28: - | L28: 83 | M28: 0 | N28: - | O28: 87 | P28: 0 | Q28: - | S28: - | T28: 63 | U28: 0 | V28: - | W28: 75 | X28: 0 | Y28: - | Z28: 83 | AA28: 0 | AB28: - | AC28: 87 | AD28: 0 | AE28: -
B29: SR + Crop residue | C29: poor | E29: - | F29: 64 | G29: 0 | H29: - | I29: 75 | J29: 0 | K29: - | L29: 83 | M29: 0 | N29: - | O29: 86 | P29: 0 | Q29: - | S29: - | T29: 64 | U29: 0 | V29: - | W29: 75 | X29: 0 | Y29: - | Z29: 83 | AA29: 0 | AB29: - | AC29: 86 | AD29: 0 | AE29: -
B30: SR + Crop residue | C30: good | E30: - | F30: 60 | G30: 0 | H30: - | I30: 72 | J30: 0 | K30: - | L30: 80 | M30: 0 | N30: - | O30: 84 | P30: 0 | Q30: - | S30: - | T30: 60 | U30: 0 | V30: - | W30: 72 | X30: 0 | Y30: - | Z30: 80 | AA30: 0 | AB30: - | AC30: 84 | AD30: 0 | AE30: -
B31: Contoured (C) | C31: poor | E31: - | F31: 63 | G31: 0 | H31: - | I31: 74 | J31: 0 | K31: - | L31: 82 | M31: 0 | N31: - | O31: 85 | P31: 0 | Q31: - | S31: - | T31: 63 | U31: 0 | V31: - | W31: 74 | X31: 0 | Y31: - | Z31: 82 | AA31: 0 | AB31: - | AC31: 85 | AD31: 0 | AE31: -
B32: Contoured (C) | C32: good | E32: - | F32: 61 | G32: 0 | H32: - | I32: 73 | J32: 0 | K32: - | L32: 81 | M32: 0 | N32: - | O32: 84 | P32: 0 | Q32: - | S32: - | T32: 61 | U32: 0 | V32: - | W32: 73 | X32: 0 | Y32: - | Z32: 81 | AA32: 0 | AB32: - | AC32: 84 | AD32: 0 | AE32: -
B33: C + Crop residue | C33: poor | E33: - | F33: 62 | G33: 0 | H33: - | I33: 73 | J33: 0 | K33: - | L33: 81 | M33: 0 | N33: - | O33: 84 | P33: 0 | Q33: - | S33: - | T33: 62 | U33: 0 | V33: - | W33: 73 | X33: 0 | Y33: - | Z33: 81 | AA33: 0 | AB33: - | AC33: 84 | AD33: 0 | AE33: -
B34: C + Crop residue | C34: good | E34: - | F34: 60 | G34: 0 | H34: - | I34: 72 | J34: 0 | K34: - | L34: 80 | M34: 0 | N34: - | O34: 83 | P34: 0 | Q34: - | S34: - | T34: 60 | U34: 0 | V34: - | W34: 72 | X34: 0 | Y34: - | Z34: 80 | AA34: 0 | AB34: - | AC34: 83 | AD34: 0 | AE34: -
B35: Cont & terraced(C&T) | C35: poor | E35: - | F35: 61 | G35: 0 | H35: - | I35: 72 | J35: 0 | K35: - | L35: 79 | M35: 0 | N35: - | O35: 82 | P35: 0 | Q35: - | S35: - | T35: 61 | U35: 0 | V35: - | W35: 72 | X35: 0 | Y35: - | Z35: 79 | AA35: 0 | AB35: - | AC35: 82 | AD35: 0 | AE35: -
B36: Cont & terraces(C&T) | C36: good | E36: - | F36: 59 | G36: 0 | H36: - | I36: 70 | J36: 0 | K36: - | L36: 78 | M36: 0 | N36: - | O36: 81 | P36: 0 | Q36: - | S36: - | T36: 59 | U36: 0 | V36: - | W36: 70 | X36: 0 | Y36: - | Z36: 78 | AA36: 0 | AB36: - | AC36: 81 | AD36: 0 | AE36: -
B37: C&T + Crop residue | C37: poor | E37: - | F37: 60 | G37: 0 | H37: - | I37: 71 | J37: 0 | K37: - | L37: 78 | M37: 0 | N37: - | O37: 81 | P37: 0 | Q37: - | S37: - | T37: 60 | U37: 0 | V37: - | W37: 71 | X37: 0 | Y37: - | Z37: 78 | AA37: 0 | AB37: - | AC37: 81 | AD37: 0 | AE37: -
B38: C&T + Crop residue | C38: good | E38: - | F38: 58 | G38: 0 | H38: - | I38: 69 | J38: 0 | K38: - | L38: 77 | M38: 0 | N38: - | O38: 80 | P38: 0 | Q38: - | S38: - | T38: 58 | U38: 0 | V38: - | W38: 69 | X38: 0 | Y38: - | Z38: 77 | AA38: 0 | AB38: - | AC38: 80 | AD38: 0 | AE38: -
A39: Close-seeded | B39: Straight row | C39: poor | E39: - | F39: 66 | G39: 0 | H39: - | I39: 77 | J39: 0 | K39: - | L39: 85 | M39: 0 | N39: - | O39: 89 | P39: 0 | Q39: - | S39: - | T39: 66 | U39: 0 | V39: - | W39: 77 | X39: 0 | Y39: - | Z39: 85 | AA39: 0 | AB39: - | AC39: 89 | AD39: 0 | AE39: -
A40: or broadcast | B40: Straight row | C40: good | E40: - | F40: 58 | G40: 0 | H40: - | I40: 72 | J40: 0 | K40: - | L40: 81 | M40: 0 | N40: - | O40: 85 | P40: 0 | Q40: - | S40: - | T40: 58 | U40: 0 | V40: - | W40: 72 | X40: 0 | Y40: - | Z40: 81 | AA40: 0 | AB40: - | AC40: 85 | AD40: 0 | AE40: -
A41: legumes or | B41: Contoured | C41: poor | E41: - | F41: 64 | G41: 0 | H41: - | I41: 75 | J41: 0 | K41: - | L41: 83 | M41: 0 | N41: - | O41: 85 | P41: 0 | Q41: - | S41: - | T41: 64 | U41: 0 | V41: - | W41: 75 | X41: 0 | Y41: - | Z41: 83 | AA41: 0 | AB41: - | AC41: 85 | AD41: 0 | AE41: -
A42: rotation | B42: Contoured | C42: good | E42: - | F42: 55 | G42: 0 | H42: - | I42: 69 | J42: 0 | K42: - | L42: 78 | M42: 0 | N42: - | O42: 83 | P42: 0 | Q42: - | S42: - | T42: 55 | U42: 0 | V42: - | W42: 69 | X42: 0 | Y42: - | Z42: 78 | AA42: 0 | AB42: - | AC42: 83 | AD42: 0 | AE42: -
A43: meadow | B43: Cont & terraced | C43: poor | E43: - | F43: 63 | G43: 0 | H43: - | I43: 73 | J43: 0 | K43: - | L43: 80 | M43: 0 | N43: - | O43: 83 | P43: 0 | Q43: - | S43: - | T43: 63 | U43: 0 | V43: - | W43: 73 | X43: 0 | Y43: - | Z43: 80 | AA43: 0 | AB43: - | AC43: 83 | AD43: 0 | AE43: -
B44: Cont & terraced | C44: good | E44: - | F44: 51 | G44: 0 | H44: - | I44: 67 | J44: 0 | K44: - | L44: 76 | M44: 0 | N44: - | O44: 80 | P44: 0 | Q44: - | S44: - | T44: 51 | U44: 0 | V44: - | W44: 67 | X44: 0 | Y44: - | Z44: 76 | AA44: 0 | AB44: - | AC44: 80 | AD44: 0 | AE44: -
A45: OTHER AGRICULTURAL LANDS | E45: - | H45: - | K45: - | N45: - | Q45: - | S45: - | V45: - | Y45: - | AB45: - | AE45: -
B46: Pasture, grassland or range | C46: poor | E46: - | F46: 68 | G46: 0 | H46: - | I46: 79 | J46: 0 | K46: - | L46: 86 | M46: 0 | N46: - | O46: 89 | P46: 0 | Q46: - | S46: - | T46: 68 | U46: =IF(AND(S46>0,S46<10000),S46*T46,0) -> 0 | V46: - | W46: 79 | X46: =IF(AND(V46>0,V46<10000),V46*W46,0) -> 0 | Y46: - | Z46: 86 | AA46: =IF(AND(Y46>0,Y46<10000),Y46*Z46,0) -> 0 | AB46: - | AC46: 89 | AD46: =IF(AND(AB46>0,AB46<10000),AB46*AC46,0) -> 0 | AE46: -
C47: fair | E47: - | F47: 49 | G47: 0 | H47: - | I47: 69 | J47: 0 | K47: - | L47: 79 | M47: 0 | N47: - | O47: 84 | P47: 0 | Q47: - | S47: - | T47: 49 | U47: 0 | V47: - | W47: 69 | X47: 0 | Y47: - | Z47: 79 | AA47: 0 | AB47: - | AC47: 84 | AD47: 0 | AE47: -
C48: good | E48: - | F48: 39 | G48: 0 | I48: 61 | J48: 0 | K48: - | L48: 74 | M48: 0 | N48: - | O48: 80 | P48: 0 | Q48: - | S48: - | T48: 39 | U48: 0 | V48: - | W48: 61 | X48: 0 | Y48: - | Z48: 74 | AA48: 0 | AB48: - | AC48: 80 | AD48: 0 | AE48: -
B49: Meadow -cont. grass (non grazed) | C49: ---- | E49: - | F49: 30 | G49: 0 | H49: - | I49: 58 | J49: 0 | K49: - | L49: 71 | M49: 0 | N49: - | O49: 78 | P49: 0 | Q49: - | S49: - | T49: 30 | U49: 0 | V49: - | W49: 58 | X49: 0 | Y49: - | Z49: 71 | AA49: 0 | AB49: - | AC49: 78 | AD49: 0 | AE49: -
B50: Brush - brush, weed, grass mix | C50: poor | E50: - | F50: 48 | G50: 0 | H50: - | I50: 67 | J50: 0 | K50: - | L50: 77 | M50: 0 | N50: - | O50: 83 | P50: 0 | Q50: - | S50: - | T50: 48 | U50: 0 | V50: - | W50: 67 | X50: 0 | Y50: - | Z50: 77 | AA50: 0 | AB50: - | AC50: 83 | AD50: 0 | AE50: -
C51: fair | E51: - | F51: 35 | G51: 0 | H51: - | I51: 56 | J51: 0 | K51: - | L51: 70 | M51: 0 | N51: - | O51: 77 | P51: 0 | Q51: - | S51: - | T51: 35 | U51: 0 | V51: - | W51: 56 | X51: 0 | Y51: - | Z51: 70 | AA51: 0 | AB51: - | AC51: 77 | AD51: 0 | AE51: -
C52: good | E52: - | F52: 30 | G52: 0 | H52: - | I52: 48 | J52: 0 | K52: - | L52: 65 | M52: 0 | N52: - | O52: 73 | P52: 0 | Q52: - | S52: - | T52: 30 | U52: 0 | V52: - | W52: 48 | X52: 0 | Y52: - | Z52: 65 | AA52: 0 | AB52: - | AC52: 73 | AD52: 0 | AE52: -
B53: Woods - grass combination | C53: poor | E53: - | F53: 57 | G53: 0 | H53: - | I53: 73 | J53: 0 | K53: - | L53: 82 | M53: 0 | N53: - | O53: 86 | P53: 0 | Q53: - | S53: - | T53: 57 | U53: 0 | V53: - | W53: 73 | X53: 0 | Y53: - | Z53: 82 | AA53: 0 | AB53: - | AC53: 86 | AD53: 0 | AE53: -
C54: fair | E54: - | F54: 43 | G54: 0 | H54: - | I54: 65 | J54: 0 | K54: - | L54: 76 | M54: 0 | N54: - | O54: 82 | P54: 0 | Q54: - | S54: - | T54: 43 | U54: 0 | V54: - | W54: 65 | X54: 0 | Y54: - | Z54: 76 | AA54: 0 | AB54: - | AC54: 82 | AD54: 0 | AE54: -
C55: good | E55: - | F55: 32 | G55: 0 | H55: - | I55: 58 | J55: 0 | K55: - | L55: 72 | M55: 0 | N55: - | O55: 79 | P55: 0 | Q55: - | S55: - | T55: 32 | U55: 0 | V55: - | W55: 58 | X55: 0 | Y55: - | Z55: 72 | AA55: 0 | AB55: - | AC55: 79 | AD55: 0 | AE55: -
B56: Woods | C56: poor | E56: - | F56: 45 | G56: 0 | H56: - | I56: 66 | J56: 0 | K56: - | L56: 77 | M56: 0 | N56: - | O56: 83 | P56: 0 | Q56: - | S56: - | T56: 45 | U56: 0 | V56: - | W56: 66 | X56: 0 | Y56: - | Z56: 77 | AA56: 0 | AB56: - | AC56: 83 | AD56: 0 | AE56: -
C57: fair | E57: - | F57: 36 | G57: 0 | H57: - | I57: 60 | J57: 0 | K57: - | L57: 73 | M57: 0 | N57: - | O57: 79 | P57: 0 | Q57: - | S57: - | T57: 36 | U57: 0 | V57: - | W57: 60 | X57: 0 | Y57: - | Z57: 73 | AA57: 0 | AB57: - | AC57: 79 | AD57: 0 | AE57: -
C58: good | E58: - | F58: 30 | G58: 0 | I58: 55 | J58: 0 | K58: - | L58: 70 | M58: 0 | N58: - | O58: 77 | P58: 0 | Q58: - | S58: - | T58: 30 | U58: 0 | V58: - | W58: 55 | X58: 0 | Y58: - | Z58: 70 | AA58: 0 | AB58: - | AC58: 77 | AD58: 0 | AE58: -
B59: Farmsteads | C59: ---- | E59: - | F59: 59 | G59: 0 | H59: - | I59: 74 | J59: 0 | K59: - | L59: 82 | M59: 0 | N59: - | O59: 86 | P59: 0 | Q59: - | S59: - | T59: 59 | U59: 0 | V59: - | W59: 74 | X59: 0 | Y59: - | Z59: 82 | AA59: 0 | AB59: - | AC59: 86 | AD59: 0 | AE59: -
A60: FULLY DEVELOPED URBAN AREAS (Veg Established) | E60: - | H60: - | K60: - | N60: - | Q60: - | S60: - | V60: - | Y60: - | AB60: - | AE60: -
A61: Open space (Lawns,parks etc.) | E61: - | H61: - | K61: - | N61: - | Q61: - | S61: - | V61: - | Y61: - | AB61: - | AE61: -
B62: Poor condition; grass cover < 50% | E62: - | F62: 68 | G62: =IF(AND(E62>0,E62<10000),E62*F62,0) -> 0 | H62: - | I62: 79 | J62: =IF(AND(H62>0,H62<10000),H62*I62,0) -> 0 | K62: - | L62: 86 | M62: =IF(AND(K62>0,K62<10000),K62*L62,0) -> 0 | N62: - | O62: 89 | P62: =IF(AND(N62>0,N62<10000),N62*O62,0) -> 0 | Q62: - | S62: - | T62: 68 | U62: =IF(AND(S62>0,S62<10000),S62*T62,0) -> 0 | V62: - | W62: 79 | X62: =IF(AND(V62>0,V62<10000),V62*W62,0) -> 0 | Y62: - | Z62: 86 | AA62: =IF(AND(Y62>0,Y62<10000),Y62*Z62,0) -> 0 | AB62: - | AC62: 89 | AD62: =IF(AND(AB62>0,AB62<10000),AB62*AC62,0) -> 0 | AE62: -
B63: Fair condition; grass cover 50% to 75 % | E63: - | F63: 49 | G63: 0 | H63: - | I63: 69 | J63: 0 | K63: - | L63: 79 | M63: 0 | N63: - | O63: 84 | P63: 0 | Q63: - | S63: - | T63: 49 | U63: 0 | W63: 69 | X63: 0 | Y63: - | Z63: 79 | AA63: 0 | AB63: - | AC63: 84 | AD63: 0 | AE63: -
B64: Good condition; grass cover > 75% | E64: - | F64: 39 | G64: 0 | H64: - | I64: 61 | J64: 0 | K64: - | L64: 74 | M64: 0 | N64: - | O64: 80 | P64: 0 | Q64: - | S64: - | T64: 39 | U64: 0 | V64: - | W64: 61 | X64: 0 | Y64: - | Z64: 74 | AA64: 0 | AB64: - | AC64: 80 | AD64: 0 | AE64: -
A65: Impervious Areas | E65: - | H65: - | K65: - | N65: - | Q65: - | S65: - | V65: - | Y65: - | AB65: - | AE65: -
B66: Paved parking lots, roofs, driveways | E66: - | F66: 98 | G66: 0 | H66: - | I66: 98 | J66: 0 | K66: - | L66: 98 | M66: 0 | N66: - | O66: 98 | P66: 0 | Q66: - | S66: - | T66: 98 | U66: =IF(AND(S66>0,S66<10000),S66*T66,0) -> 0 | W66: 98 | X66: =IF(AND(V66>0,V66<10000),V66*W66,0) -> 0 | Y66: - | Z66: 98 | AA66: =IF(AND(Y66>0,Y66<10000),Y66*Z66,0) -> 0 | AB66: - | AC66: 98 | AD66: =IF(AND(AB66>0,AB66<10000),AB66*AC66,0) -> 0 | AE66: -
B67: Streets and roads | E67: - | G67: 0 | H67: - | J67: 0 | K67: - | M67: 0 | N67: - | P67: 0 | Q67: - | S67: - | U67: 0 | V67: - | X67: 0 | Y67: - | AA67: 0 | AB67: - | AD67: 0 | AE67: -
B68: Paved; curbs and storm sewers | E68: - | F68: 98 | G68: 0 | H68: - | I68: 98 | J68: 0 | K68: - | L68: 98 | M68: 0 | N68: - | O68: 98 | P68: 0 | Q68: - | S68: - | T68: 98 | U68: 0 | V68: - | W68: 98 | X68: 0 | Y68: - | Z68: 98 | AA68: 0 | AB68: - | AC68: 98 | AD68: 0 | AE68: -
B69: Paved; open ditches (w/right-of-way) | E69: - | F69: 83 | G69: 0 | H69: - | I69: 89 | J69: 0 | K69: - | L69: 92 | M69: 0 | N69: - | O69: 93 | P69: 0 | Q69: - | S69: - | T69: 83 | U69: 0 | V69: - | W69: 89 | X69: 0 | Y69: - | Z69: 92 | AA69: 0 | AB69: - | AC69: 93 | AD69: 0 | AE69: -
B70: Gravel (w/ right-of-way) | E70: - | F70: 76 | G70: 0 | H70: - | I70: 85 | J70: 0 | K70: - | L70: 89 | M70: 0 | N70: - | O70: 91 | P70: 0 | Q70: - | S70: - | T70: 76 | U70: 0 | V70: - | W70: 85 | X70: 0 | Y70: - | Z70: 89 | AA70: 0 | AB70: - | AC70: 91 | AD70: 0 | AE70: -
B71: Dirt (w/ right-of-way) | E71: - | F71: 72 | G71: 0 | H71: - | I71: 82 | J71: 0 | K71: - | L71: 87 | M71: 0 | N71: - | O71: 89 | P71: 0 | Q71: - | S71: - | T71: 72 | U71: 0 | V71: - | W71: 82 | X71: 0 | Y71: - | Z71: 87 | AA71: 0 | AB71: - | AC71: 89 | AD71: 0 | AE71: -
A72: Urban Districts | C72: Avg % impervious | E72: - | G72: 0 | H72: - | J72: 0 | K72: - | M72: 0 | N72: - | P72: 0 | Q72: - | S72: - | U72: 0 | V72: - | X72: 0 | Y72: - | AA72: 0 | AB72: - | AD72: 0 | AE72: -
B73: Commercial & business | C73: 85 | E73: - | F73: 89 | G73: 0 | H73: - | I73: 92 | J73: 0 | K73: - | L73: 94 | M73: 0 | N73: - | O73: 95 | P73: 0 | Q73: - | S73: - | T73: 89 | U73: 0 | V73: - | W73: 92 | X73: 0 | Y73: - | Z73: 94 | AA73: 0 | AB73: - | AC73: 95 | AD73: 0 | AE73: -
B74: Industrial | C74: 72 | E74: - | F74: 81 | G74: 0 | H74: - | I74: 88 | J74: 0 | K74: - | L74: 91 | M74: 0 | N74: - | O74: 93 | P74: 0 | Q74: - | S74: - | T74: 81 | U74: 0 | V74: - | W74: 88 | X74: 0 | Y74: - | Z74: 91 | AA74: 0 | AB74: - | AC74: 93 | AD74: 0 | AE74: -
A75: Residential districts by average lot size | C75: Avg % impervious | E75: - | G75: 0 | H75: - | J75: 0 | K75: - | M75: 0 | N75: - | P75: 0 | Q75: - | S75: - | U75: 0 | V75: - | X75: 0 | Y75: - | AA75: 0 | AB75: - | AD75: 0 | AE75: -
B76: 1/8 acre (town houses) | C76: 65 | E76: - | F76: 77 | G76: 0 | H76: - | I76: 85 | J76: 0 | K76: - | L76: 90 | M76: 0 | N76: - | O76: 92 | P76: 0 | Q76: - | S76: - | T76: 77 | U76: 0 | V76: - | W76: 85 | X76: 0 | Y76: - | Z76: 90 | AA76: 0 | AB76: - | AC76: 92 | AD76: 0 | AE76: -
B77: 1/4 acre | C77: 38 | E77: - | F77: 61 | G77: 0 | H77: - | I77: 75 | J77: 0 | K77: - | L77: 83 | M77: 0 | N77: - | O77: 87 | P77: 0 | Q77: - | S77: - | T77: 61 | U77: 0 | V77: - | W77: 75 | X77: 0 | Y77: - | Z77: 83 | AA77: 0 | AB77: - | AC77: 87 | AD77: 0 | AE77: -
B78: 1/3 acre | C78: 30 | E78: - | F78: 57 | G78: 0 | H78: - | I78: 72 | J78: 0 | K78: - | L78: 81 | M78: 0 | N78: - | O78: 86 | P78: 0 | Q78: - | S78: - | T78: 57 | U78: 0 | V78: - | W78: 72 | X78: 0 | Y78: - | Z78: 81 | AA78: 0 | AB78: - | AC78: 86 | AD78: 0 | AE78: -
B79: 1/2 acre | C79: 25 | E79: - | F79: 54 | G79: 0 | H79: - | I79: 70 | J79: 0 | K79: - | L79: 80 | M79: 0 | N79: - | O79: 85 | P79: 0 | Q79: - | S79: - | T79: 54 | U79: 0 | V79: - | W79: 70 | X79: 0 | Y79: - | Z79: 80 | AA79: 0 | AB79: - | AC79: 85 | AD79: 0 | AE79: -
B80: 1 acre | C80: 20 | E80: - | F80: 51 | G80: 0 | H80: - | I80: 68 | J80: 0 | K80: - | L80: 79 | M80: 0 | N80: - | O80: 84 | P80: 0 | Q80: - | S80: - | T80: 51 | U80: 0 | V80: - | W80: 68 | X80: 0 | Y80: - | Z80: 79 | AA80: 0 | AB80: - | AC80: 84 | AD80: 0 | AE80: -
B81: 2 acre | C81: 12 | E81: - | F81: 46 | G81: 0 | H81: - | I81: 65 | J81: 0 | K81: - | L81: 77 | M81: 0 | N81: - | O81: 82 | P81: 0 | Q81: - | S81: - | T81: 46 | U81: 0 | V81: - | W81: 65 | X81: 0 | Y81: - | Z81: 77 | AA81: 0 | AB81: - | AC81: 82 | AD81: 0 | AE81: -
B82: User defined urban | E82: - | F82: ** | G82: 0 | H82: - | I82: ** | J82: 0 | K82: - | L82: ** | M82: 0 | N82: - | O82: ** | P82: 0 | Q82: - | S82: - | T82: ** | U82: 0 | V82: - | W82: ** | X82: 0 | Y82: - | Z82: ** | AA82: 0 | AB82: - | AC82: ** | AD82: 0 | AE82: -
A83: DEVELOPING URBAN AREA (No Vegetation) | E83: - | G83: 0 | H83: - | J83: 0 | K83: - | M83: 0 | N83: - | P83: 0 | Q83: - | S83: - | U83: 0 | V83: - | X83: 0 | Y83: - | AA83: 0 | AB83: - | AD83: 0 | AE83: -
B84: Newly graded area (pervious only) | E84: - | F84: 77 | G84: 0 | H84: - | I84: 86 | J84: 0 | K84: - | L84: 91 | M84: 0 | N84: - | O84: 94 | P84: 0 | Q84: - | S84: - | T84: 77 | U84: 0 | V84: - | W84: 86 | X84: 0 | Y84: - | Z84: 91 | AA84: 0 | AB84: - | AC84: 94 | AD84: 0 | AE84: -
G86: =SUM(G11:G84) -> 0 | J86: =SUM(J11:J84) -> 0 | M86: =SUM(M11:M84) -> 0 | P86: =SUM(P11:P84) -> 0 | U86: =SUM(U11:U84) -> 0 | X86: =SUM(X11:X84) -> 0 | AA86: =SUM(AA11:AA84) -> 0 | AD86: =SUM(AD11:AD84) -> 0
E87: =SUM(E12:E84) -> 0 | H87: =SUM(H12:H84) -> 0 | K87: =SUM(K12:K84) -> 0 | N87: =SUM(N12:N84) -> 0 | S87: =SUM(S12:S84) -> 0 | V87: =SUM(V12:V84) -> 0 | Y87: =SUM(Y12:Y84) -> 0 | AB87: =SUM(AB12:AB84) -> 0
H89: Total Acres: | K89: =SUM(E87:N87) -> 0 | V89: Total Acres: | Y89: =SUM(S87:AB87) -> 0
C91: Composite Runoff Curve Number (RCN): | K91: =IF($K$89=0,0,ROUND(SUM(G86:P86)/K89,0)) -> 0 | Q91: Composite Runoff Curve Number (RCN): | Y91: =IF($Y$89=0,0,ROUND(SUM(U86:AD86)/Y89,0)) -> 0

Sheet TofC
A1: TIME OF CONCENTRATION AND TRAVEL TIME
A2: Project:
A3: Designer: | G3: Checked:
A4: Date: | G4: Date:
A6: PRE DEVELOPMENT | M6: POST DEVELOPMENT
A7: FLOW TYPE | C7: LENGTH | D7: SLOPE | E7: SURFACE | F7: MANNINGS | G7: AREA | H7: WP | I7: VELOCITY | J7: TRAVEL | M7: FLOW TYPE | O7: LENGTH | P7: SLOPE | Q7: SURFACE | R7: MANNINGS | S7: AREA | T7: WP | U7: VELOCITY | V7: TRAVEL
C8: (feet) | D8: (ft./ft.) | E8: a | F8: "N" | G8: (sq.ft.) | H8: (feet) | I8: (ft./sec.) | J8: TIME | O8: (feet) | P8: (ft./ft.) | Q8: a | R8: "N" | S8: (sq.ft.) | T8: (feet) | U8: (ft./sec.) | V8: TIME
A9: SHEET FLOW | F9: =IF(E9>0,(VLOOKUP(E9,N31:P41,3,FALSE)),"-----------") -> ----------- | G9: n/a | H9: n/a | I9: n/a | J9: =IF(C9>0,(0.007*(F9*C9)^0.8)/((D36)^0.5*(D9)^0.4),0) -> 0 | K9: hours | M9: Dense Grass | R9: =IF(Q9>0,(VLOOKUP(Q9,N31:P41,3,FALSE)),"-----------") -> ----------- | S9: n/a | T9: n/a | U9: n/a | V9: =IF(O9>0,(0.007*(R9*O9)^0.8)/((D36)^0.5*(P9)^0.4),0) -> 0 | W9: hours
C10: =IF(C9>300,"SHEET FLOW SHOULD NOT BE LONGER THAN 300 FEET"," ") ->  | O10: =IF(O9>300,"SHEET FLOW SHOULD NOT BE LONGER THAN 300 FEET"," ") -> 
A11: SHALLOW CONCENTRATED | F11: n/a | G11: n/a | H11: n/a | I11: =IF(E11>0,(VLOOKUP(E11,$G$39:$K$46,4,FALSE)*SQRT(D11)),"-----------") -> ----------- | J11: =IF(C11>0,((C11)/(3600*I11)),0) -> 0 | K11: hours | M11: Short Grass Pasture | R11: n/a | S11: n/a | T11: n/a | U11: =IF(Q11>0,(VLOOKUP(Q11,$G$39:$K$46,4,FALSE)*SQRT(P11)),"-----------") -> ----------- | V11: =IF(O11>0,((O11)/(3600*U11)),0) -> 0 | W11: hours
A12: SHALLOW CONCENTRATED | F12: n/a | G12: n/a | H12: n/a | I12: =IF(E12>0,(VLOOKUP(E12,$G$39:$K$46,4,FALSE)*SQRT(D12)),"-----------") -> ----------- | J12: =IF(C12>0,((C12)/(3600*I12)),0) -> 0 | K12: hours | M12: SHALLOW CONCENTRATED | R12: n/a | S12: n/a | T12: n/a | U12: =IF(Q12>0,(VLOOKUP(Q12,$G$39:$K$46,4,FALSE)*SQRT(P12)),"-----------") -> ----------- | V12: =IF(O12>0,((O12)/(3600*U12)),0) -> 0 | W12: hours
A13: SHALLOW CONCENTRATED | F13: n/a | G13: n/a | H13: n/a | I13: ----------- | J13: =IF(C13>0,((C13)/(3600*I13)),0) -> 0 | K13: hours | M13: SHALLOW CONCENTRATED | R13: n/a | S13: n/a | T13: n/a | U13: =IF(Q13>0,(VLOOKUP(Q13,$G$39:$K$46,4,FALSE)*SQRT(P13)),"-----------") -> ----------- | V13: =IF(O13>0,((O13)/(3600*U13)),0) -> 0 | W13: hours
A14: SHALLOW CONCENTRATED | F14: n/a | G14: n/a | H14: n/a | I14: ----------- | J14: =IF(C14>0,((C14)/(3600*I14)),0) -> 0 | K14: hours | M14: SHALLOW CONCENTRATED | R14: n/a | S14: n/a | T14: n/a | U14: ----------- | V14: =IF(O14>0,((O14)/(3600*U14)),0) -> 0 | W14: hours
A16: OPEN CHANNEL | E16: n/a | I16: =IF(F16>0,(1.49*(G16/H16)^0.667*D16^0.5)/F16,"-----------") -> ----------- | J16: =IF(C16>0,((C16)/(3600*I16)),0) -> 0 | K16: hours | M16: OPEN CHANNEL | U16: =IF(R16>0,(1.49*(S16/T16)^0.667*P16^0.5)/R16,"-----------") -> ----------- | V16: =IF(O16>0,((O16)/(3600*U16)),0) -> 0 | W16: hours
A17: OPEN CHANNEL | E17: n/a | I17: =IF(F17>0,(1.49*(G17/H17)^0.667*D17^0.5)/F17,"-----------") -> ----------- | J17: =IF(C17>0,((C17)/(3600*I17)),0) -> 0 | K17: hours | M17: OPEN CHANNEL | U17: =IF(R17>0,(1.49*(S17/T17)^0.667*P17^0.5)/R17,"-----------") -> ----------- | V17: =IF(O17>0,((O17)/(3600*U17)),0) -> 0 | W17: hours
A18: OPEN CHANNEL | E18: n/a | I18: =IF(F18>0,(1.49*(G18/H18)^0.667*D18^0.5)/F18,"-----------") -> ----------- | J18: =IF(C18>0,((C18)/(3600*I18)),0) -> 0 | K18: hours | M18: OPEN CHANNEL | U18: =IF(R18>0,(1.49*(S18/T18)^0.667*P18^0.5)/R18,"-----------") -> ----------- | V18: =IF(O18>0,((O18)/(3600*U18)),0) -> 0 | W18: hours
A19: OPEN CHANNEL | E19: n/a | I19: =IF(F19>0,(1.49*(G19/H19)^0.667*D19^0.5)/F19,"-----------") -> ----------- | J19: =IF(C19>0,((C19)/(3600*I19)),0) -> 0 | K19: hours | M19: OPEN CHANNEL | U19: =IF(R19>0,(1.49*(S19/T19)^0.667*P19^0.5)/R19,"-----------") -> ----------- | V19: =IF(O19>0,((O19)/(3600*U19)),0) -> 0 | W19: hours
I21: Time of Concentration | J21: =IF(J22="",J9+J11+J12+J13+J14+J16+J17+J18+J19,J22) -> 0 | K21: hours | U21: Time of Concentration | V21: =IF(V22="",V9+V11+V12+V13+V14+V16+V17+V18+V19,V22) -> 0 | W21: hours
K22: < If tc is known, enter here | W22: < If tc is known, enter here
B28: Sheet Flow Surface Codes | G28: Shallow Concentrated Surface Codes | N28: Manning's n for Sheet Flow
B29: a Smooth Surface | E29: f grass, dense | G29: u unpaved surface
B30: b fallow (no residue) | E30: g grass, bermuda | G30: p paved surface | N30: Code | O30: Type | P30: "n"
B31: c cultivated < 20% Res. | E31: h woods, light | N31: a | O31: a Smooth Surface | P31: 0.011
B32: d cultivated > 20% Res. | E32: i woods, dense | N32: b | O32: b fallow (no residue) | P32: 0.05
B33: e grass - range, short | E33: j range, natural | N33: c | O33: c cultivated < 20% Res. | P33: 0.06
N34: d | O34: d cultivated > 20% Res. | P34: 0.17
G35: Shallow Concentrated Surface Codes (NRCS) | N35: e | O35: e grass - range, short | P35: 0.15
B36: 2 Yr 24 hr Rainfall (Lander) | D36: 7
G37: Code | H37: Surface Description | J37: Kv (ft/sec) | K37: Kv (m/sec) | N37: f | O37: f grass, dense | P37: 0.24
N38: g | O38: g grass, bermuda | P38: 0.41
G39: 1 | H39: Paved | J39: 20.33 | K39: 6.2 | N39: h | O39: h woods, light | P39: 0.4
G40: 2 | H40: Unpaved | J40: 16.13 | K40: 4.92 | N40: I | O40: I woods, dense | P40: 0.8
G41: 3 | H41: Grassed Waterway | J41: 15 | K41: 4.57 | N41: j | O41: j range, natural | P41: 0.13
G42: 4 | H42: Nearly Bare & Untilled | J42: 10 | K42: 3.05
G43: 5 | H43: Cultivated Straight Rows | J43: 9 | K43: 2.74
G44: 6 | H44: Short Grass Pasture | J44: 7 | K44: 2.13
G45: 7 | H45: Woodland | J45: 5 | K45: 1.52
G46: 8 | H46: Forest w/Heavy Litter | J46: 2.5 | K46: 0.76

Sheet TR55
A1: TR 55 PEAK RUNOFF CALCULATION (GRAPHICAL METHOD) | S1: Peak Discharge Equation Coefficients for Rainfall Distribution | AA1: 1 | AE1: Peak Discharge Equation Coefficients for Rainfall Distribution | AO1: Peak Discharge Equation Coefficients for Rainfall Distribution | AW1: Peak Discharge Equation Coefficients for Rainfall Distribution | BE1: Curve | BF1: Ia | BG1: Ia CALCULATED
S2: TYPE I Rainfall | AA2: 2 | AE2: TYPE II Rainfall | AM2: =IF(AND(RCN!$N9>0,RCN!$N9<2000),RCN!$N9*RCN!$O9,0) -> 0 | AO2: TYPE I Rainfall | AW2: TYPE II Rainfall | BE2: Number | BF2: (in) | BG2: (in)
A3: Project: | U3: Ia/P | V3: C0 | W3: C1 | X3: C2 | AA3: 3 | AG3: Ia/P | AH3: C0 | AI3: C1 | AJ3: C2 | AM3: =IF(AND(RCN!$N11>0,RCN!$N11<2000),RCN!$N11*RCN!$O11,0) -> 0 | AQ3: Ia/P | AR3: C0 | AS3: C1 | AT3: C2 | AY3: Ia/P | AZ3: C0 | BA3: C1 | BB3: C2 | BE3: 30 | BF3: 4.666666667 | BG3: =0.2*((1000/BE3)-10) -> 4.666666667
A4: Designer: | I4: Checked: | T4: 1 | U4: 0.1 | V4: 2.3055 | W4: -0.51429 | X4: -0.1175 | AA4: 4 | AF4: 1 | AG4: 0.1 | AH4: 2.55323 | AI4: -0.61512 | AJ4: -0.16403 | AM4: =IF(AND(RCN!$N12>0,RCN!$N12<2000),RCN!$N12*RCN!$O12,0) -> 0 | AP4: 1 | AQ4: 0.1 | AR4: 2.3055 | AS4: -0.51429 | AT4: -0.1175 | AX4: 1 | AY4: 0.1 | AZ4: 2.55323 | BA4: -0.61512 | BB4: -0.16403 | BE4: 31 | BF4: 4.451612903 | BG4: =0.2*((1000/BE4)-10) -> 4.451612903
A5: Date: | T5: 2 | U5: 0.25 | V5: 2.18219 | W5: -0.48488 | X5: -0.06589 | AA5: 5 | AF5: 2 | AG5: 0.3 | AH5: 2.46532 | AI5: -0.62257 | AJ5: -0.11657 | AM5: =IF(AND(RCN!$N13>0,RCN!$N13<2000),RCN!$N13*RCN!$O13,0) -> 0 | AP5: 2 | AQ5: 0.25 | AR5: 2.18219 | AS5: -0.48488 | AT5: -0.06589 | AX5: 2 | AY5: 0.3 | AZ5: 2.46532 | BA5: -0.62257 | BB5: -0.11657 | BE5: 32 | BF5: 4.25 | BG5: 4.25
T6: 3 | U6: 0.3 | V6: 2.10624 | W6: -0.45695 | X6: -0.02835 | AA6: 6 | AF6: 3 | AG6: 0.35 | AH6: 2.41896 | AI6: -0.61594 | AJ6: -0.0882 | AM6: =IF(AND(RCN!$N14>0,RCN!$N14<2000),RCN!$N14*RCN!$O14,0) -> 0 | AP6: 3 | AQ6: 0.3 | AR6: 2.10624 | AS6: -0.45695 | AT6: -0.02835 | AX6: 3 | AY6: 0.35 | AZ6: 2.41896 | BA6: -0.61594 | BB6: -0.0882 | BE6: 33 | BF6: 4.060606061 | BG6: 4.060606061
C7: PRE | E7: POST | T7: 4 | U7: 0.4 | V7: 1.187733 | W7: -0.32274 | X7: 0.05754 | AA7: 7 | AF7: 4 | AG7: 0.4 | AH7: 2.36409 | AI7: -0.59857 | AJ7: -0.05621 | AM7: =IF(AND(RCN!$N15>0,RCN!$N15<2000),RCN!$N15*RCN!$O15,0) -> 0 | AP7: 4 | AQ7: 0.4 | AR7: 1.187733 | AS7: -0.32274 | AT7: 0.05754 | AX7: 4 | AY7: 0.4 | AZ7: 2.36409 | BA7: -0.59857 | BB7: -0.05621 | BE7: 34 | BF7: 3.882352941 | BG7: 3.882352941
A8: Drainage Area, A, Acres | C8: =RCN!$K$89 -> 0 | E8: =RCN!$Y$89 -> 0 | T8: 5 | U8: 0.5 | V8: 1.67889 | W8: -0.0693 | X8: 0 | AA8: 8 | AF8: 5 | AG8: 0.5 | AH8: 2.20282 | AI8: -0.51599 | AJ8: -0.01259 | AM8: =IF(AND(RCN!$N16>0,RCN!$N16<2000),RCN!$N16*RCN!$O16,0) -> 0 | AP8: 5 | AQ8: 0.5 | AR8: 1.67889 | AS8: -0.0693 | AT8: 0 | AX8: 5 | AY8: 0.5 | AZ8: 2.20282 | BA8: -0.51599 | BB8: -0.01259 | BE8: 35 | BF8: 3.714285714 | BG8: 3.714285714
A9: Runoff Curve Number, CN | C9: =RCN!$K$91 -> 0 | E9: =RCN!$Y$91 -> 0 | AA9: 9 | AM9: =IF(AND(RCN!$N17>0,RCN!$N17<2000),RCN!$N17*RCN!$O17,0) -> 0 | BE9: 36 | BF9: 3.555555556 | BG9: 3.555555556
A10: Location Adjustment Factor: | AA10: 10 | AM10: =IF(AND(RCN!$N18>0,RCN!$N18<2000),RCN!$N18*RCN!$O18,0) -> 0 | BE10: 37 | BF10: 3.405405405 | BG10: 3.405405405
AA11: 11 | AM11: =IF(AND(RCN!$N19>0,RCN!$N19<2000),RCN!$N19*RCN!$O19,0) -> 0 | BE11: 38 | BF11: 3.263157895 | BG11: 3.263157895
A12: Time of Concentration, Tc,(Hrs) | C12: =TofC!$J$21 -> 0 | E12: =TofC!$V$21 -> 0 | AA12: 12 | AH12: Tc = | AI12: =$C$12 -> 0 | AM12: =IF(AND(RCN!$N20>0,RCN!$N20<2000),RCN!$N20*RCN!$O20,0) -> 0 | AR12: Tc = | AS12: =$E$12 -> 0 | AZ12: Tc = | BA12: =$E$12 -> 0 | BE12: 39 | BF12: 3.128205128 | BG12: 3.128205128
A13: Rainfall Duration: | C13: 24-hr: | S13: Tc = | T13: =$C$12 -> 0 | W13: Ia/P=$E$19:$K$19 | AA13: 13 | AH13: Ia/P=$E$19:$K$19 | AM13: =IF(AND(RCN!$N21>0,RCN!$N21<2000),RCN!$N21*RCN!$O21,0) -> 0 | AR13: Ia/P=$E$19:$K$19 | AZ13: Ia/P=$E$19:$K$19 | BE13: 40 | BF13: 3 | BG13: 3
A14: Rainfall Duration in Minutes: | C14: =_xlfn.IFS(C13="5-min:",5,C13="10-min:",10,C13="15-min:",15,C13="30-min:",30,C13="60-min:",60,C13="2-hr:",120,C13="3-hr:",180,C13="6-hr:",360,C13="12-hr:",720,C13="24-hr:",1440,C13="2-day:",2880,C13="3-day:",4320,C13="4-day:",5760,C13="7-day:",10080,C13="10-day:",14400,C13="20-day:",28800,C13="30-day:",43200,C13="45-day:",64800,C13="60-day:",86400) -> 1440 | AA14: 14 | AM14: =IF(AND(RCN!$N22>0,RCN!$N22<2000),RCN!$N22*RCN!$O22,0) -> 0 | BE14: =BE13+1 -> 41 | BF14: 2.878 | BG14: 2.87804878
A15: NRCS Storm Type | C15: TYPE IA | E15: PRE DEVELOPMENT | J15: POST DEVELOPMENT | S15: TYPE I | AA15: 15 | AE15: TYPE II | AM15: =IF(AND(RCN!$N23>0,RCN!$N23<2000),RCN!$N23*RCN!$O23,0) -> 0 | AO15: TYPE I | AW15: TYPE II | BE15: 42 | BF15: 2.762 | BG15: 2.761904762
A16: Frequency | C16: yr | E16: 1 | F16: 2 | G16: 10 | H16: 25 | I16: 50 | J16: 1 | K16: 2 | L16: 10 | M16: 25 | N16: 50 | AA16: 16 | AM16: =IF(AND(RCN!$N24>0,RCN!$N24<2000),RCN!$N24*RCN!$O24,0) -> 0 | BE16: 43 | BF16: 2.651 | BG16: 2.651162791
A17: Ave. 24hr Rainfall Intensity | C17: in/hr | E17: =E$18/24 -> 0.1458333333 | F17: =F$18/24 -> 0.2916666667 | G17: =G$18/24 -> 0.4166666667 | H17: 0.8333333333 | I17: 1.125 | J17: 0.1458333333 | K17: 0.2916666667 | L17: 0.4166666667 | M17: 0.8333333333 | N17: 1.125 | S17: 1 yr | T17: Ia/P | U17: C0 | V17: C1 | W17: C2 | AE17: 1 yr | AF17: Ia/P | AG17: C0 | AH17: C1 | AI17: C2 | AO17: 1 yr | AP17: Ia/P | AQ17: C0 | AR17: C1 | AS17: C2 | AW17: 1 yr | AX17: Ia/P | AY17: C0 | AZ17: C1 | BA17: C2 | BE17: =BE16+1 -> 44 | BF17: 2.545 | BG17: =0.2*((1000/BE17)-10) -> 2.545454545
A18: Total 24hr Rainfall, P | C18: in | E18: 3.5 | F18: 7 | G18: 10 | H18: 20 | I18: 27 | J18: 3.5 | K18: 7 | L18: 10 | M18: 20 | N18: 27 | T18: =VLOOKUP($E$34,$T$4:$X$8,2) -> 0.5 | U18: =VLOOKUP($E$34,$T$4:$X$8,3) -> 1.67889 | V18: =VLOOKUP($E$34,$T$4:$X$8,4) -> -0.0693 | W18: =VLOOKUP($E$34,$T$4:$X$8,5) -> 0 | X18: LOW | AA18: 17 | AF18: =VLOOKUP($E$36,$AF$4:$AJ$8,2) -> 0.5 | AG18: =VLOOKUP($E$36,$AF$4:$AJ$8,3) -> 2.20282 | AH18: =VLOOKUP($E$36,$AF$4:$AJ$8,4) -> -0.51599 | AI18: =VLOOKUP($E$36,$AF$4:$AJ$8,5) -> -0.01259 | AJ18: LOW | AM18: =IF(AND(RCN!$N26>0,RCN!$N26<2000),RCN!$N26*RCN!$O26,0) -> 0 | AP18: =VLOOKUP($J$34,$T$4:$X$8,2) -> 0.5 | AQ18: =VLOOKUP($J$34,$AP$4:$AT$8,3) -> 1.67889 | AR18: =VLOOKUP($J$34,$AP$4:$AT$8,4) -> -0.0693 | AS18: =VLOOKUP($J$34,$AP$4:$AT$8,5) -> 0 | AT18: LOW | AV18: =VLOOKUP($K$34,$AP$4:$AT$8,3) -> 1.67889 | AX18: =VLOOKUP($J$36,$AF$4:$AJ$8,2) -> 0.5 | AY18: =VLOOKUP($J$36,$AX$4:$BB$8,3) -> 2.20282 | AZ18: =VLOOKUP($J$36,$AX$4:$BB$8,4) -> -0.51599 | BA18: =VLOOKUP($J$36,$AX$4:$BB$8,5) -> -0.01259 | BB18: LOW | BE18: =BE17+1 -> 45 | BF18: 2.444 | BG18: 2.444444444
A19: Location Adjusted Rainfall, P | C19: in | E19: =E$18*$C$10 -> 0 | F19: =F$18*$C$10 -> 0 | G19: 0 | H19: 0 | I19: 0 | J19: 0 | K19: 0 | L19: 0 | M19: 0 | N19: 0 | S19: =E21 ->  | T19: =VLOOKUP($E$34+1,$T$4:$X$8,2) -> 0.5 | U19: =VLOOKUP($E$34+1,$T$4:$X$8,3) -> 1.67889 | V19: =VLOOKUP($E$34+1,$T$4:$X$8,4) -> -0.0693 | W19: =VLOOKUP($E$34+1,$T$4:$X$8,5) -> 0 | X19: HIGH | AA19: 18 | AE19: =E21 ->  | AF19: =VLOOKUP($E$36+1,$AF$4:$AJ$8,2) -> 0.5 | AG19: =VLOOKUP($E$36+1,$T$4:$X$8,3) -> 1.67889 | AH19: =VLOOKUP($E$36+1,$AF$4:$AJ$8,4) -> -0.51599 | AI19: =VLOOKUP($E$36+1,$AF$4:$AJ$8,5) -> -0.01259 | AJ19: HIGH | AM19: =IF(AND(RCN!$N27>0,RCN!$N27<2000),RCN!$N27*RCN!$O27,0) -> 0 | AO19: =J21 ->  | AP19: =VLOOKUP($J$34+1,$T$4:$X$8,2) -> 0.5 | AQ19: =VLOOKUP($J$34+1,$AP$4:$AT$8,3) -> 1.67889 | AR19: =VLOOKUP($J$34+1,$AP$4:$AT$8,4) -> -0.0693 | AS19: =VLOOKUP($J$34+1,$AP$4:$AT$8,5) -> 0 | AT19: HIGH | AW19: =J21 ->  | AX19: =VLOOKUP($J$36+1,$AF$4:$AJ$8,2) -> 0.5 | AY19: =VLOOKUP($J$36+1,$AX$4:$BB$8,3) -> 2.20282 | AZ19: =VLOOKUP($J$36+1,$AX$4:$BB$8,4) -> -0.51599 | BA19: =VLOOKUP($J$36+1,$AX$4:$BB$8,5) -> -0.01259 | BB19: HIGH | BE19: 46 | BF19: 2.348 | BG19: 2.347826087
A20: Initial Abstraction, Ia | C20: in | E20: =IF(C9=0," ",$C$29) ->  | F20: =IF(C9=0," ",$C$29) ->  | G20: =IF(C9=0," ",$C$29) ->  | H20: =IF(C9=0," ",$C$29) ->  | I20: =IF(C9=0," ",$C$29) ->  | J20: =IF(E9=0," ",$E$29) ->  | K20: =IF(E9=0," ",$E$29) ->  | L20: =IF(E9=0," ",$E$29) ->  | M20: =IF(E9=0," ",$E$29) ->  | N20: =IF(E9=0," ",$E$29) ->  | T20: =($E$21-T18)/(T19-T18) ->  | U20: =IF($E$21<$U$4,$V$4,U18+(U19-U18)*T20) ->  | V20: =IF($E$21<$U$4,$W$4,V18+(V19-V18)*T20) ->  | W20: =IF($E$21<$U$4,$X$4,W18+(W19-W18)*T20) ->  | X20: INTERPOLATED | AA20: 19 | AF20: =($AE$19-AF18)/(AF19-AF18) ->  | AG20: =IF($AE$19<$AG$4,$AH$4,AG18+(AG19-AG18)*AF20) ->  | AH20: =IF($AE$19<$AG$4,$AI$4,AH18+(AH19-AH18)*AF20) ->  | AI20: =IF($E$21<$AG$4,$AJ$4,AI18+(AI19-AI18)*AF20) ->  | AJ20: INTERPOLATED | AM20: =IF(AND(RCN!$N28>0,RCN!$N28<2000),RCN!$N28*RCN!$O28,0) -> 0 | AP20: =($J$21-AP18)/(AP19-AP18) ->  | AQ20: =IF($J$21<$AQ$4,$AR$4,AQ18+(AQ19-AQ18)*AP20) ->  | AR20: =IF($J$21<$AQ$4,$AS$4,AR18+(AR19-AR18)*AP20) ->  | AS20: =IF($J$21<$U$4,$AT$4,AS18+(AS19-AS18)*AP20) ->  | AT20: INTERPOLATED | AX20: =($J$21-AX18)/(AX19-AX18) ->  | AY20: =IF($J$21<$AY$4,$AZ$4,AY18+(AY19-AY18)*AX20) ->  | AZ20: =IF($J$21<$AY$4,$BA$4,AZ18+(AZ19-AZ18)*AX20) ->  | BA20: =IF($J$21<$AY$4,$BB$4,BA18+(BA19-BA18)*AX20) ->  | BB20: INTERPOLATED | BE20: 47 | BF20: 2.255 | BG20: 2.255319149
A21: Ia/P ratio | E21: =IF((OR($C$8=0,$C$9=0,$C$12=0))," ",E20/E19) ->  | F21: =IF((OR($C$8=0,$C$9=0,$C$12=0))," ",F20/F19) ->  | G21: =IF((OR($C$8=0,$C$9=0,$C$12=0))," ",G20/G19) ->  | H21: =IF((OR($C$8=0,$C$9=0,$C$12=0))," ",H20/H19) ->  | I21: =IF((OR($C$8=0,$C$9=0,$C$12=0))," ",I20/I19) ->  | J21: =IF((OR($E$8=0,$E$9=0,$E$12=0))," ",J$20/J$19) ->  | K21: =IF((OR($E$8=0,$E$9=0,$E$12=0))," ",K$20/K$19) ->  | L21: =IF((OR($E$8=0,$E$9=0,$E$12=0))," ",L$20/L$19) ->  | M21: =IF((OR($E$8=0,$E$9=0,$E$12=0))," ",M$20/M$19) ->  | N21: =IF((OR($E$8=0,$E$9=0,$E$12=0))," ",N$20/N$19) ->  | AA21: 20 | AM21: =IF(AND(RCN!$N29>0,RCN!$N29<2000),RCN!$N29*RCN!$O29,0) -> 0 | BE21: 48 | BF21: 2.167 | BG21: 2.166666667
A22: Unit Peak Discharge, q(u) | C22: cfs/ac/in | E22: =_xlfn.IFS($C$15="TYPE I",Q$130,$C$15="TYPE IA",Q$131,$C$15="TYPE II",AC$130,$C$15="TYPE III",AC$131) ->  | F22: =_xlfn.IFS($C$15="TYPE I",R$130,$C$15="TYPE IA",R$131,$C$15="TYPE II",AD$130,$C$15="TYPE III",AD$131) ->  | G22: =_xlfn.IFS($C$15="TYPE I",T$130,$C$15="TYPE IA",T$131,$C$15="TYPE II",AF$130,$C$15="TYPE III",AF$131) ->  | H22: =_xlfn.IFS($C$15="TYPE I",U$130,$C$15="TYPE IA",U$131,$C$15="TYPE II",AG$130,$C$15="TYPE III",AG$131) ->  | I22: =_xlfn.IFS($C$15="TYPE I",V$130,$C$15="TYPE IA",V$131,$C$15="TYPE II",AH$130,$C$15="TYPE III",AH$131) ->  | J22: =_xlfn.IFS($C$15="TYPE I",AP$135,$C$15="TYPE IA",AP$136,$C$15="TYPE II",AX$129,$C$15="TYPE III",AX$130) ->  | K22: =_xlfn.IFS($C$15="TYPE I",AQ$135,$C$15="TYPE IA",AQ$136,$C$15="TYPE II",AX$129,$C$15="TYPE III",AX$130) ->  | L22: =_xlfn.IFS($C$15="TYPE I",AS$135,$C$15="TYPE IA",AS$136,$C$15="TYPE II",BA$129,$C$15="TYPE III",BA$130) ->  | M22: =_xlfn.IFS($C$15="TYPE I",AT$135,$C$15="TYPE IA",AT$136,$C$15="TYPE II",BB$129,$C$15="TYPE III",BB$130) ->  | N22: =_xlfn.IFS($C$15="TYPE I",AU$135,$C$15="TYPE IA",AU$136,$C$15="TYPE II",BC$129,$C$15="TYPE III",BC$130) ->  | S22: 2 yr | T22: Ia/P | U22: C0 | V22: C1 | W22: C2 | AA22: 21 | AE22: 2 yr | AF22: Ia/P | AG22: C0 | AH22: C1 | AI22: C2 | AM22: =IF(AND(RCN!$N30>0,RCN!$N30<2000),RCN!$N30*RCN!$O30,0) -> 0 | AO22: 2 yr | AP22: Ia/P | AQ22: C0 | AR22: C1 | AS22: C2 | AW22: 2 yr | AX22: Ia/P | AY22: C0 | AZ22: C1 | BA22: C2 | BE22: 49 | BF22: 2.082 | BG22: 2.081632653
A23: Runoff, R | C23: in | E23: =IF(OR(C8=0,C9=0,C12=0)," ",IF(E19-E20<0,0,((E19-E20)^2/(E19-E20+$C$31)))) ->  | F23: =IF(OR(C8=0,C9=0,C12=0)," ",IF(F19-F20<0,0,((F19-F20)^2/(F19-F20+$C$31)))) ->  | G23: =IF(OR(C8=0,C9=0,C12=0)," ",IF(G19-G20<0,0,((G19-G20)^2/(G19-G20+$C$31)))) ->  | H23: TR 55 | I23: =IF(OR(C8=0,C9=0,C12=0)," ",IF(I19-I20<0,0,((I19-I20)^2/(I19-I20+$C$31)))) ->  | J23: =IF(OR(E8=0,E9=0,E12=0)," ",IF(J19-J20<0,0,((J19-J20)^2/(J19-J20+$E$31)))) ->  | K23: =IF(OR(E8=0,E9=0,E12=0)," ",IF(K19-K20<0,0,((K19-K20)^2/(K19-K20+$E$31)))) ->  | L23: =IF(OR(E8=0,E9=0,E12=0)," ",IF(L19-L20<0,0,((L19-L20)^2/(L19-L20+$E$31)))) ->  | M23: =IF(OR(E8=0,E9=0,E12=0)," ",IF(M19-M20<0,0,((M19-M20)^2/(M19-M20+$E$31)))) ->  | N23: =IF(OR(E8=0,E9=0,E12=0)," ",IF(N19-N20<0,0,((N19-N20)^2/(N19-N20+$E$31)))) ->  | T23: =VLOOKUP($F$34,$T$4:$X$8,2) -> 0.5 | U23: =VLOOKUP($F$34,$T$4:$X$8,3) -> 1.67889 | V23: =VLOOKUP($F$34,$T$4:$X$8,4) -> -0.0693 | W23: =VLOOKUP($F$34,$T$4:$X$8,5) -> 0 | X23: LOW | AA23: 22 | AF23: =VLOOKUP($F$36,$AF$4:$AJ$8,2) -> 0.5 | AG23: =VLOOKUP($F$36,$AF$4:$AJ$8,3) -> 2.20282 | AH23: =VLOOKUP($F$36,$AF$4:$AJ$8,4) -> -0.51599 | AI23: =VLOOKUP($F$36,$AF$4:$AJ$8,5) -> -0.01259 | AJ23: LOW | AM23: =IF(AND(RCN!$N31>0,RCN!$N31<2000),RCN!$N31*RCN!$O31,0) -> 0 | AP23: =VLOOKUP($K$34,$T$4:$X$8,2) -> 0.5 | AQ23: =VLOOKUP($K$34,$AP$4:$AT$8,3) -> 1.67889 | AR23: =VLOOKUP($K$34,$AP$4:$AT$8,4) -> -0.0693 | AS23: =VLOOKUP($K$34,$AP$4:$AT$8,5) -> 0 | AT23: LOW | AX23: =VLOOKUP($K$36,$T$4:$X$8,2) -> 0.5 | AY23: =VLOOKUP($K$36,$AX$4:$BB$8,3) -> 2.20282 | AZ23: =VLOOKUP($K$36,$AX$4:$BB$8,4) -> -0.51599 | BA23: =VLOOKUP($K$36,$AX$4:$BB$8,5) -> -0.01259 | BB23: LOW | BE23: 50 | BF23: 2 | BG23: 2
A24: Runoff Volume | C24: ac-ft | E24: =IF(OR(C8=0,C9=0,C12=0)," ",(E23/12*$C$8)) ->  | F24: =IF(OR(C8=0,C9=0,C12=0)," ",(F23/12*$C$8)) ->  | G24: =IF(OR(C8=0,C9=0,C12=0)," ",(G23/12*$C$8)) ->  | H24: =IF(OR(C8=0,C9=0,C12=0)," ",(H23/12*$C$8)) ->  | I24: =IF(OR(C8=0,C9=0,C12=0)," ",(I23/12*$C$8)) ->  | J24: =IF(OR(E8=0,E9=0,E12=0)," ",(J23/12*$E$8)) ->  | K24: =IF(OR(E8=0,E9=0,E12=0)," ",(K23/12*$E$8)) ->  | L24: =IF(OR(E8=0,E9=0,E12=0)," ",(L23/12*$E$8)) ->  | M24: =IF(OR(E8=0,E9=0,E12=0)," ",(M23/12*$E$8)) ->  | N24: =IF(OR(E8=0,E9=0,E12=0)," ",(N23/12*$E$8)) ->  | S24: =F21 ->  | T24: =VLOOKUP($F$34+1,$T$4:$X$8,2) -> 0.5 | U24: =VLOOKUP($F$34+1,$T$4:$X$8,3) -> 1.67889 | V24: =VLOOKUP($F$34+1,$T$4:$X$8,4) -> -0.0693 | W24: =VLOOKUP($F$34+1,$T$4:$X$8,5) -> 0 | X24: HIGH | AA24: 23 | AE24: =F21 ->  | AF24: =VLOOKUP($F$36+1,$AF$4:$AJ$8,2) -> 0.5 | AG24: =VLOOKUP($F$36+1,$AF$4:$AJ$8,3) -> 2.20282 | AH24: =VLOOKUP($F$36+1,$AF$4:$AJ$8,4) -> -0.51599 | AI24: =VLOOKUP($F$36+1,$AF$4:$AJ$8,5) -> -0.01259 | AJ24: HIGH | AM24: =IF(AND(RCN!$N32>0,RCN!$N32<2000),RCN!$N32*RCN!$O32,0) -> 0 | AO24: =K21 ->  | AP24: =VLOOKUP($F$34+1,$T$4:$X$8,2) -> 0.5 | AQ24: =VLOOKUP($F$34+1,$AP$4:$AT$8,3) -> 1.67889 | AR24: =VLOOKUP($F$34+1,$AP$4:$AT$8,4) -> -0.0693 | AS24: =VLOOKUP($F$34+1,$AP$4:$AT$8,5) -> 0 | AT24: HIGH | AW24: =K21 ->  | AX24: =VLOOKUP($K$36+1,$T$4:$X$8,2) -> 0.5 | AY24: =VLOOKUP($K$36+1,$AX$4:$BB$8,3) -> 2.20282 | AZ24: =VLOOKUP($K$36+1,$AX$4:$BB$8,4) -> -0.51599 | BA24: =VLOOKUP($K$36+1,$AX$4:$BB$8,5) -> -0.01259 | BB24: HIGH | BE24: 51 | BF24: 1.922 | BG24: 1.921568627
A25: Peak Discharge, Qp=qu*A*R | C25: cfs | E25: =IF(OR(C8=0,C9=0,C12=0)," ",E22*$C$8*E23) ->  | F25: =IF(OR(C8=0,C9=0,C12=0)," ",F22*$C$8*F23) ->  | G25: =IF(OR(C8=0,C9=0,C12=0)," ",G22*$C$8*G23) ->  | H25: =IF(OR(C8=0,C9=0,C12=0)," ",H22*$C$8*H23) ->  | I25: =IF(OR(C8=0,C9=0,C12=0)," ",I22*$C$8*I23) ->  | J25: =IF(OR($E$8=0,$E$9=0,$E$12=0)," ",J$22*$E$8*J$23) ->  | K25: =IF(OR($E$8=0,$E$9=0,$E$12=0)," ",K$22*$E$8*K$23) ->  | L25: =IF(OR($E$8=0,$E$9=0,$E$12=0)," ",L$22*$E$8*L$23) ->  | M25: =IF(OR($E$8=0,$E$9=0,$E$12=0)," ",M$22*$E$8*M$23) ->  | N25: =IF(OR($E$8=0,$E$9=0,$E$12=0)," ",N$22*$E$8*N$23) ->  | T25: =($F$21-T23)/(T24-T23) ->  | U25: =IF($F$21<$U$4,$V$4,U23+(U24-U23)*T25) ->  | V25: =IF($F$21<$U$4,$W$4,V23+(V24-V23)*T25) ->  | W25: =IF($F$21<$U$4,$X$4,W23+(W24-W23)*T25) ->  | X25: INTERPOLATED | AA25: 24 | AF25: =($F$21-AF23)/(AF24-AF23) ->  | AG25: =IF($F$21<$AG$4,$H$4,AG23+(AG24-AG23)*AF25) ->  | AH25: =IF($F$21<$AG$4,$AI$4,AH23+(AH24-AH23)*AF25) ->  | AI25: =IF($F$21<$AG$4,$AJ$4,AI23+(AI24-AI23)*AF25) ->  | AJ25: INTERPOLATED | AM25: =IF(AND(RCN!$N33>0,RCN!$N33<2000),RCN!$N33*RCN!$O33,0) -> 0 | AP25: =($K$21-AP23)/(AP24-AP23) ->  | AQ25: =IF($K$21<$AQ$4,$AR$4,AQ23+(AQ24-AQ23)*AP25) ->  | AR25: =IF($K$21<$AQ$4,$AS$4,AR23+(AR24-AR23)*AP25) ->  | AS25: =IF($K$21<$AQ$4,$AT$4,AS23+(AS24-AS23)*AP25) ->  | AT25: INTERPOLATED | AX25: =($K$21-AX23)/(AX24-AX23) ->  | AY25: =IF($K$21<$AY$4,$AZ$4,AY23+(AY24-AY23)*AX25) ->  | AZ25: =IF($K$21<$AY$4,$BA$4,AZ23+(AZ24-AZ23)*AX25) ->  | BA25: =IF($K$21<$AY$4,$BB$4,BA23+(BA24-BA23)*AX25) ->  | BB25: INTERPOLATED | BE25: 52 | BF25: 1.846 | BG25: 1.846153846
AA26: 25 | AM26: =IF(AND(RCN!$N34>0,RCN!$N34<2000),RCN!$N34*RCN!$O34,0) -> 0 | BE26: 53 | BF26: 1.774 | BG26: 1.773584906
S27: 5 yr | T27: Ia/P | U27: C0 | V27: C1 | W27: C2 | AA27: 26 | AE27: 5 yr | AF27: Ia/P | AG27: C0 | AH27: C1 | AI27: C2 | AM27: =IF(AND(RCN!$N35>0,RCN!$N35<2000),RCN!$N35*RCN!$O35,0) -> 0 | AO27: 5 yr | AP27: Ia/P | AQ27: C0 | AR27: C1 | AS27: C2 | AW27: 5 yr | AX27: Ia/P | AY27: C0 | AZ27: C1 | BA27: C2 | BE27: 54 | BF27: 1.704 | BG27: 1.703703704
C28: PRE | E28: POST | T28: =VLOOKUP($G$34,$T$4:$X$8,2) -> 0.5 | U28: =VLOOKUP($G$34,$T$4:$X$8,3) -> 1.67889 | V28: =VLOOKUP($G$34,$T$4:$X$8,4) -> -0.0693 | W28: =VLOOKUP($G$34,$T$4:$X$8,5) -> 0 | X28: LOW | AA28: 27 | AF28: =VLOOKUP($G$36,$AF$4:$AJ$8,2) -> 0.5 | AG28: =VLOOKUP($G$36,$AF$4:$AJ$8,3) -> 2.20282 | AH28: =VLOOKUP($G$36,$AF$4:$AJ$8,4) -> -0.51599 | AI28: =VLOOKUP($G$36,$AF$4:$AJ$8,5) -> -0.01259 | AJ28: LOW | AM28: =IF(AND(RCN!$N36>0,RCN!$N36<2000),RCN!$N36*RCN!$O36,0) -> 0 | AP28: =VLOOKUP($J$34,$T$4:$X$8,2) -> 0.5 | AQ28: =VLOOKUP($J$34,$T$4:$X$8,3) -> 1.67889 | AR28: =VLOOKUP($J$34,$T$4:$X$8,4) -> -0.0693 | AS28: =VLOOKUP($J$34,$T$4:$X$8,5) -> 0 | AT28: LOW | AX28: =VLOOKUP($G$36,$T$4:$X$8,2) -> 0.5 | AY28: =VLOOKUP($G$36,$T$4:$X$8,3) -> 1.67889 | AZ28: =VLOOKUP($G$36,$T$4:$X$8,4) -> -0.0693 | BA28: =VLOOKUP($G$36,$T$4:$X$8,5) -> 0 | BB28: LOW | BE28: 55 | BF28: 1.636 | BG28: 1.636363636
A29: 0.2S | B29: Ia | C29: =VLOOKUP($C$9,$BE$3:$BF$71,2) ->  | E29: =VLOOKUP($E$9,$BE$3:$BF$71,2) ->  | S29: 0 | T29: =VLOOKUP($G$34+1,$T$4:$X$8,2) -> 0.5 | U29: =VLOOKUP($G$34+1,$T$4:$X$8,3) -> 1.67889 | V29: =VLOOKUP($G$34+1,$T$4:$X$8,4) -> -0.0693 | W29: =VLOOKUP($G$34+1,$T$4:$X$8,5) -> 0 | X29: HIGH | AA29: 28 | AE29: 0 | AF29: =VLOOKUP($G$36+1,$AF$4:$AJ$8,2) -> 0.5 | AG29: =VLOOKUP($G$36+1,$AF$4:$AJ$8,3) -> 2.20282 | AH29: =VLOOKUP($G$36+1,$AF$4:$AJ$8,4) -> -0.51599 | AI29: =VLOOKUP($G$36+1,$AF$4:$AJ$8,5) -> -0.01259 | AJ29: HIGH | AM29: =IF(AND(RCN!$N37>0,RCN!$N37<2000),RCN!$N37*RCN!$O37,0) -> 0 | AO29: 0 | AP29: =VLOOKUP($J$34+1,$T$4:$X$8,2) -> 0.5 | AQ29: =VLOOKUP($J$34+1,$T$4:$X$8,3) -> 1.67889 | AR29: =VLOOKUP($J$34+1,$T$4:$X$8,4) -> -0.0693 | AS29: =VLOOKUP($G$34+1,$T$4:$X$8,5) -> 0 | AT29: HIGH | AW29: 0 | AX29: =VLOOKUP($G$36+1,$T$4:$X$8,2) -> 0.5 | AY29: =VLOOKUP($G$36+1,$T$4:$X$8,3) -> 1.67889 | AZ29: =VLOOKUP($G$36+1,$T$4:$X$8,4) -> -0.0693 | BA29: =VLOOKUP($G$36+1,$T$4:$X$8,5) -> 0 | BB29: HIGH | BE29: 56 | BF29: 1.571 | BG29: 1.571428571
B30: Tc | C30: =C12 -> 0 | E30: =E12 -> 0 | T30: =($G$21-T28)/(T29-T28) ->  | U30: =IF($G$20<$U$4,$V$4,U28+(U29-U28)*T30) ->  | V30: =IF($G$20<$U$4,$W$4,V28+(V29-V28)*T30) ->  | W30: =IF($G$20<$U$4,$X$4,W28+(W29-W28)*T30) ->  | X30: INTERPOLATED | AA30: 29 | AF30: =($G$21-AF28)/(AF29-AF28) ->  | AG30: =IF($G$20<$U$4,$V$4,AG28+(AG29-AG28)*AF30) ->  | AH30: =IF($G$20<$U$4,$W$4,AH28+(AH29-AH28)*AF30) ->  | AI30: =IF($G$20<$U$4,$X$4,AI28+(AI29-AI28)*AF30) ->  | AJ30: INTERPOLATED | AM30: =IF(AND(RCN!$N38>0,RCN!$N38<2000),RCN!$N38*RCN!$O38,0) -> 0 | AP30: =($J$21-AP28)/(AP29-AP28) ->  | AQ30: =IF($J$21<$U$4,$V$4,AQ28+(AQ29-AQ28)*AP30) ->  | AR30: =IF($J$21<$U$4,$W$4,AR28+(AR29-AR28)*AP30) ->  | AS30: =IF($J$21<$U$4,$X$4,AS28+(AS29-AS28)*AP30) ->  | AT30: INTERPOLATED | AX30: =($G$21-AX28)/(AX29-AX28) ->  | AY30: =IF($G$20<$U$4,$V$4,AY28+(AY29-AY28)*AX30) ->  | AZ30: =IF($G$20<$U$4,$W$4,AZ28+(AZ29-AZ28)*AX30) ->  | BA30: =IF($G$20<$U$4,$X$4,BA28+(BA29-BA28)*AX30) ->  | BB30: INTERPOLATED | BE30: 57 | BF30: 1.509 | BG30: 1.50877193
A31: 1000/CN-10 | B31: S | C31: =(1000/$C$9)-10 ->  | E31: =(1000/$E$9)-10 ->  | AA31: 30 | AM31: =IF(AND(RCN!$N39>0,RCN!$N39<2000),RCN!$N39*RCN!$O39,0) -> 0 | BE31: 58 | BF31: 1.448 | BG31: 1.448275862
S32: 10 yr | T32: Ia/P | U32: C0 | V32: C1 | W32: C2 | AA32: 31 | AE32: 10 yr | AF32: Ia/P | AG32: C0 | AH32: C1 | AI32: C2 | AM32: =IF(AND(RCN!$N40>0,RCN!$N40<2000),RCN!$N40*RCN!$O40,0) -> 0 | AO32: 10 yr | AP32: Ia/P | AQ32: C0 | AR32: C1 | AS32: C2 | AW32: 10 yr | AX32: Ia/P | AY32: C0 | AZ32: C1 | BA32: C2 | BE32: =BE31+1 -> 59 | BF32: 1.39 | BG32: 1.389830508
E33: PRE DEVELOPMENT | J33: POST DEVELOPMENT | T33: =VLOOKUP($G$34,$T$4:$X$8,2) -> 0.5 | U33: =VLOOKUP($G$34,$T$4:$X$8,3) -> 1.67889 | V33: =VLOOKUP($G$34,$T$4:$X$8,4) -> -0.0693 | W33: =VLOOKUP($G$34,$T$4:$X$8,5) -> 0 | X33: LOW | AA33: 32 | AF33: =VLOOKUP($H$36,$AF$4:$AJ$8,2) -> 0.5 | AG33: =VLOOKUP($H$36,$AF$4:$AJ$8,3) -> 2.20282 | AH33: =VLOOKUP($H$36,$AF$4:$AJ$8,4) -> -0.51599 | AI33: =VLOOKUP($H$36,$AF$4:$AJ$8,5) -> -0.01259 | AJ33: LOW | AM33: =IF(AND(RCN!$N41>0,RCN!$N41<2000),RCN!$N41*RCN!$O41,0) -> 0 | AP33: =VLOOKUP($L$34,$T$4:$X$8,2) -> 0.5 | AQ33: =VLOOKUP($L$34,$AP$4:$AT$8,3) -> 1.67889 | AR33: =VLOOKUP($L$34,$AP$4:$AT$8,4) -> -0.0693 | AS33: =VLOOKUP($L$34,$AP$4:$AT$8,5) -> 0 | AT33: LOW | AX33: =VLOOKUP($L$36,$T$4:$X$8,2) -> 0.5 | AY33: =VLOOKUP($L$36,$AX$4:$BB$8,3) -> 2.20282 | AZ33: =VLOOKUP($L$36,$AX$4:$BB$8,4) -> -0.51599 | BA33: =VLOOKUP($L$36,$AX$4:$BB$8,5) -> -0.01259 | BB33: LOW | BE33: 60 | BF33: 1.333 | BG33: 1.333333333
C34: TYPE I | E34: =IF(E$21>0.5,5,IF(AND(E$21<=0.5,E$21>0.4),4,IF(AND(E$21<=0.4,E$21>0.3),3,IF(AND(E$21<=0.3,E$21>0.25),2,1)))) -> 5 | F34: =IF(F$21>0.5,5,IF(AND(F$21<=0.5,F$21>0.4),4,IF(AND(F$21<=0.4,F$21>0.3),3,IF(AND(F$21<=0.3,F$21>0.25),2,1)))) -> 5 | G34: =IF(G21>0.5,5,IF(AND(G21<=0.5,G21>0.4),4,IF(AND(G21<=0.4,G21>0.3),3,IF(AND(G21<=0.3,G21>0.25),2,1)))) -> 5 | H34: 5 | I34: 5 | J34: 5 | K34: 5 | L34: 5 | M34: 5 | N34: 5 | S34: =G21 ->  | T34: =VLOOKUP($G$34+1,$T$4:$X$8,2) -> 0.5 | U34: =VLOOKUP($G$34+1,$T$4:$X$8,3) -> 1.67889 | V34: =VLOOKUP($G$34+1,$T$4:$X$8,4) -> -0.0693 | W34: =VLOOKUP($G$34+1,$T$4:$X$8,5) -> 0 | X34: HIGH | AA34: 33 | AE34: =G21 ->  | AF34: =VLOOKUP($H$36+1,$AF$4:$AJ$8,2) -> 0.5 | AG34: =VLOOKUP($H$36+1,$AF$4:$AJ$8,3) -> 2.20282 | AH34: =VLOOKUP($H$36+1,$AF$4:$AJ$8,4) -> -0.51599 | AI34: =VLOOKUP($H$36+1,$AF$4:$AJ$8,5) -> -0.01259 | AJ34: HIGH | AM34: =IF(AND(RCN!$N42>0,RCN!$N42<2000),RCN!$N42*RCN!$O42,0) -> 0 | AO34: =L21 ->  | AP34: =VLOOKUP($L$34+1,$T$4:$X$8,2) -> 0.5 | AQ34: =VLOOKUP($L$34+1,$AP$4:$AT$8,3) -> 1.67889 | AR34: =VLOOKUP($L$34+1,$AP$4:$AT$8,4) -> -0.0693 | AS34: =VLOOKUP($L$34+1,$AP$4:$AT$8,5) -> 0 | AT34: HIGH | AW34: =L21 ->  | AX34: =VLOOKUP($L$36+1,$T$4:$X$8,2) -> 0.5 | AY34: =VLOOKUP($L$36+1,$AX$4:$BB$8,3) -> 2.20282 | AZ34: =VLOOKUP($L$36+1,$AX$4:$BB$8,4) -> -0.51599 | BA34: =VLOOKUP($L$36+1,$AX$4:$BB$8,5) -> -0.01259 | BB34: HIGH | BE34: 61 | BF34: 1.279 | BG34: 1.278688525
C35: TYPE IA | E35: =IF(E$21>0.5,5,IF(AND(E$21<=0.5,E$21>0.3),4,IF(AND(E$21<=0.3,E$21>0.25),3,IF(AND(E$21<=0.25,E$21>0.2),2,1)))) -> 5 | F35: 5 | G35: 5 | H35: 5 | I35: 5 | J35: 5 | K35: 5 | L35: 5 | M35: 5 | N35: 5 | T35: =($G$21-T33)/(T34-T33) ->  | U35: =IF($G$21<$U$4,$V$4,U33+(U34-U33)*T35) ->  | V35: =IF($G$21<$U$4,$W$4,V33+(V34-V33)*T35) ->  | W35: =IF($G$21<$U$4,$X$4,W33+(W34-W33)*T35) ->  | X35: INTERPOLATED | AA35: 34 | AF35: =($G$21-AF33)/(AF34-AF33) ->  | AG35: =IF($G$21<$U$4,$V$4,AG33+(AG34-AG33)*AF35) ->  | AH35: =IF($G$21<$U$4,$W$4,AH33+(AH34-AH33)*AF35) ->  | AI35: =IF($G$21<$U$4,$X$4,AI33+(AI34-AI33)*AF35) ->  | AJ35: INTERPOLATED | AM35: =IF(AND(RCN!$N43>0,RCN!$N43<2000),RCN!$N43*RCN!$O43,0) -> 0 | AP35: =($L$21-AP33)/(AP34-AP33) ->  | AQ35: =IF($L$21<$AQ$4,$AR$4,AQ33+(AQ34-AQ33)*AP35) ->  | AR35: =IF($L$21<$AQ$4,$AS$4,AR33+(AR34-AR33)*AP35) ->  | AS35: =IF($L$21<$AQ$4,$AT$4,AS33+(AS34-AS33)*AP35) ->  | AT35: INTERPOLATED | AX35: =($L$21-AX33)/(AX34-AX33) ->  | AY35: =IF($L$21<$AY$4,$AZ$4,AY33+(AY34-AY33)*AX35) ->  | AZ35: =IF($L$21<$AY$4,$BA$4,AZ33+(AZ34-AZ33)*AX35) ->  | BA35: =IF($L$21<$AY$4,$BB$4,BA33+(BA34-BA33)*AX35) ->  | BB35: INTERPOLATED | BE35: 62 | BF35: 1.226 | BG35: 1.225806452
C36: TYPE II | E36: =IF(E$21>0.5,5,IF(AND(E$21<=0.5,E$21>0.4),4,IF(AND(E$21<=0.4,E$21>0.35),3,IF(AND(E$21<=0.35,E$21>0.3),2,1)))) -> 5 | F36: 5 | G36: 5 | H36: 5 | I36: 5 | J36: 5 | K36: 5 | L36: 5 | M36: 5 | N36: 5 | AA36: 35 | AM36: =IF(AND(RCN!$N44>0,RCN!$N44<2000),RCN!$N44*RCN!$O44,0) -> 0 | BE36: 63 | BF36: 1.175 | BG36: 1.174603175
C37: TYPE III | E37: 5 | F37: 5 | G37: 5 | H37: 5 | I37: 5 | J37: 5 | K37: 5 | L37: 5 | M37: 5 | N37: 5 | S37: 25 yr | T37: Ia/P | U37: C0 | V37: C1 | W37: C2 | AA37: 36 | AE37: 25 yr | AF37: Ia/P | AG37: C0 | AH37: C1 | AI37: C2 | AM37: =IF(AND(RCN!$N45>0,RCN!$N45<2000),RCN!$N45*RCN!$O45,0) -> 0 | AO37: 25 yr | AP37: Ia/P | AQ37: C0 | AR37: C1 | AS37: C2 | AW37: 25 yr | AX37: Ia/P | AY37: C0 | AZ37: C1 | BA37: C2 | BE37: 64 | BF37: 1.125 | BG37: 1.125
T38: =VLOOKUP($H$34,$T$4:$X$8,2) -> 0.5 | U38: =VLOOKUP($H$34,$T$4:$X$8,3) -> 1.67889 | V38: =VLOOKUP($H$34,$T$4:$X$8,4) -> -0.0693 | W38: =VLOOKUP($H$34,$T$4:$X$8,5) -> 0 | X38: LOW | AA38: 37 | AF38: =VLOOKUP($I$36,$AF$4:$AJ$8,2) -> 0.5 | AG38: =VLOOKUP($I$36,$AF$4:$AJ$8,3) -> 2.20282 | AH38: =VLOOKUP($I$36,$AF$4:$AJ$8,4) -> -0.51599 | AI38: =VLOOKUP($I$36,$AF$4:$AJ$8,5) -> -0.01259 | AJ38: LOW | AM38: =IF(AND(RCN!$N46>0,RCN!$N46<2000),RCN!$N46*RCN!$O46,0) -> 0 | AP38: =VLOOKUP($M$34,$T$4:$X$8,2) -> 0.5 | AQ38: =VLOOKUP($M$34,$AP$4:$AT$8,3) -> 1.67889 | AR38: =VLOOKUP($M$34,$AP$4:$AT$8,4) -> -0.0693 | AS38: =VLOOKUP($M$34,$AP$4:$AT$8,5) -> 0 | AT38: LOW | AX38: =VLOOKUP($M$36,$T$4:$X$8,2) -> 0.5 | AY38: =VLOOKUP($M$36,$AX$4:$BB$8,3) -> 2.20282 | AZ38: =VLOOKUP($M$36,$AX$4:$BB$8,4) -> -0.51599 | BA38: =VLOOKUP($M$36,$AX$4:$BB$8,5) -> -0.01259 | BB38: LOW | BE38: 65 | BF38: 1.077 | BG38: 1.076923077
S39: =H21 ->  | T39: =VLOOKUP($H$34+1,$T$4:$X$8,2) -> 0.5 | U39: =VLOOKUP($H$34+1,$T$4:$X$8,3) -> 1.67889 | V39: =VLOOKUP($H$34+1,$T$4:$X$8,4) -> -0.0693 | W39: =VLOOKUP($H$34+1,$T$4:$X$8,5) -> 0 | X39: HIGH | AA39: 38 | AE39: =H21 ->  | AF39: =VLOOKUP($I$36+1,$AF$4:$AJ$8,2) -> 0.5 | AG39: =VLOOKUP($I$36+1,$AF$4:$AJ$8,3) -> 2.20282 | AH39: =VLOOKUP($I$36+1,$AF$4:$AJ$8,4) -> -0.51599 | AI39: =VLOOKUP($I$36+1,$AF$4:$AJ$8,5) -> -0.01259 | AJ39: HIGH | AM39: =IF(AND(RCN!$N47>0,RCN!$N47<2000),RCN!$N47*RCN!$O47,0) -> 0 | AO39: =M21 ->  | AP39: =VLOOKUP($M$34+1,$T$4:$X$8,2) -> 0.5 | AQ39: =VLOOKUP($M$34+1,$AP$4:$AT$8,3) -> 1.67889 | AR39: =VLOOKUP($M$34+1,$AP$4:$AT$8,4) -> -0.0693 | AS39: =VLOOKUP($M$34+1,$AP$4:$AT$8,5) -> 0 | AT39: HIGH | AW39: =M21 ->  | AX39: =VLOOKUP($M$36+1,$T$4:$X$8,2) -> 0.5 | AY39: =VLOOKUP($M$36+1,$AX$4:$BB$8,3) -> 2.20282 | AZ39: =VLOOKUP($M$36+1,$AX$4:$BB$8,4) -> -0.51599 | BA39: =VLOOKUP($M$36+1,$AX$4:$BB$8,5) -> -0.01259 | BB39: HIGH | BE39: 66 | BF39: 1.03 | BG39: 1.03030303
T40: =($H$21-T38)/(T39-T38) ->  | U40: =IF($H$21<$U$4,$V$4,U38+(U39-U38)*T40) ->  | V40: =IF($H$21<$U$4,$W$4,V38+(V39-V38)*T40) ->  | W40: =IF($H$21<$U$4,$X$4,W38+(W39-W38)*T40) ->  | X40: INTERPOLATED | AA40: 39 | AF40: =($H$21-AF38)/(AF39-AF38) ->  | AG40: =IF($H$21<$AG$4,$AH$4,AG38+(AG39-AG38)*AF40) ->  | AH40: =IF($H$21<$AG$4,$AI$4,AH38+(AH39-AH38)*AF40) ->  | AI40: =IF($H$21<$AG$4,$AJ$4,AI38+(AI39-AI38)*AF40) ->  | AJ40: INTERPOLATED | AM40: =IF(AND(RCN!$N48>0,RCN!$N48<2000),RCN!$N48*RCN!$O48,0) -> 0 | AP40: =($M$21-AP38)/(AP39-AP38) ->  | AQ40: =IF($M$21<$AQ$4,$AR$4,AQ38+(AQ39-AQ38)*AP40) ->  | AR40: =IF($M$21<$AQ$4,$AS$4,AR38+(AR39-AR38)*AP40) ->  | AS40: =IF($M$21<$AQ$4,$AT$4,AS38+(AS39-AS38)*AP40) ->  | AT40: INTERPOLATED | AX40: =($M$21-AX38)/(AX39-AX38) ->  | AY40: =IF($M$21<$AY$4,$AZ$4,AY38+(AY39-AY38)*AX40) ->  | AZ40: =IF($M$21<$AY$4,$BA$4,AZ38+(AZ39-AZ38)*AX40) ->  | BA40: =IF($M$21<$AY$4,$BB$4,BA38+(BA39-BA38)*AX40) ->  | BB40: INTERPOLATED | BE40: 67 | BF40: 0.985 | BG40: 0.9850746269
AA41: 40 | AM41: =IF(AND(RCN!$N49>0,RCN!$N49<2000),RCN!$N49*RCN!$O49,0) -> 0 | BE41: 68 | BF41: 0.941 | BG41: 0.9411764706
S42: 50 yr | T42: Ia/P | U42: C0 | V42: C1 | W42: C2 | AA42: 41 | AE42: 50 yr | AF42: Ia/P | AG42: C0 | AH42: C1 | AI42: C2 | AM42: =IF(AND(RCN!$N50>0,RCN!$N50<2000),RCN!$N50*RCN!$O50,0) -> 0 | AO42: 50 yr | AP42: Ia/P | AQ42: C0 | AR42: C1 | AS42: C2 | AW42: 50 yr | AX42: Ia/P | AY42: C0 | AZ42: C1 | BA42: C2 | BE42: 69 | BF42: 0.899 | BG42: 0.8985507246
T43: =VLOOKUP($I$34,$T$4:$X$8,2) -> 0.5 | U43: =VLOOKUP($I$34,$T$4:$X$8,3) -> 1.67889 | V43: =VLOOKUP($I$34,$T$4:$X$8,4) -> -0.0693 | W43: =VLOOKUP($I$34,$T$4:$X$8,5) -> 0 | X43: LOW | AA43: 42 | AF43: =VLOOKUP($J$36,$AF$4:$AJ$8,2) -> 0.5 | AG43: =VLOOKUP($J$36,$AF$4:$AJ$8,3) -> 2.20282 | AH43: =VLOOKUP($J$36,$AF$4:$AJ$8,4) -> -0.51599 | AI43: =VLOOKUP($J$36,$AF$4:$AJ$8,5) -> -0.01259 | AJ43: LOW | AM43: =IF(AND(RCN!$N51>0,RCN!$N51<2000),RCN!$N51*RCN!$O51,0) -> 0 | AP43: =VLOOKUP($N$34,$T$4:$X$8,2) -> 0.5 | AQ43: =VLOOKUP($N$34,$AP$4:$AT$8,3) -> 1.67889 | AR43: =VLOOKUP($N$34,$AP$4:$AT$8,4) -> -0.0693 | AS43: =VLOOKUP($N$34,$AP$4:$AT$8,5) -> 0 | AT43: LOW | AX43: =VLOOKUP($N$36,$T$4:$X$8,2) -> 0.5 | AY43: =VLOOKUP($N$36,$AX$4:$BB$8,3) -> 2.20282 | AZ43: =VLOOKUP($N$36,$AX$4:$BB$8,4) -> -0.51599 | BA43: =VLOOKUP($N$36,$AX$4:$BB$8,5) -> -0.01259 | BB43: LOW | BE43: 70 | BF43: 0.857 | BG43: 0.8571428571
S44: =I21 ->  | T44: =VLOOKUP($J$34+1,$T$4:$X$8,2) -> 0.5 | U44: =VLOOKUP($I$34+1,$T$4:$X$8,3) -> 1.67889 | V44: =VLOOKUP($I$34+1,$T$4:$X$8,4) -> -0.0693 | W44: =VLOOKUP($I$34+1,$T$4:$X$8,5) -> 0 | X44: HIGH | AA44: 43 | AE44: =I21 ->  | AF44: =VLOOKUP($J$36+1,$AF$4:$AJ$8,2) -> 0.5 | AG44: =VLOOKUP($J$36+1,$AF$4:$AJ$8,3) -> 2.20282 | AH44: =VLOOKUP($J$36+1,$AF$4:$AJ$8,4) -> -0.51599 | AI44: =VLOOKUP($J$36+1,$AF$4:$AJ$8,5) -> -0.01259 | AJ44: HIGH | AM44: =IF(AND(RCN!$N52>0,RCN!$N52<2000),RCN!$N52*RCN!$O52,0) -> 0 | AO44: =N21 ->  | AP44: =VLOOKUP($N$34+1,$T$4:$X$8,2) -> 0.5 | AQ44: =VLOOKUP($N$34+1,$AP$4:$AT$8,3) -> 1.67889 | AR44: =VLOOKUP($N$34+1,$AP$4:$AT$8,4) -> -0.0693 | AS44: =VLOOKUP($N$34+1,$AP$4:$AT$8,5) -> 0 | AT44: HIGH | AW44: =N21 ->  | AX44: =VLOOKUP($N$36+1,$T$4:$X$8,2) -> 0.5 | AY44: =VLOOKUP($N$36+1,$AX$4:$BB$8,3) -> 2.20282 | AZ44: =VLOOKUP($N$36+1,$AX$4:$BB$8,4) -> -0.51599 | BA44: =VLOOKUP($N$36+1,$AX$4:$BB$8,5) -> -0.01259 | BB44: HIGH | BE44: 71 | BF44: 0.817 | BG44: 0.8169014085
T45: =($I$21-T43)/(T44-T43) ->  | U45: =IF($I$21<$U$4,$V$4,U43+(U44-U43)*T45) ->  | V45: =IF($I$21<$U$4,$W$4,V43+(V44-V43)*T45) ->  | W45: =IF($I$21<$U$4,$X$4,W43+(W44-W43)*T45) ->  | X45: INTERPOLATED | AA45: 44 | AF45: =($I$21-AF43)/(AF44-AF43) ->  | AG45: =IF($I$21<$AF$4,$AH$4,AG43+(AG44-AG43)*AF45) ->  | AH45: =IF($I$21<$AF$4,$AI$4,AH43+(AH44-AH43)*AF45) ->  | AI45: =IF($I$21<$AF$4,$AJ$4,AI43+(AI44-AI43)*AF45) ->  | AJ45: INTERPOLATED | AM45: =IF(AND(RCN!$N53>0,RCN!$N53<2000),RCN!$N53*RCN!$O53,0) -> 0 | AP45: =($N$21-AP43)/(AP44-AP43) ->  | AQ45: =IF($N$21<$AQ$4,$AR$4,AQ43+(AQ44-AQ43)*AP45) ->  | AR45: =IF($N$21<$AQ$4,$AS$4,AR43+(AR44-AR43)*AP45) ->  | AS45: =IF($N$21<$AQ$4,$AT$4,AS43+(AS44-AS43)*AP45) ->  | AT45: INTERPOLATED | AX45: =($N$21-AX43)/(AX44-AX43) ->  | AY45: =IF($N$21<$AY$4,$AZ$4,AY43+(AY44-AY43)*AX45) ->  | AZ45: =IF($N$21<$AY$4,$BA$4,AZ43+(AZ44-AZ43)*AX45) ->  | BA45: =IF($N$21<$AY$4,$BB$4,BA43+(BA44-BA43)*AX45) ->  | BB45: INTERPOLATED | BE45: 72 | BF45: 0.778 | BG45: 0.7777777778
AA46: 45 | AM46: =IF(AND(RCN!$N54>0,RCN!$N54<2000),RCN!$N54*RCN!$O54,0) -> 0 | BE46: 73 | BF46: 0.74 | BG46: 0.7397260274
S47: 100 yr | T47: Ia/P | U47: C0 | V47: C1 | W47: C2 | AA47: 46 | AE47: 100 yr | AF47: Ia/P | AG47: C0 | AH47: C1 | AI47: C2 | AM47: =IF(AND(RCN!$N55>0,RCN!$N55<2000),RCN!$N55*RCN!$O55,0) -> 0 | AO47: 100 yr | AP47: Ia/P | AQ47: C0 | AR47: C1 | AS47: C2 | AW47: 100 yr | AX47: Ia/P | AY47: C0 | AZ47: C1 | BA47: C2 | BE47: 74 | BF47: 0.703 | BG47: 0.7027027027
T48: =VLOOKUP($K$34,$T$4:$X$8,2) -> 0.5 | U48: =VLOOKUP($K$34,$T$4:$X$8,3) -> 1.67889 | V48: =VLOOKUP($K$34,$T$4:$X$8,4) -> -0.0693 | W48: =VLOOKUP($K$34,$T$4:$X$8,5) -> 0 | X48: LOW | AA48: 47 | AF48: =VLOOKUP($K$36,$T$4:$X$8,2) -> 0.5 | AG48: =VLOOKUP($K$36,$T$4:$X$8,3) -> 1.67889 | AH48: =VLOOKUP($K$36,$T$4:$X$8,4) -> -0.0693 | AI48: =VLOOKUP($K$36,$T$4:$X$8,5) -> 0 | AJ48: LOW | AM48: =IF(AND(RCN!$N56>0,RCN!$N56<2000),RCN!$N56*RCN!$O56,0) -> 0 | AP48: =VLOOKUP($K$34,$T$4:$X$8,2) -> 0.5 | AQ48: =VLOOKUP($K$34,$T$4:$X$8,3) -> 1.67889 | AR48: =VLOOKUP($K$34,$T$4:$X$8,4) -> -0.0693 | AS48: =VLOOKUP($K$34,$T$4:$X$8,5) -> 0 | AT48: LOW | AX48: =VLOOKUP($K$36,$T$4:$X$8,2) -> 0.5 | AY48: =VLOOKUP($K$36,$T$4:$X$8,3) -> 1.67889 | AZ48: =VLOOKUP($K$36,$T$4:$X$8,4) -> -0.0693 | BA48: =VLOOKUP($K$36,$T$4:$X$8,5) -> 0 | BB48: LOW | BE48: 75 | BF48: 0.667 | BG48: 0.6666666667
S49: 0 | T49: =VLOOKUP($K$34+1,$T$4:$X$8,2) -> 0.5 | U49: =VLOOKUP($K$34+1,$T$4:$X$8,3) -> 1.67889 | V49: =VLOOKUP($K$34+1,$T$4:$X$8,4) -> -0.0693 | W49: =VLOOKUP($K$34+1,$T$4:$X$8,5) -> 0 | X49: HIGH | AA49: 48 | AE49: 0 | AF49: =VLOOKUP($K$36+1,$T$4:$X$8,2) -> 0.5 | AG49: =VLOOKUP($K$36+1,$T$4:$X$8,3) -> 1.67889 | AH49: =VLOOKUP($K$36+1,$T$4:$X$8,4) -> -0.0693 | AI49: =VLOOKUP($K$36+1,$T$4:$X$8,5) -> 0 | AJ49: HIGH | AM49: =IF(AND(RCN!$N57>0,RCN!$N57<2000),RCN!$N57*RCN!$O57,0) -> 0 | AO49: 0 | AP49: =VLOOKUP($K$34+1,$T$4:$X$8,2) -> 0.5 | AQ49: =VLOOKUP($K$34+1,$T$4:$X$8,3) -> 1.67889 | AR49: =VLOOKUP($K$34+1,$T$4:$X$8,4) -> -0.0693 | AS49: =VLOOKUP($K$34+1,$T$4:$X$8,5) -> 0 | AT49: HIGH | AW49: =AC20 -> 0 | AX49: =VLOOKUP($K$36+1,$T$4:$X$8,2) -> 0.5 | AY49: =VLOOKUP($K$36+1,$T$4:$X$8,3) -> 1.67889 | AZ49: =VLOOKUP($K$36+1,$T$4:$X$8,4) -> -0.0693 | BA49: =VLOOKUP($K$36+1,$T$4:$X$8,5) -> 0 | BB49: HIGH | BE49: 76 | BF49: 0.632 | BG49: 0.6315789474
T50: =($K$21-T48)/(T49-T48) ->  | U50: =IF($K$21<$U$4,$V$4,U48+(U49-U48)*T50) ->  | V50: =IF($K$21<$U$4,$W$4,V48+(V49-V48)*T50) ->  | W50: =IF($K$21<$U$4,$X$4,W48+(W49-W48)*T50) ->  | X50: INTERPOLATED | AA50: 49 | AF50: =($K$21-AF48)/(AF49-AF48) ->  | AG50: =IF($K$21<$U$4,$V$4,AG48+(AG49-AG48)*AF50) ->  | AH50: =IF($K$21<$U$4,$W$4,AH48+(AH49-AH48)*AF50) ->  | AI50: =IF($K$21<$U$4,$X$4,AI48+(AI49-AI48)*AF50) ->  | AJ50: INTERPOLATED | AM50: =IF(AND(RCN!$N58>0,RCN!$N58<2000),RCN!$N58*RCN!$O58,0) -> 0 | AP50: =($K$21-AP48)/(AP49-AP48) ->  | AQ50: =IF($K$21<$U$4,$V$4,AQ48+(AQ49-AQ48)*AP50) ->  | AR50: =IF($K$21<$U$4,$W$4,AR48+(AR49-AR48)*AP50) ->  | AS50: =IF($K$21<$U$4,$X$4,AS48+(AS49-AS48)*AP50) ->  | AT50: INTERPOLATED | AX50: =($K$21-AX48)/(AX49-AX48) ->  | AY50: =IF($K$21<$U$4,$V$4,AY48+(AY49-AY48)*AX50) ->  | AZ50: =IF($K$21<$U$4,$W$4,AZ48+(AZ49-AZ48)*AX50) ->  | BA50: =IF($K$21<$U$4,$X$4,BA48+(BA49-BA48)*AX50) ->  | BB50: INTERPOLATED | BE50: 77 | BF50: 0.597 | BG50: 0.5974025974
Q51: Pre | AA51: 50 | AB51: Pre | AM51: =IF(AND(RCN!$N59>0,RCN!$N59<2000),RCN!$N59*RCN!$O59,0) -> 0 | BE51: 78 | BF51: 0.564 | BG51: 0.5641025641
S52: 200 yr | T52: Ia/P | U52: C0 | V52: C1 | W52: C2 | AA52: 51 | AE52: 200 yr | AF52: Ia/P | AG52: C0 | AH52: C1 | AI52: C2 | AM52: =IF(AND(RCN!$N60>0,RCN!$N60<2000),RCN!$N60*RCN!$O60,0) -> 0 | AO52: 200 yr | AP52: Ia/P | AQ52: C0 | AR52: C1 | AS52: C2 | AW52: 200 yr | AX52: Ia/P | AY52: C0 | AZ52: C1 | BA52: C2 | BE52: 79 | BF52: 0.532 | BG52: 0.5316455696
P53: Tc | Q53: =C30 -> 0 | T53: =VLOOKUP($L$34,$T$4:$X$8,2) -> 0.5 | U53: =VLOOKUP($L$34,$T$4:$X$8,3) -> 1.67889 | V53: =VLOOKUP($L$34,$T$4:$X$8,4) -> -0.0693 | W53: =VLOOKUP($L$34,$T$4:$X$8,5) -> 0 | X53: LOW | AA53: 52 | AB53: Tc | AC53: =C30 -> 0 | AF53: =VLOOKUP($L$36,$T$4:$X$8,2) -> 0.5 | AG53: =VLOOKUP($L$36,$T$4:$X$8,3) -> 1.67889 | AH53: =VLOOKUP($L$36,$T$4:$X$8,4) -> -0.0693 | AI53: =VLOOKUP($L$36,$T$4:$X$8,5) -> 0 | AJ53: LOW | AN53: =$E$12 -> 0 | AP53: =VLOOKUP($L$34,$T$4:$X$8,2) -> 0.5 | AQ53: =VLOOKUP($L$34,$T$4:$X$8,3) -> 1.67889 | AR53: =VLOOKUP($L$34,$T$4:$X$8,4) -> -0.0693 | AS53: =VLOOKUP($L$34,$T$4:$X$8,5) -> 0 | AT53: LOW | AX53: =VLOOKUP($L$36,$T$4:$X$8,2) -> 0.5 | AY53: =VLOOKUP($L$36,$T$4:$X$8,3) -> 1.67889 | AZ53: =VLOOKUP($L$36,$T$4:$X$8,4) -> -0.0693 | BA53: =VLOOKUP($L$36,$T$4:$X$8,5) -> 0 | BB53: LOW | BE53: 80 | BF53: 0.5 | BG53: 0.5
S54: 0 | T54: =VLOOKUP($L$34+1,$T$4:$X$8,2) -> 0.5 | U54: =VLOOKUP($L$34+1,$T$4:$X$8,3) -> 1.67889 | V54: =VLOOKUP($L$34+1,$T$4:$X$8,4) -> -0.0693 | W54: =VLOOKUP($L$34+1,$T$4:$X$8,5) -> 0 | X54: HIGH | AA54: 53 | AE54: 0 | AF54: =VLOOKUP($L$36+1,$T$4:$X$8,2) -> 0.5 | AG54: =VLOOKUP($L$36+1,$T$4:$X$8,3) -> 1.67889 | AH54: =VLOOKUP($L$36+1,$T$4:$X$8,4) -> -0.0693 | AI54: =VLOOKUP($L$36+1,$T$4:$X$8,5) -> 0 | AJ54: HIGH | AO54: 0 | AP54: =VLOOKUP($L$34+1,$T$4:$X$8,2) -> 0.5 | AQ54: =VLOOKUP($L$34+1,$T$4:$X$8,3) -> 1.67889 | AR54: =VLOOKUP($L$34+1,$T$4:$X$8,4) -> -0.0693 | AS54: =VLOOKUP($L$34+1,$T$4:$X$8,5) -> 0 | AT54: HIGH | AW54: 0 | AX54: =VLOOKUP($L$36+1,$T$4:$X$8,2) -> 0.5 | AY54: =VLOOKUP($L$36+1,$T$4:$X$8,3) -> 1.67889 | AZ54: =VLOOKUP($L$36+1,$T$4:$X$8,4) -> -0.0693 | BA54: =VLOOKUP($L$36+1,$T$4:$X$8,5) -> 0 | BB54: HIGH | BE54: 81 | BF54: 0.469 | BG54: 0.4691358025
T55: =($L$21-T53)/(T54-T53) ->  | U55: =IF($L$21<$U$4,$V$4,U53+(U54-U53)*T55) ->  | V55: =IF($L$21<$U$4,$W$4,V53+(V54-V53)*T55) ->  | W55: =IF($L$21<$U$4,$X$4,W53+(W54-W53)*T55) ->  | X55: INTERPOLATED | AA55: 54 | AF55: =($L$21-AF53)/(AF54-AF53) ->  | AG55: =IF($L$21<$U$4,$V$4,AG53+(AG54-AG53)*AF55) ->  | AH55: =IF($L$21<$U$4,$W$4,AH53+(AH54-AH53)*AF55) ->  | AI55: =IF($L$21<$U$4,$X$4,AI53+(AI54-AI53)*AF55) ->  | AJ55: INTERPOLATED | AM55: =IF(AND(RCN!$N63>0,RCN!$N63<2000),RCN!$N63*RCN!$O63,0) -> 0 | AP55: =($L$21-AP53)/(AP54-AP53) ->  | AQ55: =IF($L$21<$U$4,$V$4,AQ53+(AQ54-AQ53)*AP55) ->  | AR55: =IF($L$21<$U$4,$W$4,AR53+(AR54-AR53)*AP55) ->  | AS55: =IF($L$21<$U$4,$X$4,AS53+(AS54-AS53)*AP55) ->  | AT55: INTERPOLATED | AX55: =($L$21-AX53)/(AX54-AX53) ->  | AY55: =IF($L$21<$U$4,$V$4,AY53+(AY54-AY53)*AX55) ->  | AZ55: =IF($L$21<$U$4,$W$4,AZ53+(AZ54-AZ53)*AX55) ->  | BA55: =IF($L$21<$U$4,$X$4,BA53+(BA54-BA53)*AX55) ->  | BB55: INTERPOLATED | BE55: 82 | BF55: 0.439 | BG55: 0.4390243902
AA56: 55 | AM56: =IF(AND(RCN!$N64>0,RCN!$N64<2000),RCN!$N64*RCN!$O64,0) -> 0 | BE56: 83 | BF56: 0.41 | BG56: 0.4096385542
S57: 500 yr | T57: Ia/P | U57: C0 | V57: C1 | W57: C2 | AA57: 56 | AE57: 500 yr | AF57: Ia/P | AG57: C0 | AH57: C1 | AI57: C2 | AM57: =IF(AND(RCN!$N65>0,RCN!$N65<2000),RCN!$N65*RCN!$O65,0) -> 0 | AO57: 500 yr | AP57: Ia/P | AQ57: C0 | AR57: C1 | AS57: C2 | AW57: 500 yr | AX57: Ia/P | AY57: C0 | AZ57: C1 | BA57: C2 | BE57: 84 | BF57: 0.381 | BG57: 0.380952381
T58: =VLOOKUP($M$34,$T$4:$X$8,2) -> 0.5 | U58: =VLOOKUP($M$34,$T$4:$X$8,3) -> 1.67889 | V58: =VLOOKUP($M$34,$T$4:$X$8,4) -> -0.0693 | W58: =VLOOKUP($M$34,$T$4:$X$8,5) -> 0 | X58: LOW | AA58: 57 | AF58: =VLOOKUP($M$36,$T$4:$X$8,2) -> 0.5 | AG58: =VLOOKUP($M$36,$T$4:$X$8,3) -> 1.67889 | AH58: =VLOOKUP($M$36,$T$4:$X$8,4) -> -0.0693 | AI58: =VLOOKUP($M$36,$T$4:$X$8,5) -> 0 | AJ58: LOW | AM58: =IF(AND(RCN!$N66>0,RCN!$N66<2000),RCN!$N66*RCN!$O66,0) -> 0 | AP58: =VLOOKUP($M$34,$T$4:$X$8,2) -> 0.5 | AQ58: =VLOOKUP($M$34,$T$4:$X$8,3) -> 1.67889 | AR58: =VLOOKUP($M$34,$T$4:$X$8,4) -> -0.0693 | AS58: =VLOOKUP($M$34,$T$4:$X$8,5) -> 0 | AT58: LOW | AX58: =VLOOKUP($M$36,$T$4:$X$8,2) -> 0.5 | AY58: =VLOOKUP($M$36,$T$4:$X$8,3) -> 1.67889 | AZ58: =VLOOKUP($M$36,$T$4:$X$8,4) -> -0.0693 | BA58: =VLOOKUP($M$36,$T$4:$X$8,5) -> 0 | BB58: LOW | BE58: 85 | BF58: 0.353 | BG58: 0.3529411765
S59: 0 | T59: =VLOOKUP($M$34+1,$T$4:$X$8,2) -> 0.5 | U59: =VLOOKUP($M$34+1,$T$4:$X$8,3) -> 1.67889 | V59: =VLOOKUP($M$34+1,$T$4:$X$8,4) -> -0.0693 | W59: =VLOOKUP($M$34+1,$T$4:$X$8,5) -> 0 | X59: HIGH | AA59: 58 | AE59: 0 | AF59: =VLOOKUP($M$36+1,$T$4:$X$8,2) -> 0.5 | AG59: =VLOOKUP($M$36+1,$T$4:$X$8,3) -> 1.67889 | AH59: =VLOOKUP($M$36+1,$T$4:$X$8,4) -> -0.0693 | AI59: =VLOOKUP($M$36+1,$T$4:$X$8,5) -> 0 | AJ59: HIGH | AM59: =IF(AND(RCN!$N67>0,RCN!$N67<2000),RCN!$N67*RCN!$O67,0) -> 0 | AO59: 0 | AP59: =VLOOKUP($M$34+1,$T$4:$X$8,2) -> 0.5 | AQ59: =VLOOKUP($M$34+1,$T$4:$X$8,3) -> 1.67889 | AR59: =VLOOKUP($M$34+1,$T$4:$X$8,4) -> -0.0693 | AS59: =VLOOKUP($M$34+1,$T$4:$X$8,5) -> 0 | AT59: HIGH | AW59: =AE20 -> 0 | AX59: =VLOOKUP($M$36+1,$T$4:$X$8,2) -> 0.5 | AY59: =VLOOKUP($M$36+1,$T$4:$X$8,3) -> 1.67889 | AZ59: =VLOOKUP($M$36+1,$T$4:$X$8,4) -> -0.0693 | BA59: =VLOOKUP($M$36+1,$T$4:$X$8,5) -> 0 | BB59: HIGH | BE59: 86 | BF59: 0.326 | BG59: 0.3255813953
T60: =($M$21-T58)/(T59-T58) ->  | U60: =IF($M$21<$U$4,$V$4,U58+(U59-U58)*T60) ->  | V60: =IF($M$21<$U$4,$W$4,V58+(V59-V58)*T60) ->  | W60: =IF($M$21<$U$4,$X$4,W58+(W59-W58)*T60) ->  | X60: INTERPOLATED | AA60: 59 | AF60: =($M$21-AF58)/(AF59-AF58) ->  | AG60: =IF($M$21<$U$4,$V$4,AG58+(AG59-AG58)*AF60) ->  | AH60: =IF($M$21<$U$4,$W$4,AH58+(AH59-AH58)*AF60) ->  | AI60: =IF($M$21<$U$4,$X$4,AI58+(AI59-AI58)*AF60) ->  | AJ60: INTERPOLATED | AM60: =IF(AND(RCN!$N68>0,RCN!$N68<2000),RCN!$N68*RCN!$O68,0) -> 0 | AP60: =($M$21-AP58)/(AP59-AP58) ->  | AQ60: =IF($M$21<$U$4,$V$4,AQ58+(AQ59-AQ58)*AP60) ->  | AR60: =IF($M$21<$U$4,$W$4,AR58+(AR59-AR58)*AP60) ->  | AS60: =IF($M$21<$U$4,$X$4,AS58+(AS59-AS58)*AP60) ->  | AT60: INTERPOLATED | AX60: =($M$21-AX58)/(AX59-AX58) ->  | AY60: =IF($M$21<$U$4,$V$4,AY58+(AY59-AY58)*AX60) ->  | AZ60: =IF($M$21<$U$4,$W$4,AZ58+(AZ59-AZ58)*AX60) ->  | BA60: =IF($M$21<$U$4,$X$4,BA58+(BA59-BA58)*AX60) ->  | BB60: INTERPOLATED | BE60: 87 | BF60: 0.299 | BG60: 0.2988505747
AA61: 60 | AM61: =IF(AND(RCN!$N69>0,RCN!$N69<2000),RCN!$N69*RCN!$O69,0) -> 0 | BE61: 88 | BF61: 0.273 | BG61: 0.2727272727
AA62: 61 | AM62: =IF(AND(RCN!$N70>0,RCN!$N70<2000),RCN!$N70*RCN!$O70,0) -> 0 | BE62: 89 | BF62: 0.247 | BG62: 0.2471910112
AA63: 62 | AM63: =IF(AND(RCN!$N71>0,RCN!$N71<2000),RCN!$N71*RCN!$O71,0) -> 0 | BE63: 90 | BF63: 0.222 | BG63: 0.2222222222
AA64: 63 | AM64: =IF(AND(RCN!$N72>0,RCN!$N72<2000),RCN!$N72*RCN!$O72,0) -> 0 | BE64: 91 | BF64: 0.198 | BG64: 0.1978021978
AA65: 64 | AM65: =IF(AND(RCN!$N73>0,RCN!$N73<2000),RCN!$N73*RCN!$O73,0) -> 0 | BE65: 92 | BF65: 0.174 | BG65: 0.1739130435
AA66: 65 | AM66: =IF(AND(RCN!$N74>0,RCN!$N74<2000),RCN!$N74*RCN!$O74,0) -> 0 | BE66: 93 | BF66: 0.151 | BG66: 0.1505376344
AA67: 66 | AM67: =IF(AND(RCN!$N75>0,RCN!$N75<2000),RCN!$N75*RCN!$O75,0) -> 0 | BE67: 94 | BF67: 0.128 | BG67: 0.1276595745
AA68: 67 | AM68: =IF(AND(RCN!$N76>0,RCN!$N76<2000),RCN!$N76*RCN!$O76,0) -> 0 | BE68: 95 | BF68: 0.105 | BG68: =0.2*((1000/BE68)-10) -> 0.1052631579
AA69: 68 | AM69: =IF(AND(RCN!$N77>0,RCN!$N77<2000),RCN!$N77*RCN!$O77,0) -> 0 | BE69: 96 | BF69: 0.083 | BG69: =0.2*((1000/BE69)-10) -> 0.08333333333
S70: Peak Discharge Equation Coefficients for Rainfall Distribution | AA70: 69 | AE70: Peak Discharge Equation Coefficients for Rainfall Distribution | AM70: =IF(AND(RCN!$N78>0,RCN!$N78<2000),RCN!$N78*RCN!$O78,0) -> 0 | AO70: Peak Discharge Equation Coefficients for Rainfall Distribution | AW70: Peak Discharge Equation Coefficients for Rainfall Distribution | BE70: 97 | BF70: 0.062 | BG70: =0.2*((1000/BE70)-10) -> 0.0618556701
S71: TYPE IA Rainfall | AA71: 70 | AE71: TYPE III Rainfall | AM71: =IF(AND(RCN!$N79>0,RCN!$N79<2000),RCN!$N79*RCN!$O79,0) -> 0 | AO71: TYPE IA Rainfall | AW71: TYPE III Rainfall | BE71: 98 | BF71: 0.041 | BG71: =0.2*((1000/BE71)-10) -> 0.04081632653
U72: Ia/P | V72: C0 | W72: C1 | X72: C2 | AA72: 71 | AG72: Ia/P | AH72: C0 | AI72: C1 | AJ72: C2 | AM72: =IF(AND(RCN!$N80>0,RCN!$N80<2000),RCN!$N80*RCN!$O80,0) -> 0 | AQ72: Ia/P | AR72: C0 | AS72: C1 | AT72: C2 | AY72: Ia/P | AZ72: C0 | BA72: C1 | BB72: C2
T73: 1 | U73: 0.1 | V73: 2.0325 | W73: -0.31583 | X73: -0.13748 | AA73: 72 | AF73: 1 | AG73: 0.1 | AH73: 2.47317 | AI73: -0.51848 | AJ73: -0.17083 | AM73: =IF(AND(RCN!$N81>0,RCN!$N81<2000),RCN!$N81*RCN!$O81,0) -> 0 | AP73: 1 | AQ73: 0.1 | AR73: 2.0325 | AS73: -0.31583 | AT73: -0.13748 | AX73: 1 | AY73: 0.1 | AZ73: 2.47317 | BA73: -0.51848 | BB73: -0.17083
T74: 2 | U74: 0.2 | V74: 1.91978 | W74: -0.28215 | X74: -0.0702 | AA74: 73 | AF74: 2 | AG74: 0.3 | AH74: 2.39628 | AI74: -0.51202 | AJ74: -0.13245 | AM74: =IF(AND(RCN!$N82>0,RCN!$N82<2000),RCN!$N82*RCN!$O82,0) -> 0 | AP74: 2 | AQ74: 0.2 | AR74: 1.91978 | AS74: -0.28215 | AT74: -0.0702 | AX74: 2 | AY74: 0.3 | AZ74: 2.39628 | BA74: -0.51202 | BB74: -0.13245
T75: 3 | U75: 0.25 | V75: 1.83842 | W75: -0.25543 | X75: -0.02597 | AA75: 74 | AF75: 3 | AG75: 0.35 | AH75: 2.35477 | AI75: -0.49735 | AJ75: -0.11985 | AM75: =IF(AND(RCN!$N83>0,RCN!$N83<2000),RCN!$N83*RCN!$O83,0) -> 0 | AP75: 3 | AQ75: 0.25 | AR75: 1.83842 | AS75: -0.25543 | AT75: -0.02597 | AX75: 3 | AY75: 0.35 | AZ75: 2.35477 | BA75: -0.49735 | BB75: -0.11985
T76: 4 | U76: 0.3 | V76: 1.72657 | W76: -0.19826 | X76: 0.02633 | AA76: 75 | AF76: 4 | AG76: 0.4 | AH76: 2.30726 | AI76: -0.46541 | AJ76: -0.11094 | AM76: =IF(AND(RCN!$N84>0,RCN!$N84<2000),RCN!$N84*RCN!$O84,0) -> 0 | AP76: 4 | AQ76: 0.3 | AR76: 1.72657 | AS76: -0.19826 | AT76: 0.02633 | AX76: 4 | AY76: 0.4 | AZ76: 2.30726 | BA76: -0.46541 | BB76: -0.11094
T77: 5 | U77: 0.5 | V77: 1.66417 | W77: -0.031 | X77: 0 | AA77: 76 | AF77: 5 | AG77: 0.5 | AH77: 2.17772 | AI77: -0.36803 | AJ77: -0.09525 | AM77: =IF(AND(RCN!$N85>0,RCN!$N85<2000),RCN!$N85*RCN!$O85,0) -> 0 | AP77: 5 | AQ77: 0.5 | AR77: 1.66417 | AS77: -0.031 | AT77: 0 | AX77: 5 | AY77: 0.5 | AZ77: 2.17772 | BA77: -0.36803 | BB77: -0.09525
S78: Ia/P
AM79: =SUM(AM3:AM77) -> 0
S80: TYPE IA | AE80: TYPE III | AO80: TYPE IA | AW80: TYPE III
S82: 1 yr | T82: Ia/P | U82: C0 | V82: C1 | W82: C2 | AE82: 1 yr | AF82: Ia/P | AG82: C0 | AH82: C1 | AI82: C2 | AO82: 1 yr | AP82: Ia/P | AQ82: C0 | AR82: C1 | AS82: C2 | AW82: 1 yr | AX82: Ia/P | AY82: C0 | AZ82: C1 | BA82: C2
T83: =VLOOKUP($E$35,$T$73:$X$77,2) -> 0.5 | U83: =VLOOKUP($E$35,$T$73:$X$77,3) -> 1.66417 | V83: =VLOOKUP($E$35,$T$73:$X$77,4) -> -0.031 | W83: =VLOOKUP($E$35,$T$73:$X$77,5) -> 0 | X83: LOW | AF83: =VLOOKUP($E$37,$AF$73:$AJ$77,2) -> 0.5 | AG83: =VLOOKUP($E$37,$AF$73:$AJ$77,3) -> 2.17772 | AH83: =VLOOKUP($E$37,$AF$73:$AJ$77,4) -> -0.36803 | AI83: =VLOOKUP($E$37,$AF$73:$AJ$77,5) -> -0.09525 | AJ83: LOW | AP83: =VLOOKUP($J$35,$AP$73:$AT$77,2) -> 0.5 | AQ83: =VLOOKUP($J$35,$AP$73:$AT$77,3) -> 1.66417 | AR83: =VLOOKUP($J$35,$AP$73:$AT$77,4) -> -0.031 | AS83: =VLOOKUP($J$35,$AP$73:$AT$77,5) -> 0 | AT83: LOW | AX83: =VLOOKUP($J$37,$T$73:$X$77,2) -> 0.5 | AY83: =VLOOKUP($J$37,$AX$73:$BB$77,3) -> 2.17772 | AZ83: =VLOOKUP($J$37,$AX$73:$BB$77,4) -> -0.36803 | BA83: =VLOOKUP($J$37,$AX$73:$BB$77,5) -> -0.09525 | BB83: LOW
S84: =E21 ->  | T84: =VLOOKUP($E$35+1,$T$73:$X$77,2) -> 0.5 | U84: =VLOOKUP($E$35+1,$T$73:$X$77,3) -> 1.66417 | V84: =VLOOKUP($E$35+1,$T$73:$X$77,4) -> -0.031 | W84: =VLOOKUP($E$35+1,$T$73:$X$77,5) -> 0 | X84: HIGH | AE84: =E21 ->  | AF84: =VLOOKUP($E$37+1,$AF$73:$AJ$77,2) -> 0.5 | AG84: =VLOOKUP($E$37+1,$AF$73:$AJ$77,3) -> 2.17772 | AH84: =VLOOKUP($E$37+1,$AF$73:$AJ$77,4) -> -0.36803 | AI84: =VLOOKUP($E$37+1,$AF$73:$AJ$77,5) -> -0.09525 | AJ84: HIGH | AO84: =J21 ->  | AP84: =VLOOKUP($J$35+1,$AP$73:$AT$77,2) -> 0.5 | AQ84: =VLOOKUP($J$35+1,$AP$73:$AT$77,3) -> 1.66417 | AR84: =VLOOKUP($J$35+1,$AP$73:$AT$77,4) -> -0.031 | AS84: =VLOOKUP($J$35+1,$AP$73:$AT$77,5) -> 0 | AT84: HIGH | AW84: =J21 ->  | AX84: =VLOOKUP($J$37+1,$T$73:$X$77,2) -> 0.5 | AY84: =VLOOKUP($J$37+1,$AX$73:$BB$77,3) -> 2.17772 | AZ84: =VLOOKUP($J$37+1,$AX$73:$BB$77,4) -> -0.36803 | BA84: =VLOOKUP($J$37+1,$AX$73:$BB$77,5) -> -0.09525 | BB84: HIGH
T85: =($E$21-T83)/(T84-T83) ->  | U85: =IF($E$21<$U$73,$V$73,U83+(U84-U83)*T85) ->  | V85: =IF($E$21<$U$73,$W$73,V83+(V84-V83)*T85) ->  | W85: =IF($E$21<$U$73,$X$73,W83+(W84-W83)*T85) ->  | X85: INTERPOLATED | AF85: =($E$21-AF83)/(AF84-AF83) ->  | AG85: =IF($E$21<$AG$73,$AH$73,AG83+(AG84-AG83)*AF85) ->  | AH85: =IF($E$21<$AG$73,$AI$73,AH83+(AH84-AH83)*AF85) ->  | AI85: =IF($E$21<$AG$73,$AJ$73,AI83+(AI84-AI83)*AF85) ->  | AJ85: INTERPOLATED | AP85: =($J$21-AP83)/(AP84-AP83) ->  | AQ85: =IF($J$21<$AQ$73,$AR$73,AQ83+(AQ84-AQ83)*AP85) ->  | AR85: =IF($J$21<$AQ$73,$AS$73,AR83+(AR84-AR83)*AP85) ->  | AS85: =IF($J$21<$U$73,$AT$73,AS83+(AS84-AS83)*AP85) ->  | AT85: INTERPOLATED | AX85: =($J$21-AX83)/(AX84-AX83) ->  | AY85: =IF($J$21<$AX$83,$AY$83,AY83+(AY84-AY83)*AX85) ->  | AZ85: =IF($J$21<$AX$83,$BA$73,AZ83+(AZ84-AZ83)*AX85) ->  | BA85: =IF($J$21<$AX$73,$BB$73,BA83+(BA84-BA83)*AX85) ->  | BB85: INTERPOLATED
S87: 2 yr | T87: Ia/P | U87: C0 | V87: C1 | W87: C2 | AE87: 2 yr | AF87: Ia/P | AG87: C0 | AH87: C1 | AI87: C2 | AO87: 2 yr | AP87: Ia/P | AQ87: C0 | AR87: C1 | AS87: C2 | AW87: 2 yr | AX87: Ia/P | AY87: C0 | AZ87: C1 | BA87: C2
T88: =VLOOKUP($F$35,$T$73:$X$77,2) -> 0.5 | U88: =VLOOKUP($F$35,$T$73:$X$77,3) -> 1.66417 | V88: =VLOOKUP($F$35,$T$73:$X$77,4) -> -0.031 | W88: =VLOOKUP($F$35,$T$73:$X$77,5) -> 0 | X88: LOW | AF88: =VLOOKUP($F$37,$AF$73:$AJ$77,2) -> 0.5 | AG88: =VLOOKUP($F$37,$AF$73:$AJ$77,3) -> 2.17772 | AH88: =VLOOKUP($F$37,$AF$73:$AJ$77,4) -> -0.36803 | AI88: =VLOOKUP($F$37,$AF$73:$AJ$77,5) -> -0.09525 | AJ88: LOW | AP88: =VLOOKUP($K$35,$AP$73:$AT$77,2) -> 0.5 | AQ88: =VLOOKUP($K$35,$AP$73:$AT$77,3) -> 1.66417 | AR88: =VLOOKUP($K$35,$AP$73:$AT$77,4) -> -0.031 | AS88: =VLOOKUP($K$35,$T$73:$X$77,5) -> 0 | AT88: LOW | AX88: =VLOOKUP($K$37,$T$73:$X$77,2) -> 0.5 | AY88: =VLOOKUP($K$37,$AX$73:$BB$77,3) -> 2.17772 | AZ88: =VLOOKUP($K$37,$AX$73:$BB$77,4) -> -0.36803 | BA88: =VLOOKUP($K$37,$AX$73:$BB$77,5) -> -0.09525 | BB88: LOW
S89: =F21 ->  | T89: =VLOOKUP($F$35+1,$T$73:$X$77,2) -> 0.5 | U89: =VLOOKUP($F$35+1,$T$73:$X$77,3) -> 1.66417 | V89: =VLOOKUP($F$35+1,$T$73:$X$77,4) -> -0.031 | W89: =VLOOKUP($F$35+1,$T$73:$X$77,5) -> 0 | X89: HIGH | AE89: =F21 ->  | AF89: =VLOOKUP($F$37+1,$AF$73:$AJ$77,2) -> 0.5 | AG89: =VLOOKUP($F$37+1,$AF$73:$AJ$77,3) -> 2.17772 | AH89: =VLOOKUP($F$37+1,$AF$73:$AJ$77,4) -> -0.36803 | AI89: =VLOOKUP($F$37+1,$AF$73:$AJ$77,5) -> -0.09525 | AJ89: HIGH | AO89: =K21 ->  | AP89: =VLOOKUP($K$35+1,$AP$73:$AT$77,2) -> 0.5 | AQ89: =VLOOKUP($K$35+1,$AP$73:$AT$77,3) -> 1.66417 | AR89: =VLOOKUP($K$35+1,$AP$73:$AT$77,4) -> -0.031 | AS89: =VLOOKUP($K$35+1,$AP$73:$AT$77,5) -> 0 | AT89: HIGH | AW89: =K21 ->  | AX89: =VLOOKUP($K$37+1,$T$73:$X$77,2) -> 0.5 | AY89: =VLOOKUP($K$37+1,$AX$73:$BB$77,3) -> 2.17772 | AZ89: =VLOOKUP($K$37+1,$AX$73:$BB$77,4) -> -0.36803 | BA89: =VLOOKUP($K$37+1,$AX$73:$BB$77,5) -> -0.09525 | BB89: HIGH
T90: =($F$21-T88)/(T89-T88) ->  | U90: =IF($F$21<$U$73,$V$73,U88+(U89-U88)*T90) ->  | V90: =IF($F$21<$U$73,$W$73,V88+(V89-V88)*T90) ->  | W90: =IF($F$21<$U$73,$X$73,W88+(W89-W88)*T90) ->  | X90: INTERPOLATED | AF90: =($F$21-AF88)/(AF89-AF88) ->  | AG90: =IF($F$21<$AG$73,$AH$73,AG88+(AG89-AG88)*AF90) ->  | AH90: =IF($F$21<$AG$73,$AI$73,AH88+(AH89-AH88)*AF90) ->  | AI90: =IF($F$21<$AG$73,$AJ$73,AI88+(AI89-AI88)*AF90) ->  | AJ90: INTERPOLATED | AP90: =($K$21-AP88)/(AP89-AP88) ->  | AQ90: =IF($K$21<$AQ$73,$AR$73,AQ88+(AQ89-AQ88)*AP90) ->  | AR90: =IF($K$21<$AQ$73,$AS$73,AR88+(AR89-AR88)*AP90) ->  | AS90: =IF($K$21<$AQ$73,$AT$73,AS88+(AS89-AS88)*AP90) ->  | AT90: INTERPOLATED | AX90: =($K$21-AX88)/(AX89-AX88) ->  | AY90: =IF($K$21<$AX$88,$AY$88,AY88+(AY89-AY88)*AX90) ->  | AZ90: =IF($K$21<$AX$88,$BA$73,AZ88+(AZ89-AZ88)*AX90) ->  | BA90: =IF($K$21<$AX$88,$BB$73,BA88+(BA89-BA88)*AX90) ->  | BB90: INTERPOLATED
S92: 5 yr | T92: Ia/P | U92: C0 | V92: C1 | W92: C2 | AE92: 5 yr | AF92: Ia/P | AG92: C0 | AH92: C1 | AI92: C2 | AO92: 5 yr | AP92: Ia/P | AQ92: C0 | AR92: C1 | AS92: C2 | AW92: 5 yr | AX92: Ia/P | AY92: C0 | AZ92: C1 | BA92: C2
T93: =VLOOKUP($G$35,$T$73:$X$77,2) -> 0.5 | U93: =VLOOKUP($G$35,$T$73:$X$77,3) -> 1.66417 | V93: =VLOOKUP($G$35,$T$73:$X$77,4) -> -0.031 | W93: =VLOOKUP($G$35,$T$73:$X$77,5) -> 0 | X93: LOW | AF93: =VLOOKUP($G$37,$T$73:$X$77,2) -> 0.5 | AG93: =VLOOKUP($G$37,$AF$73:$AJ$77,3) -> 2.17772 | AH93: =VLOOKUP($G$37,$T$73:$X$77,4) -> -0.031 | AI93: =VLOOKUP($G$37,$T$73:$X$77,5) -> 0 | AJ93: LOW | AP93: =VLOOKUP($G$35,$AP$73:$AT$77,2) -> 0.5 | AQ93: =VLOOKUP($G$35,$AP$73:$AT$77,3) -> 1.66417 | AR93: =VLOOKUP($G$35,$AP$73:$AT$77,4) -> -0.031 | AS93: =VLOOKUP($G$35,$AP$73:$AT$77,5) -> 0 | AT93: LOW | AX93: =VLOOKUP($G$37,$T$73:$X$77,2) -> 0.5 | AY93: =VLOOKUP($G$37,$T$73:$X$77,3) -> 1.66417 | AZ93: =VLOOKUP($G$37,$T$73:$X$77,4) -> -0.031 | BA93: =VLOOKUP($G$37,$T$73:$X$77,5) -> 0 | BB93: LOW
S94: 0 | T94: =VLOOKUP($G$35+1,$T$73:$X$77,2) -> 0.5 | U94: =VLOOKUP($G$35+1,$T$73:$X$77,3) -> 1.66417 | V94: =VLOOKUP($G$35+1,$T$73:$X$77,4) -> -0.031 | W94: =VLOOKUP($G$35+1,$T$73:$X$77,5) -> 0 | X94: HIGH | AE94: 0 | AF94: =VLOOKUP($G$37+1,$T$73:$X$77,2) -> 0.5 | AG94: =VLOOKUP($G$37+1,$AF$73:$AJ$77,3) -> 2.17772 | AH94: =VLOOKUP($G$37+1,$T$73:$X$77,4) -> -0.031 | AI94: =VLOOKUP($G$37+1,$T$73:$X$77,5) -> 0 | AJ94: HIGH | AO94: =AC20 -> 0 | AP94: =VLOOKUP($G$35+1,$AP$73:$AT$77,2) -> 0.5 | AQ94: =VLOOKUP($G$35+1,$AP$73:$AT$77,3) -> 1.66417 | AR94: =VLOOKUP($G$35+1,$AP$73:$AT$77,4) -> -0.031 | AS94: =VLOOKUP($G$35+1,$AP$73:$AT$77,5) -> 0 | AT94: HIGH | AW94: =Y20 -> 0 | AX94: =VLOOKUP($G$37+1,$T$73:$X$77,2) -> 0.5 | AY94: =VLOOKUP($G$37+1,$T$73:$X$77,3) -> 1.66417 | AZ94: =VLOOKUP($G$37+1,$T$73:$X$77,4) -> -0.031 | BA94: =VLOOKUP($G$37+1,$T$73:$X$77,5) -> 0 | BB94: HIGH
T95: =($G$21-T93)/(T94-T93) ->  | U95: =IF($G$21<$U$73,$V$73,U93+(U94-U93)*T95) ->  | V95: =IF($G$21<$U$73,$W$73,V93+(V94-V93)*T95) ->  | W95: =IF($G$21<$U$73,$X$73,W93+(W94-W93)*T95) ->  | X95: INTERPOLATED | AF95: =($G$21-AF93)/(AF94-AF93) ->  | AG95: =IF($G$21<$U$73,$V$73,AG93+(AG94-AG93)*AF95) ->  | AH95: =IF($G$21<$U$73,$W$73,AH93+(AH94-AH93)*AF95) ->  | AI95: =IF($G$21<$U$73,$X$73,AI93+(AI94-AI93)*AF95) ->  | AJ95: INTERPOLATED | AP95: =($G$21-AP93)/(AP94-AP93) ->  | AQ95: =IF($G$21<$AQ$73,$AR$73,AQ93+(AQ94-AQ93)*AP95) ->  | AR95: =IF($G$21<$AQ$73,$AS$73,AR93+(AR94-AR93)*AP95) ->  | AS95: =IF($G$21<$AQ$73,$AT$73,AS93+(AS94-AS93)*AP95) ->  | AT95: INTERPOLATED | AX95: =($G$21-AX93)/(AX94-AX93) ->  | AY95: =IF($G$21<$U$73,$V$73,AY93+(AY94-AY93)*AX95) ->  | AZ95: =IF($G$21<$U$73,$W$73,AZ93+(AZ94-AZ93)*AX95) ->  | BA95: =IF($G$21<$U$73,$X$73,BA93+(BA94-BA93)*AX95) ->  | BB95: INTERPOLATED
S97: 10 yr | T97: Ia/P | U97: C0 | V97: C1 | W97: C2 | AE97: 10 yr | AF97: Ia/P | AG97: C0 | AH97: C1 | AI97: C2 | AO97: 10 yr | AP97: Ia/P | AQ97: C0 | AR97: C1 | AS97: C2 | AW97: 10 yr | AX97: Ia/P | AY97: C0 | AZ97: C1 | BA97: C2
T98: =VLOOKUP($G$35,$T$73:$X$77,2) -> 0.5 | U98: =VLOOKUP($G$35,$T$73:$X$77,3) -> 1.66417 | V98: =VLOOKUP($G$35,$T$73:$X$77,4) -> -0.031 | W98: =VLOOKUP($G$35,$T$73:$X$77,5) -> 0 | X98: LOW | AF98: =VLOOKUP($G$37,$AF$73:$AJ$77,2) -> 0.5 | AG98: =VLOOKUP($G$37,$AF$73:$AJ$77,3) -> 2.17772 | AH98: =VLOOKUP($G$37,$AF$73:$AJ$77,4) -> -0.36803 | AI98: =VLOOKUP($G$37,$AF$73:$AJ$77,5) -> -0.09525 | AJ98: LOW | AP98: =VLOOKUP($L$35,$AP$73:$AT$77,2) -> 0.5 | AQ98: =VLOOKUP($L$35,$AP$73:$AT$77,3) -> 1.66417 | AR98: =VLOOKUP($L$35,$AP$73:$AT$77,4) -> -0.031 | AS98: =VLOOKUP($L$35,$AP$73:$AT$77,5) -> 0 | AT98: LOW | AX98: =VLOOKUP($L$37,$T$73:$X$77,2) -> 0.5 | AY98: =VLOOKUP($L$37,$AX$73:$BB$77,3) -> 2.17772 | AZ98: =VLOOKUP($L$37,$AX$73:$BB$77,4) -> -0.36803 | BA98: =VLOOKUP($L$37,$AX$73:$BB$77,5) -> -0.09525 | BB98: LOW
S99: =G21 ->  | T99: =VLOOKUP($G$35+1,$T$73:$X$77,2) -> 0.5 | U99: =VLOOKUP($G$35+1,$T$73:$X$77,3) -> 1.66417 | V99: =VLOOKUP($G$35+1,$T$73:$X$77,4) -> -0.031 | W99: =VLOOKUP($G$35+1,$T$73:$X$77,5) -> 0 | X99: HIGH | AE99: =G21 ->  | AF99: =VLOOKUP($G$37+1,$AF$73:$AJ$77,2) -> 0.5 | AG99: =VLOOKUP($G$37+1,$AF$73:$AJ$77,3) -> 2.17772 | AH99: =VLOOKUP($G$37+1,$AF$73:$AJ$77,4) -> -0.36803 | AI99: =VLOOKUP($G$37+1,$AF$73:$AJ$77,5) -> -0.09525 | AJ99: HIGH | AO99: =L21 ->  | AP99: =VLOOKUP($L$35+1,$AP$73:$AT$77,2) -> 0.5 | AQ99: =VLOOKUP($L$35+1,$AP$73:$AT$77,3) -> 1.66417 | AR99: =VLOOKUP($L$35+1,$AP$73:$AT$77,4) -> -0.031 | AS99: =VLOOKUP($L$35+1,$AP$73:$AT$77,5) -> 0 | AT99: HIGH | AW99: =L21 ->  | AX99: =VLOOKUP($L$37+1,$T$73:$X$77,2) -> 0.5 | AY99: =VLOOKUP($L$37+1,$AX$73:$BB$77,3) -> 2.17772 | AZ99: =VLOOKUP($L$37+1,$AX$73:$BB$77,4) -> -0.36803 | BA99: =VLOOKUP($L$37+1,$AX$73:$BB$77,5) -> -0.09525 | BB99: HIGH
T100: =($G$21-T98)/(T99-T98) ->  | U100: =IF($G$21<$U$73,$V$73,U98+(U99-U98)*T100) ->  | V100: =IF($G$21<$U$73,$W$73,V98+(V99-V98)*T100) ->  | W100: =IF($G$21<$U$73,$X$73,W98+(W99-W98)*T100) ->  | X100: INTERPOLATED | AF100: =($G$21-AF98)/(AF99-AF98) ->  | AG100: =IF($G$21<$AG$73,$AH$73,AG98+(AG99-AG98)*AF100) ->  | AH100: =IF($G$21<$AG$73,$AI$73,AH98+(AH99-AH98)*AF100) ->  | AI100: =IF($G$21<$AG$73,$AJ$73,AI98+(AI99-AI98)*AF100) ->  | AJ100: INTERPOLATED | AP100: =($L$21-AP98)/(AP99-AP98) ->  | AQ100: =IF($L$21<$AQ$73,$AR$73,AQ98+(AQ99-AQ98)*AP100) ->  | AR100: =IF($L$21<$AQ$73,$AS$73,AR98+(AR99-AR98)*AP100) ->  | AS100: =IF($L$21<$AQ$73,$AT$73,AS98+(AS99-AS98)*AP100) ->  | AT100: INTERPOLATED | AX100: =($L$21-AX98)/(AX99-AX98) ->  | AY100: =IF($L$21<$AX$98,$AY$88,AY98+(AY99-AY98)*AX100) ->  | AZ100: =IF($L$21<$AX$98,$BA$73,AZ98+(AZ99-AZ98)*AX100) ->  | BA100: =IF($L$21<$AX$98,$BB$73,BA98+(BA99-BA98)*AX100) ->  | BB100: INTERPOLATED
S102: 25 yr | T102: Ia/P | U102: C0 | V102: C1 | W102: C2 | AE102: 25 yr | AF102: Ia/P | AG102: C0 | AH102: C1 | AI102: C2 | AO102: 25 yr | AP102: Ia/P | AQ102: C0 | AR102: C1 | AS102: C2 | AW102: 25 yr | AX102: Ia/P | AY102: C0 | AZ102: C1 | BA102: C2
T103: =VLOOKUP($H$35,$T$73:$X$77,2) -> 0.5 | U103: =VLOOKUP($H$35,$T$73:$X$77,3) -> 1.66417 | V103: =VLOOKUP($H$35,$T$73:$X$77,4) -> -0.031 | W103: =VLOOKUP($H$35,$T$73:$X$77,5) -> 0 | X103: LOW | AF103: =VLOOKUP($H$37,$AF$73:$AJ$77,2) -> 0.5 | AG103: =VLOOKUP($H$37,$AF$73:$AJ$77,3) -> 2.17772 | AH103: =VLOOKUP($H$37,$AF$73:$AJ$77,4) -> -0.36803 | AI103: =VLOOKUP($H$37,$AF$73:$AJ$77,5) -> -0.09525 | AJ103: LOW | AP103: =VLOOKUP($M$35,$AP$73:$AT$77,2) -> 0.5 | AQ103: =VLOOKUP($M$35,$AP$73:$AT$77,3) -> 1.66417 | AR103: =VLOOKUP($M$35,$AP$73:$AT$77,4) -> -0.031 | AS103: =VLOOKUP($M$35,$AP$73:$AT$77,5) -> 0 | AT103: LOW | AX103: =VLOOKUP($M$37,$T$73:$X$77,2) -> 0.5 | AY103: =VLOOKUP($M$37,$AX$73:$BB$77,3) -> 2.17772 | AZ103: =VLOOKUP($M$37,$AX$73:$BB$77,4) -> -0.36803 | BA103: =VLOOKUP($M$37,$AX$73:$BB$77,5) -> -0.09525 | BB103: LOW
S104: =H21 ->  | T104: =VLOOKUP($H$35+1,$T$73:$X$77,2) -> 0.5 | U104: =VLOOKUP($H$35+1,$T$73:$X$77,3) -> 1.66417 | V104: =VLOOKUP($H$35+1,$T$73:$X$77,4) -> -0.031 | W104: =VLOOKUP($H$35+1,$T$73:$X$77,5) -> 0 | X104: HIGH | AE104: =H21 ->  | AF104: =VLOOKUP($H$37+1,$AF$73:$AJ$77,2) -> 0.5 | AG104: =VLOOKUP($H$37+1,$AF$73:$AJ$77,3) -> 2.17772 | AH104: =VLOOKUP($H$37+1,$AF$73:$AJ$77,4) -> -0.36803 | AI104: =VLOOKUP($H$37+1,$AF$73:$AJ$77,5) -> -0.09525 | AJ104: HIGH | AO104: =M21 ->  | AP104: =VLOOKUP($M$35+1,$AP$73:$AT$77,2) -> 0.5 | AQ104: =VLOOKUP($M$35+1,$AP$73:$AT$77,3) -> 1.66417 | AR104: =VLOOKUP($M$35+1,$AP$73:$AT$77,4) -> -0.031 | AS104: =VLOOKUP($M$35+1,$AP$73:$AT$77,5) -> 0 | AT104: HIGH | AW104: =M21 ->  | AX104: =VLOOKUP($M$37+1,$T$73:$X$77,2) -> 0.5 | AY104: =VLOOKUP($M$37+1,$AX$73:$BB$77,3) -> 2.17772 | AZ104: =VLOOKUP($M$37+1,$AX$73:$BB$77,4) -> -0.36803 | BA104: =VLOOKUP($M$37+1,$AX$73:$BB$77,5) -> -0.09525 | BB104: HIGH
T105: =($H$21-T103)/(T104-T103) ->  | U105: =IF($H$21<$U$73,$V$73,U103+(U104-U103)*T105) ->  | V105: =IF($H$21<$U$73,$W$73,V103+(V104-V103)*T105) ->  | W105: =IF($H$21<$U$73,$X$73,W103+(W104-W103)*T105) ->  | X105: INTERPOLATED | AF105: =($H$21-AF103)/(AF104-AF103) ->  | AG105: =IF($H$21<$AG$73,$AH$73,AG103+(AG104-AG103)*AF105) ->  | AH105: =IF($H$21<$AG$73,$AI$73,AH103+(AH104-AH103)*AF105) ->  | AI105: =IF($H$21<$AG$73,$AJ$73,AI103+(AI104-AI103)*AF105) ->  | AJ105: INTERPOLATED | AP105: =($M$21-AP103)/(AP104-AP103) ->  | AQ105: =IF($M$21<$AQ$73,$AR$73,AQ103+(AQ104-AQ103)*AP105) ->  | AR105: =IF($M$21<$AQ$73,$AS$73,AR103+(AR104-AR103)*AP105) ->  | AS105: =IF($M$21<$AQ$73,$AT$73,AS103+(AS104-AS103)*AP105) ->  | AT105: INTERPOLATED | AX105: =($M$21-AX103)/(AX104-AX103) ->  | AY105: =IF($M$21<$AX$103,$AY$88,AY103+(AY104-AY103)*AX105) ->  | AZ105: =IF($M$21<$AX$103,$BA$73,AZ103+(AZ104-AZ103)*AX105) ->  | BA105: =IF($M$21<$AX$103,$BB$73,BA103+(BA104-BA103)*AX105) ->  | BB105: INTERPOLATED
S107: 50 yr | T107: Ia/P | U107: C0 | V107: C1 | W107: C2 | AE107: 50 yr | AF107: Ia/P | AG107: C0 | AH107: C1 | AI107: C2 | AO107: 50 yr | AP107: Ia/P | AQ107: C0 | AR107: C1 | AS107: C2 | AW107: 50 yr | AX107: Ia/P | AY107: C0 | AZ107: C1 | BA107: C2
T108: =VLOOKUP($I$35,$T$73:$X$77,2) -> 0.5 | U108: =VLOOKUP($I$35,$T$73:$X$77,3) -> 1.66417 | V108: =VLOOKUP($I$35,$T$73:$X$77,4) -> -0.031 | W108: =VLOOKUP($I$35,$T$73:$X$77,5) -> 0 | X108: LOW | AF108: =VLOOKUP($I$37,$AF$73:$AJ$77,2) -> 0.5 | AG108: =VLOOKUP($I$37,$AF$73:$AJ$77,3) -> 2.17772 | AH108: =VLOOKUP($I$37,$AF$73:$AJ$77,4) -> -0.36803 | AI108: =VLOOKUP($I$37,$AF$73:$AJ$77,5) -> -0.09525 | AJ108: LOW | AP108: =VLOOKUP($N$35,$AP$73:$AT$77,2) -> 0.5 | AQ108: =VLOOKUP($N$35,$AP$73:$AT$77,3) -> 1.66417 | AR108: =VLOOKUP($N$35,$AP$73:$AT$77,4) -> -0.031 | AS108: =VLOOKUP($N$35,$AP$73:$AT$77,5) -> 0 | AT108: LOW | AX108: =VLOOKUP($N$37,$T$73:$X$77,2) -> 0.5 | AY108: =VLOOKUP($N$37,$AX$73:$BB$77,3) -> 2.17772 | AZ108: =VLOOKUP($N$37,$AX$73:$BB$77,4) -> -0.36803 | BA108: =VLOOKUP($N$37,$AX$73:$BB$77,5) -> -0.09525 | BB108: LOW
S109: =I21 ->  | T109: =VLOOKUP($I$35+1,$T$73:$X$77,2) -> 0.5 | U109: =VLOOKUP($I$35+1,$T$73:$X$77,3) -> 1.66417 | V109: =VLOOKUP($I$35+1,$T$73:$X$77,4) -> -0.031 | W109: =VLOOKUP($I$35+1,$T$73:$X$77,5) -> 0 | X109: HIGH | AE109: =I21 ->  | AF109: =VLOOKUP($I$37+1,$AF$73:$AJ$77,2) -> 0.5 | AG109: =VLOOKUP($I$37+1,$AF$73:$AJ$77,3) -> 2.17772 | AH109: =VLOOKUP($I$37+1,$AF$73:$AJ$77,4) -> -0.36803 | AI109: =VLOOKUP($I$37+1,$AF$73:$AJ$77,5) -> -0.09525 | AJ109: HIGH | AO109: =N21 ->  | AP109: =VLOOKUP($N$35+1,$AP$73:$AT$77,2) -> 0.5 | AQ109: =VLOOKUP($N$35+1,$AP$73:$AT$77,3) -> 1.66417 | AR109: =VLOOKUP($N$35+1,$AP$73:$AT$77,4) -> -0.031 | AS109: =VLOOKUP($N$35+1,$AP$73:$AT$77,5) -> 0 | AT109: HIGH | AW109: =N21 ->  | AX109: =VLOOKUP($N$37+1,$T$73:$X$77,2) -> 0.5 | AY109: =VLOOKUP($N$37+1,$AX$73:$BB$77,3) -> 2.17772 | AZ109: =VLOOKUP($N$37+1,$AX$73:$BB$77,4) -> -0.36803 | BA109: =VLOOKUP($N$37+1,$AX$73:$BB$77,5) -> -0.09525 | BB109: HIGH
T110: =($I$21-T108)/(T109-T108) ->  | U110: =IF($I$21<$U$73,$V$73,U108+(U109-U108)*T110) ->  | V110: =IF($I$21<$U$73,$W$73,V108+(V109-V108)*T110) ->  | W110: =IF($I$21<$U$73,$X$73,W108+(W109-W108)*T110) ->  | X110: INTERPOLATED | AF110: =($I$21-AF108)/(AF109-AF108) ->  | AG110: =IF($I$21<$AG$73,$AH$73,AG108+(AG109-AG108)*AF110) ->  | AH110: =IF($I$21<$AG$73,$AI$73,AH108+(AH109-AH108)*AF110) ->  | AI110: =IF($I$21<$AG$73,$AJ$73,AI108+(AI109-AI108)*AF110) ->  | AJ110: INTERPOLATED | AP110: =($N$21-AP108)/(AP109-AP108) ->  | AQ110: =IF($N$21<$AQ$73,$AR$73,AQ108+(AQ109-AQ108)*AP110) ->  | AR110: =IF($N$21<$AQ$73,$AS$73,AR108+(AR109-AR108)*AP110) ->  | AS110: =IF($N$21<$AQ$73,$AT$73,AS108+(AS109-AS108)*AP110) ->  | AT110: INTERPOLATED | AX110: =($N$21-AX108)/(AX109-AX108) ->  | AY110: =IF($N$21<$AX$108,$AY$88,AY108+(AY109-AY108)*AX110) ->  | AZ110: =IF($N$21<$AX$108,$BA$73,AZ108+(AZ109-AZ108)*AX110) ->  | BA110: =IF($N$21<$AX$108,$BB$73,BA108+(BA109-BA108)*AX110) ->  | BB110: INTERPOLATED
S112: 100 yr | T112: Ia/P | U112: C0 | V112: C1 | W112: C2 | AE112: 100 yr | AF112: Ia/P | AG112: C0 | AH112: C1 | AI112: C2 | AO112: 100 yr | AP112: Ia/P | AQ112: C0 | AR112: C1 | AS112: C2 | AW112: 100 yr | AX112: Ia/P | AY112: C0 | AZ112: C1 | BA112: C2
T113: =VLOOKUP($K$35,$T$73:$X$77,2) -> 0.5 | U113: =VLOOKUP($K$35,$T$73:$X$77,3) -> 1.66417 | V113: =VLOOKUP($K$35,$T$73:$X$77,4) -> -0.031 | W113: =VLOOKUP($K$35,$T$73:$X$77,5) -> 0 | X113: LOW | AF113: =VLOOKUP($K$37,$T$73:$X$77,2) -> 0.5 | AG113: =VLOOKUP($K$37,$T$73:$X$77,3) -> 1.66417 | AH113: =VLOOKUP($K$37,$T$73:$X$77,4) -> -0.031 | AI113: =VLOOKUP($K$37,$T$73:$X$77,5) -> 0 | AJ113: LOW | AP113: =VLOOKUP($K$35,$T$73:$X$77,2) -> 0.5 | AQ113: =VLOOKUP($K$35,$T$73:$X$77,3) -> 1.66417 | AR113: =VLOOKUP($K$35,$T$73:$X$77,4) -> -0.031 | AS113: =VLOOKUP($K$35,$T$73:$X$77,5) -> 0 | AT113: LOW | AX113: =VLOOKUP($K$37,$T$73:$X$77,2) -> 0.5 | AY113: =VLOOKUP($K$37,$T$73:$X$77,3) -> 1.66417 | AZ113: =VLOOKUP($K$37,$T$73:$X$77,4) -> -0.031 | BA113: =VLOOKUP($K$37,$T$73:$X$77,5) -> 0 | BB113: LOW
S114: 0 | T114: =VLOOKUP($K$35+1,$T$73:$X$77,2) -> 0.5 | U114: =VLOOKUP($K$35+1,$T$73:$X$77,3) -> 1.66417 | V114: =VLOOKUP($K$35+1,$T$73:$X$77,4) -> -0.031 | W114: =VLOOKUP($K$35+1,$T$73:$X$77,5) -> 0 | X114: HIGH | AE114: 0 | AF114: =VLOOKUP($K$37+1,$T$73:$X$77,2) -> 0.5 | AG114: =VLOOKUP($K$37+1,$T$73:$X$77,3) -> 1.66417 | AH114: =VLOOKUP($K$37+1,$T$73:$X$77,4) -> -0.031 | AI114: =VLOOKUP($K$37+1,$T$73:$X$77,5) -> 0 | AJ114: HIGH | AO114: 0 | AP114: =VLOOKUP($K$35+1,$T$73:$X$77,2) -> 0.5 | AQ114: =VLOOKUP($K$35+1,$T$73:$X$77,3) -> 1.66417 | AR114: =VLOOKUP($K$35+1,$T$73:$X$77,4) -> -0.031 | AS114: =VLOOKUP($K$35+1,$T$73:$X$77,5) -> 0 | AT114: HIGH | AW114: 0 | AX114: =VLOOKUP($K$37+1,$T$73:$X$77,2) -> 0.5 | AY114: =VLOOKUP($K$37+1,$T$73:$X$77,3) -> 1.66417 | AZ114: =VLOOKUP($K$37+1,$T$73:$X$77,4) -> -0.031 | BA114: =VLOOKUP($K$37+1,$T$73:$X$77,5) -> 0 | BB114: HIGH
T115: =($K$21-T113)/(T114-T113) ->  | U115: =IF($K$21<$U$73,$V$73,U113+(U114-U113)*T115) ->  | V115: =IF($K$21<$U$73,$W$73,V113+(V114-V113)*T115) ->  | W115: =IF($K$21<$U$73,$X$73,W113+(W114-W113)*T115) ->  | X115: INTERPOLATED | AF115: =($K$21-AF113)/(AF114-AF113) ->  | AG115: =IF($K$21<$U$73,$V$73,AG113+(AG114-AG113)*AF115) ->  | AH115: =IF($K$21<$U$73,$W$73,AH113+(AH114-AH113)*AF115) ->  | AI115: =IF($K$21<$U$73,$X$73,AI113+(AI114-AI113)*AF115) ->  | AJ115: INTERPOLATED | AP115: =($K$21-AP113)/(AP114-AP113) ->  | AQ115: =IF($K$21<$U$73,$V$73,AQ113+(AQ114-AQ113)*AP115) ->  | AR115: =IF($K$21<$U$73,$W$73,AR113+(AR114-AR113)*AP115) ->  | AS115: =IF($K$21<$U$73,$X$73,AS113+(AS114-AS113)*AP115) ->  | AT115: INTERPOLATED | AX115: =($K$21-AX113)/(AX114-AX113) ->  | AY115: =IF($K$21<$U$73,$V$73,AY113+(AY114-AY113)*AX115) ->  | AZ115: =IF($K$21<$U$73,$W$73,AZ113+(AZ114-AZ113)*AX115) ->  | BA115: =IF($K$21<$U$73,$X$73,BA113+(BA114-BA113)*AX115) ->  | BB115: INTERPOLATED
S117: 200 yr | T117: Ia/P | U117: C0 | V117: C1 | W117: C2 | AE117: 200 yr | AF117: Ia/P | AG117: C0 | AH117: C1 | AI117: C2 | AO117: 200 yr | AP117: Ia/P | AQ117: C0 | AR117: C1 | AS117: C2 | AW117: 200 yr | AX117: Ia/P | AY117: C0 | AZ117: C1 | BA117: C2
T118: =VLOOKUP($L$35,$T$73:$X$77,2) -> 0.5 | U118: =VLOOKUP($L$35,$T$73:$X$77,3) -> 1.66417 | V118: =VLOOKUP($L$35,$T$73:$X$77,4) -> -0.031 | W118: =VLOOKUP($L$35,$T$73:$X$77,5) -> 0 | X118: LOW | AF118: =VLOOKUP($L$37,$T$73:$X$77,2) -> 0.5 | AG118: =VLOOKUP($L$37,$T$73:$X$77,3) -> 1.66417 | AH118: =VLOOKUP($L$37,$T$73:$X$77,4) -> -0.031 | AI118: =VLOOKUP($L$37,$T$73:$X$77,5) -> 0 | AJ118: LOW | AP118: =VLOOKUP($L$35,$T$73:$X$77,2) -> 0.5 | AQ118: =VLOOKUP($L$35,$T$73:$X$77,3) -> 1.66417 | AR118: =VLOOKUP($L$35,$T$73:$X$77,4) -> -0.031 | AS118: =VLOOKUP($L$35,$T$73:$X$77,5) -> 0 | AT118: LOW | AX118: =VLOOKUP($L$37,$T$73:$X$77,2) -> 0.5 | AY118: =VLOOKUP($L$37,$T$73:$X$77,3) -> 1.66417 | AZ118: =VLOOKUP($L$37,$T$73:$X$77,4) -> -0.031 | BA118: =VLOOKUP($L$37,$T$73:$X$77,5) -> 0 | BB118: LOW
S119: 0 | T119: =VLOOKUP($J$35+1,$T$73:$X$77,2) -> 0.5 | U119: =VLOOKUP($L$35+1,$T$73:$X$77,3) -> 1.66417 | V119: =VLOOKUP($L$35+1,$T$73:$X$77,4) -> -0.031 | W119: =VLOOKUP($L$35+1,$T$73:$X$77,5) -> 0 | X119: HIGH | AE119: 0 | AF119: =VLOOKUP($J$37+1,$T$73:$X$77,2) -> 0.5 | AG119: =VLOOKUP($L$37+1,$T$73:$X$77,3) -> 1.66417 | AH119: =VLOOKUP($L$37+1,$T$73:$X$77,4) -> -0.031 | AI119: =VLOOKUP($L$37+1,$T$73:$X$77,5) -> 0 | AJ119: HIGH | AO119: 0 | AP119: =VLOOKUP($J$35+1,$T$73:$X$77,2) -> 0.5 | AQ119: =VLOOKUP($L$35+1,$T$73:$X$77,3) -> 1.66417 | AR119: =VLOOKUP($L$35+1,$T$73:$X$77,4) -> -0.031 | AS119: =VLOOKUP($L$35+1,$T$73:$X$77,5) -> 0 | AT119: HIGH | AW119: 0 | AX119: =VLOOKUP($J$37+1,$T$73:$X$77,2) -> 0.5 | AY119: =VLOOKUP($L$37+1,$T$73:$X$77,3) -> 1.66417 | AZ119: =VLOOKUP($L$37+1,$T$73:$X$77,4) -> -0.031 | BA119: =VLOOKUP($L$37+1,$T$73:$X$77,5) -> 0 | BB119: HIGH
T120: =($L$21-T118)/(T119-T118) ->  | U120: =IF($L$21<$U$73,$V$73,U118+(U119-U118)*T120) ->  | V120: =IF($L$21<$U$73,$W$73,V118+(V119-V118)*T120) ->  | W120: =IF($L$21<$U$73,$X$73,W118+(W119-W118)*T120) ->  | X120: INTERPOLATED | AF120: =($L$21-AF118)/(AF119-AF118) ->  | AG120: =IF($L$21<$U$73,$V$73,AG118+(AG119-AG118)*AF120) ->  | AH120: =IF($L$21<$U$73,$W$73,AH118+(AH119-AH118)*AF120) ->  | AI120: =IF($L$21<$U$73,$X$73,AI118+(AI119-AI118)*AF120) ->  | AJ120: INTERPOLATED | AP120: =($L$21-AP118)/(AP119-AP118) ->  | AQ120: =IF($L$21<$U$73,$V$73,AQ118+(AQ119-AQ118)*AP120) ->  | AR120: =IF($L$21<$U$73,$W$73,AR118+(AR119-AR118)*AP120) ->  | AS120: =IF($L$21<$U$73,$X$73,AS118+(AS119-AS118)*AP120) ->  | AT120: INTERPOLATED | AX120: =($L$21-AX118)/(AX119-AX118) ->  | AY120: =IF($L$21<$U$73,$V$73,AY118+(AY119-AY118)*AX120) ->  | AZ120: =IF($L$21<$U$73,$W$73,AZ118+(AZ119-AZ118)*AX120) ->  | BA120: =IF($L$21<$U$73,$X$73,BA118+(BA119-BA118)*AX120) ->  | BB120: INTERPOLATED
S122: 500 yr | T122: Ia/P | U122: C0 | V122: C1 | W122: C2 | AE122: 500 yr | AF122: Ia/P | AG122: C0 | AH122: C1 | AI122: C2 | AO122: 500 yr | AP122: Ia/P | AQ122: C0 | AR122: C1 | AS122: C2 | AW122: 500 yr | AX122: Ia/P | AY122: C0 | AZ122: C1 | BA122: C2
T123: =VLOOKUP($M$35,$T$73:$X$77,2) -> 0.5 | U123: =VLOOKUP($M$35,$T$73:$X$77,3) -> 1.66417 | V123: =VLOOKUP($M$35,$T$73:$X$77,4) -> -0.031 | W123: =VLOOKUP($M$35,$T$73:$X$77,5) -> 0 | X123: LOW | AF123: =VLOOKUP($M$37,$T$73:$X$77,2) -> 0.5 | AG123: =VLOOKUP($M$37,$T$73:$X$77,3) -> 1.66417 | AH123: =VLOOKUP($M$37,$T$73:$X$77,4) -> -0.031 | AI123: =VLOOKUP($M$37,$T$73:$X$77,5) -> 0 | AJ123: LOW | AP123: =VLOOKUP($M$35,$T$73:$X$77,2) -> 0.5 | AQ123: =VLOOKUP($M$35,$T$73:$X$77,3) -> 1.66417 | AR123: =VLOOKUP($M$35,$T$73:$X$77,4) -> -0.031 | AS123: =VLOOKUP($M$35,$T$73:$X$77,5) -> 0 | AT123: LOW | AX123: =VLOOKUP($M$37,$T$73:$X$77,2) -> 0.5 | AY123: =VLOOKUP($M$37,$T$73:$X$77,3) -> 1.66417 | AZ123: =VLOOKUP($M$37,$T$73:$X$77,4) -> -0.031 | BA123: =VLOOKUP($M$37,$T$73:$X$77,5) -> 0 | BB123: LOW
S124: 0 | T124: =VLOOKUP($M$35+1,$T$73:$X$77,2) -> 0.5 | U124: =VLOOKUP($M$35+1,$T$73:$X$77,3) -> 1.66417 | V124: =VLOOKUP($M$35+1,$T$73:$X$77,4) -> -0.031 | W124: =VLOOKUP($M$35+1,$T$73:$X$77,5) -> 0 | X124: HIGH | AE124: 0 | AF124: =VLOOKUP($M$37+1,$T$73:$X$77,2) -> 0.5 | AG124: =VLOOKUP($M$37+1,$T$73:$X$77,3) -> 1.66417 | AH124: =VLOOKUP($M$37+1,$T$73:$X$77,4) -> -0.031 | AI124: =VLOOKUP($M$37+1,$T$73:$X$77,5) -> 0 | AJ124: HIGH | AO124: 0 | AP124: =VLOOKUP($M$35+1,$T$73:$X$77,2) -> 0.5 | AQ124: =VLOOKUP($M$35+1,$T$73:$X$77,3) -> 1.66417 | AR124: =VLOOKUP($M$35+1,$T$73:$X$77,4) -> -0.031 | AS124: =VLOOKUP($M$35+1,$T$73:$X$77,5) -> 0 | AT124: HIGH | AW124: 0 | AX124: =VLOOKUP($M$37+1,$T$73:$X$77,2) -> 0.5 | AY124: =VLOOKUP($M$37+1,$T$73:$X$77,3) -> 1.66417 | AZ124: =VLOOKUP($M$37+1,$T$73:$X$77,4) -> -0.031 | BA124: =VLOOKUP($M$37+1,$T$73:$X$77,5) -> 0 | BB124: HIGH
T125: =($M$21-T123)/(T124-T123) ->  | U125: =IF($M$21<$U$73,$V$73,U123+(U124-U123)*T125) ->  | V125: =IF($M$21<$U$73,$W$73,V123+(V124-V123)*T125) ->  | W125: =IF($M$21<$U$73,$X$73,W123+(W124-W123)*T125) ->  | X125: INTERPOLATED | AF125: =($M$21-AF123)/(AF124-AF123) ->  | AG125: =IF($M$21<$U$73,$V$73,AG123+(AG124-AG123)*AF125) ->  | AH125: =IF($M$21<$U$73,$W$73,AH123+(AH124-AH123)*AF125) ->  | AI125: =IF($M$21<$U$73,$X$73,AI123+(AI124-AI123)*AF125) ->  | AJ125: INTERPOLATED | AP125: =($M$21-AP123)/(AP124-AP123) ->  | AQ125: =IF($M$21<$U$73,$V$73,AQ123+(AQ124-AQ123)*AP125) ->  | AR125: =IF($M$21<$U$73,$W$73,AR123+(AR124-AR123)*AP125) ->  | AS125: =IF($M$21<$U$73,$X$73,AS123+(AS124-AS123)*AP125) ->  | AT125: INTERPOLATED | AX125: =($M$21-AX123)/(AX124-AX123) ->  | AY125: =IF($M$21<$U$73,$V$73,AY123+(AY124-AY123)*AX125) ->  | AZ125: =IF($M$21<$U$73,$W$73,AZ123+(AZ124-AZ123)*AX125) ->  | BA125: =IF($M$21<$U$73,$X$73,BA123+(BA124-BA123)*AX125) ->  | BB125: INTERPOLATED
P128: Rainfall | R128: qu for the Following Storm Frequency (cfs/ac/in) | AB128: Rainfall | AD128: qu for the Following Storm Frequency (cfs/ac/in) | AW128: Rainfall | AY128: qu for the Following Storm Frequency (cfs/ac/in)
P129: Dist | Q129: 1-yr | R129: 2-yr | S129: 5-yr | T129: 10-yr | U129: 25-yr | V129: 50-yr | W129: 100-yr | X129: 200-yr | Y129: 500-yr | AB129: Dist | AC129: 1-yr | AD129: 2-yr | AE129: 5-yr | AF129: 10-yr | AG129: 25-yr | AH129: 50-yr | AI129: 100-yr | AJ129: 200-yr | AK129: 500-yr | AW129: Dist | AX129: 1-yr | AY129: 2-yr | AZ129: 5-yr | BA129: 10-yr | BB129: 25-yr | BC129: 50-yr | BD129: 100-yr | BE129: 200-yr | BF129: 500-yr
P130: TYPE I | Q130: =IF(E21>=0.5,(POWER(10,$V$8+($W$8*LOG10($Q$53))+($X$8*(LOG10($Q$53))^2)))/640,(POWER(10,$U$20+($V$20*LOG10($Q$53))+($W$20*(LOG10($Q$53))^2)))/640) ->  | R130: =IF(F21>=0.5,(POWER(10,$V$8+$W$8*LOG10($Q$53)+($X$8*(LOG10($Q$53))^2)))/640,(POWER(10,$U$25+$V$25*LOG10($Q$53)+($W$25*(LOG10($Q$53))^2)))/640) ->  | T130: =IF(G21>=0.5,(POWER(10,$V$8+$W$8*LOG10($Q$53)+($X$8*(LOG10($Q$53))^2)))/640,(POWER(10,$U$35+($V$35*LOG10($Q$53))+($W$35*(LOG10($Q$53))^2)))/640) ->  | U130: =IF(H21>=0.5,(POWER(10,$V$8+$W$8*LOG10($Q$53)+($X$8*(LOG10($Q$53))^2)))/640,(POWER(10,$U$40+($V$40*LOG10($Q$53))+($W$40*(LOG10($Q$53))^2)))/640) ->  | V130: =IF(I21>=0.5,(POWER(10,$V$8+$W$8*LOG10($Q$53)+($X$8*(LOG10($Q$53))^2)))/640,(POWER(10,$U$45+$V$45*LOG10($Q$53)+($W$45*(LOG10($Q$53))^2)))/640) ->  | AB130: TYPE II | AC130: =IF(E$21>=0.5,(POWER(10,$AH$8+$AI$8*LOG10($Q$53)+($AJ$8*(LOG10($Q$53))^2)))/640,(POWER(10,$AG20+$AH20*LOG10($Q$53)+($AI20*(LOG10($Q$53))^2)))/640) ->  | AD130: =IF(F$21>=0.5,(POWER(10,$AH$8+$AI$8*LOG10($Q$53)+($AJ$8*(LOG10($Q$53))^2)))/640,(POWER(10,$AG25+$AH25*LOG10($Q$53)+($AI25*(LOG10($Q$53))^2)))/640) ->  | AF130: =IF(G$21>=0.5,(POWER(10,$AH$8+$AI$8*LOG10($Q$53)+($AJ$8*(LOG10($Q$53))^2)))/640,(POWER(10,$AG$35+$AH$35*LOG10($Q$53)+($AI$35*(LOG10($Q$53))^2)))/640) ->  | AG130: =IF(H$21>=0.5,(POWER(10,$AH$8+$AI$8*LOG10($Q$53)+($AJ$8*(LOG10($Q$53))^2)))/640,(POWER(10,$AG$40+$AH$40*LOG10($Q$53)+($AI$40*(LOG10($Q$53))^2)))/640) ->  | AH130: =IF(I$21>=0.5,(POWER(10,$AH$8+$AI$8*LOG10($Q$53)+($AJ$8*(LOG10($Q$53))^2)))/640,(POWER(10,$AG$45+$AH$45*LOG10($Q$53)+($AI$45*(LOG10($Q$53))^2)))/640) ->  | AW130: TYPE II | AX130: =IF(J$21>=0.5,(POWER(10,$AZ$8+$BA$8*LOG10($AN$53)+($BB$8*(LOG10($AN$53))^2)))/640,(POWER(10,$AY$20+$AZ$20*LOG10($AN$53)+($BA$20*(LOG10($AN$53))^2)))/640) ->  | AY130: =IF(K$21>=0.5,(POWER(10,$AZ$8+$BA$8*LOG10($AN$53)+($BB$8*(LOG10($AN$53))^2)))/640,(POWER(10,$AY$25+$AZ$25*LOG10($AN$53)+($BA$25*(LOG10($AN$53))^2)))/640) ->  | BA130: =IF(L$21>=0.5,(POWER(10,$AZ$8+$BA$8*LOG10($AN$53)+($BB$8*(LOG10($AN$53))^2)))/640,(POWER(10,$AY$35+$AZ$35*LOG10($AN$53)+($BA$35*(LOG10($AN$53))^2)))/640) ->  | BB130: =IF(M$21>=0.5,(POWER(10,$AZ$8+$BA$8*LOG10($AN$53)+($BB$8*(LOG10($AN$53))^2)))/640,(POWER(10,$AY$40+$AZ$40*LOG10($AN$53)+($BA$40*(LOG10($AN$53))^2)))/640) ->  | BC130: =IF(N$21>=0.5,(POWER(10,$AZ$8+$BA$8*LOG10($AN$53)+($BB$8*(LOG10($AN$53))^2)))/640,(POWER(10,$AY$45+$AZ$45*LOG10($AN$53)+($BA$45*(LOG10($AN$53))^2)))/640) -> 
P131: TYPE IA | Q131: =IF(E21>=0.5,(POWER(10,$V$77+$W$77*LOG10($Q$53)+($X$77*(LOG10($Q$53))^2)))/640,(POWER(10,$U$85+($V$85*LOG10($Q$53))+($W$85*(LOG10($Q$53))^2)))/640) ->  | R131: =IF(F21>=0.5,(POWER(10,$V$77+$W$77*LOG10($Q$53)+($X$77*(LOG10($Q$53))^2)))/640,(POWER(10,$U$90+($V$90*LOG10($Q$53))+($W$90*(LOG10($Q$53))^2)))/640) ->  | T131: =IF(G21>=0.5,(POWER(10,$V$77+$W$77*LOG10($Q$53)+($X$77*(LOG10($Q$53))^2)))/640,(POWER(10,$U$100+($V$100*LOG10($Q$53))+($W$100*(LOG10($Q$53))^2)))/640) ->  | U131: =IF(H21>=0.5,(POWER(10,$V$77+$W$77*LOG10($Q$53)+($X$77*(LOG10($Q$53))^2)))/640,(POWER(10,$U$105+($V$105*LOG10($Q$53))+($W$105*(LOG10($Q$53))^2)))/640) ->  | V131: =IF(I21>=0.5,(POWER(10,$V$77+$W$77*LOG10($Q$53)+($X$77*(LOG10($Q$53))^2)))/640,(POWER(10,$U$110+$V$110*LOG10($Q$53)+($W$110*(LOG10($Q$53))^2)))/640) ->  | AB131: TYPE III | AC131: =IF(E$21>=0.5,(POWER(10,$AH$77+$AI$77*LOG10($Q$53)+($AJ$77*(LOG10($Q$53))^2)))/640,(POWER(10,$AG$85+$AH$85*LOG10($Q$53)+($AI$85*(LOG10($Q$53))^2)))/640) ->  | AD131: =IF(F$21>=0.5,(POWER(10,$AH$77+$AI$77*LOG10($Q$53)+($AJ$77*(LOG10($Q$53))^2)))/640,(POWER(10,$AG$90+$AH$90*LOG10($Q$53)+($AI$90*(LOG10($Q$53))^2)))/640) ->  | AF131: =IF(G$21>=0.5,(POWER(10,$AH$77+$AI$77*LOG10($Q$53)+($AJ$77*(LOG10($Q$53))^2)))/640,(POWER(10,$AG$35+$AH$35*LOG10($Q$53)+($AI$35*(LOG10($Q$53))^2)))/640) ->  | AG131: =IF(H$21>=0.5,(POWER(10,$AH$77+$AI$77*LOG10($Q$53)+($AJ$77*(LOG10($Q$53))^2)))/640,(POWER(10,$AG$105+$AH$105*LOG10($Q$53)+($AI$105*(LOG10($Q$53))^2)))/640) ->  | AH131: =IF(I$21>=0.5,(POWER(10,$AH$77+$AI$77*LOG10($Q$53)+($AJ$77*(LOG10($Q$53))^2)))/640,(POWER(10,$AG$110+$AH$110*LOG10($Q$53)+($AI$110*(LOG10($Q$53))^2)))/640) ->  | AW131: TYPE III | AX131: =IF(J$21>=0.5,(POWER(10,$AZ$77+$BA$77*LOG10($AN$53)+($BB$77*(LOG10($AN$53))^2)))/640,(POWER(10,$AY$85+$AZ$85*LOG10($AN$53)+($BA$85*(LOG10($AN$53))^2)))/640) ->  | AY131: =IF(K$21>=0.5,(POWER(10,$AZ$77+$BA$77*LOG10($AN$53)+($BB$77*(LOG10($AN$53))^2)))/640,(POWER(10,$AY$90+$AZ$90*LOG10($AN$53)+($BA$90*(LOG10($AN$53))^2)))/640) ->  | BA131: =IF(L$21>=0.5,(POWER(10,$AZ$77+$BA$77*LOG10($AN$53)+($BB$77*(LOG10($AN$53))^2)))/640,(POWER(10,$AY$100+$AZ$100*LOG10($AN$53)+($BA$100*(LOG10($AN$53))^2)))/640) ->  | BB131: =IF(M$21>=0.5,(POWER(10,$AZ$77+$BA$77*LOG10($AN$53)+($BB$77*(LOG10($AN$53))^2)))/640,(POWER(10,$AY$105+$AZ$105*LOG10($AN$53)+($BA$105*(LOG10($AN$53))^2)))/640) ->  | BC131: =IF(N$21>=0.5,(POWER(10,$AZ$77+$BA$77*LOG10($AN$53)+($BB$77*(LOG10($AN$53))^2)))/640,(POWER(10,$AY$110+$AZ$110*LOG10($AN$53)+($BA$110*(LOG10($AN$53))^2)))/640) -> 
AO133: Rainfall | AQ133: qu for the Following Storm Frequency (cfs/ac/in)
AO134: Dist | AP134: 1-yr | AQ134: 2-yr | AR134: 5-yr | AS134: 10-yr | AT134: 25-yr | AU134: 50-yr | AV134: 100-yr | AW134: 200-yr | AX134: 500-yr
AO135: TYPE I | AP135: =IF(J$21>=0.5,(POWER(10,$AR$8+($AS$8*LOG10($AN$53))+($AT$8*(LOG10($AN$53))^2)))/640,(POWER(10,$AQ$20+($AR$20*LOG10($AN$53))+($AS$20*(LOG10($AN$53))^2)))/640) ->  | AQ135: =IF(K$21>=0.5,(POWER(10,$AR$8+$AS$8*LOG10($AN$53)+($AT$8*(LOG10($AN$53))^2)))/640,(POWER(10,$AQ$25+$AR$25*LOG10($AN$53)+($AS$25*(LOG10($AN$53))^2)))/640) ->  | AS135: =IF(L$21>=0.5,(POWER(10,$AR$8+$AS$8*LOG10($AN$53)+($AT$8*(LOG10($AN$53))^2)))/640,(POWER(10,$AQ$35+$AR$35*LOG10($AN$53)+($AS$35*(LOG10($AN$53))^2)))/640) ->  | AT135: =IF(M$21>=0.5,(POWER(10,$AR$8+$AS$8*LOG10($AN$53)+($AT$8*(LOG10($AN$53))^2)))/640,(POWER(10,$AQ$40+$AR$40*LOG10($AN$53)+($AS$40*(LOG10($AN$53))^2)))/640) ->  | AU135: =IF(N$21>=0.5,(POWER(10,$AR$8+$AS$8*LOG10($AN$53)+($AT$8*(LOG10($AN$53))^2)))/640,(POWER(10,$AQ$45+$AR$45*LOG10($AN$53)+($AS$45*(LOG10($AN$53))^2)))/640) -> 
AO136: TYPE IA | AP136: =IF($J$21>=0.5,(POWER(10,$AR$77+$AS$77*LOG10($AN$53)+($AT$77*(LOG10($AN$53))^2)))/640,(POWER(10,$AQ$85+$AR$85*LOG10($AN$53)+($AS$85*(LOG10($AN$53))^2)))/640) ->  | AQ136: =IF($K$21>=0.5,(POWER(10,$AR$77+$AS$77*LOG10($AN$53)+($AT$77*(LOG10($AN$53))^2)))/640,(POWER(10,$AQ$90+$AR$90*LOG10($AN$53)+($AS$90*(LOG10($AN$53))^2)))/640) ->  | AS136: =IF($L$21>=0.5,(POWER(10,$AR$77+$AS$77*LOG10($AN$53)+($AT$77*(LOG10($AN$53))^2)))/640,(POWER(10,$AQ$100+$AR$100*LOG10($AN$53)+($AS$100*(LOG10($AN$53))^2)))/640) ->  | AT136: =IF($M$21>=0.5,(POWER(10,$AR$77+$AS$77*LOG10($AN$53)+($AT$77*(LOG10($AN$53))^2)))/640,(POWER(10,$AQ$105+$AR$105*LOG10($AN$53)+($AS$105*(LOG10($AN$53))^2)))/640) ->  | AU136: =IF($N$21>=0.5,(POWER(10,$AR$77+($AS$77*LOG10($AN$53))+($AT$77*(LOG10($AN$53))^2)))/640,(POWER(10,$AQ$110+$AR$110*LOG10($AN$53)+($AS$110*(LOG10($AN$53))^2)))/640) -> 

Sheet Runoff Volumes
B1: RUNOFF VOLUMES USING MANUAL RAINFALL
B3: Project:
B4: Designer: | J4: Checked:
B5: Date: | J5: Date:
U6: General:
A7: I. | B7: Rainfall Data:
B8: (adapted from Lander, 2004) | AC8: Channel Protection, Cpv
B10: Recurrence Int (yrs) | D10: 1 | E10: 2 | F10: 10 | G10: 25 | H10: 50 | V10: Water Quality Volume, WQv | Y10: [(P)*(I)*(A)]/12 | AC10: Overbank Flood Control, Qp-25
B11: Ave.Rain (in/24hrs) | D11: 3.5 | E11: 7 | F11: 10 | G11: 20 | H11: 27
B13: Location Information:
B15: Geologic Region: | D15: Volcanic | F15: Water Quality Region: | I15: S2 | K15: (Refer to CNMI Manual- Vol1, Figure 2.1 for values)
F16: Resource Designation: | I16: =IF(OR($I$15="M1",$I$15="S1"),"High","Moderate") -> Moderate
B19: Runoff Curve Number:
G20: Pre Development | L20: Post Development
B21: Cover Description | F21: HSG | G21: CN Value Table 2-2 | H21: TR55 Fig 2-3 | I21: TR55 Fig 2-4 | J21: Area (acres) | K21: CN x Area | L21: CN Value Table 2-2 | M21: TR55 Fig 2-3 | N21: TR55 Fig 2-4 | O21: Area (acres) | P21: CN x Area
K22: =_xlfn.IFS($G22>0,$G22*$J22,$H22>0,$H22*$J22,$I22>0,$I22*$J22,TRUE,"0") -> 0 | P22: =_xlfn.IFS($L22>0,$L22*$O22,$M22>0,$M22*$O22,$N22>0,$N22*$O22,TRUE,"0") -> 0
K23: =_xlfn.IFS($G23>0,$G23*$J23,$H23>0,$H23*$J23,$I23>0,$I23*$J23,TRUE,"0") -> 0 | P23: =_xlfn.IFS($L23>0,$L23*$O23,$M23>0,$M23*$O23,$N23>0,$N23*$O23,TRUE,"0") -> 0
K24: =_xlfn.IFS($G24>0,$G24*$J24,$H24>0,$H24*$J24,$I24>0,$I24*$J24,TRUE,"0") -> 0 | P24: =_xlfn.IFS($L24>0,$L24*$O24,$M24>0,$M24*$O24,$N24>0,$N24*$O24,TRUE,"0") -> 0
K25: =_xlfn.IFS($G25>0,$G25*$J25,$H25>0,$H25*$J25,$I25>0,$I25*$J25,TRUE,"0") -> 0 | P25: =_xlfn.IFS($L25>0,$L25*$O25,$M25>0,$M25*$O25,$N25>0,$N25*$O25,TRUE,"0") -> 0
B26: Impervious | K26: =_xlfn.IFS($G26>0,$G26*$J26,$H26>0,$H26*$J26,$I26>0,$I26*$J26,TRUE,"0") -> 0 | P26: =_xlfn.IFS($L26>0,$L26*$O26,$M26>0,$M26*$O26,$N26>0,$N26*$O26,TRUE,"0") -> 0 | Q26: Do the Pre and Post Development Areas match?
E27: Total | J27: =SUM(J22:J26) -> 0 | K27: =SUM(K22:K26) -> 0 | O27: =SUM(O22:O26) -> 0 | P27: =SUM(P22:P26) -> 0 | Q27: =IF(J27=O27,"OK!","ERROR!") -> OK!
B29: Weighted CN Value | K29: =ROUNDUP((K27/J27),0) ->  | P29: =ROUNDUP((P27/O27),0) -> 
A32: II. | B32: Runoff Calculation:
F33: Pre Development | K33: Post Development
F34: Storm #1 | G34: Storm #2 | H34: Storm #3 | I34: Storm #4 | J34: Storm #5 | K34: Storm #1 | L34: Storm #2 | M34: Storm #3 | N34: Storm #4 | O34: Storm #5
B35: Storm Frequency (yr) | F35: 1 | G35: 2 | H35: 10 | I35: 25 | J35: 50 | K35: 1 | L35: 2 | M35: 10 | N35: 25 | O35: 50
B36: 24hr Rainfall, P, (in) | F36: 3.5 | G36: 7 | H36: 10 | I36: 20 | J36: 27 | K36: 3.5 | L36: 7 | M36: 10 | N36: 20 | O36: 27
B37: Location Adjusted Rainfall, P, (in) | F37: =F$36*$F$42 -> 0 | G37: =G$36*$F$42 -> 0 | H37: 0 | I37: 0 | J37: 0 | K37: 0 | L37: 0 | M37: 0 | N37: 0 | O37: 0
B38: Storage Factor, S, (in) | F38: =(1000/$K$29)-10 ->  | G38: =(1000/$K$29)-10 ->  | K38: =(1000/$P$29)-10 ->  | L38: =(1000/$P$29)-10 -> 
B39: Runoff, Q, (in) | F39: =(F$37-(0.2*F$38))^2/(F$37+(0.8*F$38)) ->  | G39: =(G$37-(0.2*G$38))^2/(G$37+(0.8*G$38)) ->  | K39: =(K$37-(0.2*K$38))^2/(K$37+(0.8*K$38)) ->  | L39: =(L$37-(0.2*L$38))^2/(L$37+(0.8*L$38)) ->  | M39: =(M$37-(0.2*M$38))^2/(M$37+(0.8*M$38)) -> 
B40: Runoff Volume, V, (ft3) | F40: =F39/12*$J$27*43560 ->  | G40: =G39/12*$J$27*43560 ->  | H40: =H39/12*$J$27*43560 ->  | I40: =I39/12*$J$27*43560 ->  | J40: =J39/12*$J$27*43560 ->  | K40: =K39/12*$O$27*43560 ->  | L40: =L39/12*$O$27*43560 ->  | M40: =M39/12*$O$27*43560 ->  | N40: =N39/12*$O$27*43560 ->  | O40: =O39/12*$O$27*43560 -> 
B42: Storm Adjustment Factor: | G42: (from CNMI Manual, 2006, Figure 2.6)
A45: III. | B45: Control Volumes:
C47: Recharge Volume, Rev, (Acre-ft) | G47: ==> | H47: [(F)*(I)*(A)]/12 | J47: ==> | K47: =IF(F65="Hotspot","N/A ",($I$50*$G60*$G59)/12) -> 0
C49: If project site is limestone dominated, then, F=1.5
C50: If project site is volcanic dominated, then F varies by | H50: F=
C51: Hydrologic Soil Group (HSG) as in the table below:
C53: HSG | D53: Vol. Factor (F), (in)
C54: A | D54: 0.8
C55: B | D55: 0.5
C56: C | D56: 0.2
C57: D | D57: 0.1
C59: Total Project Area, A, (acres) =
C60: Project Site Impervious Area, I, (dec. %) =
C62: Water Quality Volume, WQv, (Acre-ft) | G62: ==> | H62: [(P)*(I)*(A)]/12 | J62: ==> | K62: =($F66*$G69*$G68)/12 -> 
C63: Water Quality Volume, WQv, (Cu-ft) | J63: ==> | K63: =$K62*43560 -> 
C65: Water Quality Site Designation: | F65: Moderate | I65: WQv Check ==> | K65: =IF($K62>$F71,"OK!","ERROR!") ->  | L65: Is Computed Volume Greater than Minimum Required Volume?
D66: Precipitation, P, (in) = | F66: =_xlfn.IFS(F65="High",1.5,F65="Hotspot",1.5,F65="Moderate",0.8,TRUE,0) -> 0.8
C68: Total Project Area, A, (acres) = | G68: =$O$27 -> 0
C69: Project Site Impervious Area, I, (dec. %) = | G69: =$O26/$O27 -> 
C71: Min. WQv Req. (acre-ft) = | F71: =0.0167*$G68 -> 0
C74: Stream Channel Prot. Vol., CPv (POST) (Ac-ft) | G74: ==> | H74: (Vs/Vr) * P(1yr) * (1/12) * A ==> | K74: =IF($G$77="YES"," ",$G$84*K$39*(1/12)*$O27) ->  | L74: Acre-ft
K75: =IF($K$74=" "," ",$K$74*43560) ->  | L75: Cu-ft
C77: Is Impervious Area less than 1 Acre? | G77: NO | H77: =IF($G$77="YES","CPv Not Required - CNMI Sec. 2.2.2.3","CONTINUE") -> CONTINUE
C79: Initial Abstraction, Ia : [200/CN-2] | G79: =IF($G$77="YES"," ",(0.2*((1000/$P$29)-10))) -> 
C80: Ia / P1-yr = | G80: =IF($G$77="YES", " ",$G79/$K37) -> 
C81: Time of Concentration, tc (Post Dev)= | G81: =IF($G$77="YES"," ",TofC!$V$21) -> 0
C82: log(qu)= C0+C1 log(Tc) + C2 [log(Tc)]2 | G82: =IF($G$77="YES"," ",'TR55'!$J$22*640) ->  | H82: = qu (csm/in)
C83: Ratio of Outflow to Inflow (qo/qi) = | G83: =IF($G$77="YES","",0.11) -> 0.11 | H83: Refer to Figure 9.9 in CNMI Manual Vol. 2
C84: Vs/Vr= C0+C1(qo/qi)+C2(qo/qi)2+C3(qo/qi)3 = | G84: =IF($G$77="YES"," ",(Lookup!$N$30)+((Lookup!$O$30)*$G$83)+((Lookup!$P$30)*($G$83)^2)+((Lookup!$Q$30)*($G$83)^3)) -> 0.48914437 | H84: Refer to Figure 9.10 in CNMI Manual Vol. 2
C85: Average Release Rate over 24 hrs (cfs) | G85: =IF($G$77="YES"," ",$K$75/(24*3600)) -> 
C87: Overbank Flood Control Volume, Qp-25 (Post) | G87: ==> | H87: (Vs/Vr) * P(25yr) * (1/12) * A ==> | K87: =$H$96*N$39*(1/12)*$O$27 ->  | L87: Acre-ft
K88: =$K$87*43560 ->  | L88: Cu-ft
G89: Pre | H89: Post
C90: Runoff, Qp-25, (in.) | E90: (P-0.2S)2/(P+0.8S) | G90: =('TR55'!$H$23) -> TR 55 | H90: =('TR55'!$M$23) -> 
C91: 25 yr Peak Discharge (cfs) | G91: =('TR55'!$H$25) ->  | H91: =('TR55'!$M$25) -> 
C92: Runoff Volume (Acre-ft) | G92: =($G$90*$O$27)/12 ->  | H92: =($H$90*$O$27)/12 -> 
C93: Runoff Volume (Cu-ft) | G93: =$G$92*43560 ->  | H93: =$H$92*43560 -> 
C95: Ratio of Outflow to Inflow (qo/qi) = | H95: =$G91/$H91 -> 
C96: Vs/Vr= C0+C1(qo/qi)+C2(qo/qi)2+C3(qo/qi)3 = | H96: =IF($G$77="YES"," ",(Lookup!$N$30)+((Lookup!$O$30)*$H$95)+((Lookup!$P$30)*($H$95)^2)+((Lookup!$Q$30)*($H$95)^3)) -> 

Sheet Infiltration Basin
B1: INFILTRATION BASIN DESIGN FROM CNMI MANUAL
B3: Project:
B4: Designer: | J4: Checked:
B5: Date: | J5: Date:
B7: Rainfall Data:
B8: (adapted from Lander, 2004)
B10: Recurrence Int (yrs) | D10: 1 | E10: 2 | F10: 10 | G10: 25 | H10: 50
B11: Ave.Rain (in/24hrs) | D11: 3.5 | E11: 7 | F11: 10 | G11: 20 | H11: 27
B13: Location Information:
B15: Geologic Region: | F15: Water Quality Region: | K15: (Refer to CNMI Manual- Vol1, Figure 2.1 for values)
F16: Resource Designation: | I16: =IF(OR($I$15="M1",$I$15="S1"),"High","Moderate") -> Moderate
B19: Runoff Curve Number:
F20: Pre Development | K20: Post Development
F21: CN Value Table 2-2 | G21: TR55 Fig 2-3 | H21: TR55 Fig 2-4 | I21: Area | J21: CN x Area | K21: CN Value Table 2-2 | L21: TR55 Fig 2-3 | M21: TR55 Fig 2-4 | N21: Area | O21: CN x Area
J22: =_xlfn.IFS($F22>0,$F22*$I22,$G22>0,$G22*$I22,$H22>0,$H22*$I22,TRUE,0) -> 0 | O22: =_xlfn.IFS($K22>0,$K22*$N22,$L22>0,$L22*$N22,$M22>0,$M22*$N22,TRUE,0) -> 0
J23: =_xlfn.IFS($F23>0,$F23*$I23,$G23>0,$G23*$I23,$H23>0,$H23*$I23,TRUE,0) -> 0 | O23: =_xlfn.IFS($K23>0,$K23*$N23,$L23>0,$L23*$N23,$M23>0,$M23*$N23,TRUE,0) -> 0
J24: =_xlfn.IFS($F24>0,$F24*$I24,$G24>0,$G24*$I24,$H24>0,$H24*$I24,TRUE,0) -> 0 | O24: =_xlfn.IFS($K24>0,$K24*$N24,$L24>0,$L24*$N24,$M24>0,$M24*$N24,TRUE,0) -> 0
J25: =_xlfn.IFS($F25>0,$F25*$I25,$G25>0,$G25*$I25,$H25>0,$H25*$I25,TRUE,0) -> 0 | O25: =_xlfn.IFS($K25>0,$K25*$N25,$L25>0,$L25*$N25,$M25>0,$M25*$N25,TRUE,0) -> 0
B26: Impervious | J26: =_xlfn.IFS($F26>0,$F26*$I26,$G26>0,$G26*$I26,$H26>0,$H26*$I26,TRUE,0) -> 0 | O26: =_xlfn.IFS($K26>0,$K26*$N26,$L26>0,$L26*$N26,$M26>0,$M26*$N26,TRUE,0) -> 0
E27: Total | I27: =SUM(I22:I26) -> 0 | J27: =SUM(J22:J26) -> 0 | N27: =SUM(N22:N26) -> 0 | O27: =SUM(O22:O26) -> 0
B29: Weighted CN Value | F29: =IF(F30="",(J27/I27),F30) ->  | K29: =ROUNDUP(IF(K30="",(O27/N27),K30),0) -> 
G30: < If CN known, enter here | L30: < If CN known, enter here
B32: Runoff Calculation:
F33: Pre Development | K33: Post Development
F34: Storm #1 | G34: Storm #2 | H34: Storm #3 | I34: Storm #4 | J34: Storm #5 | K34: Storm #1 | L34: Storm #2 | M34: Storm #3 | N34: Storm #4 | O34: Storm #5
B35: Storm Frequency (yr) | F35: 1 | G35: 2 | H35: 10 | I35: 25 | J35: 50 | K35: 1 | L35: 2 | M35: 10 | N35: 25 | O35: 50
B36: 24hr Rainfall, P, (in) | F36: 3.5 | G36: 7 | H36: 10 | I36: 20 | J36: 27 | K36: 3.5 | L36: 7 | M36: 10 | N36: 20 | O36: 27
B37: Location Adjusted Rainfall, P, (in) | F37: =F$36*$F$42 -> 0 | G37: =G$36*$F$42 -> 0 | H37: 0 | I37: 0 | J37: 0 | K37: 0 | L37: 0 | M37: 0 | N37: 0 | O37: 0
B38: Storage Factor, S, (in) | F38: =1000/$F$29-10 ->  | K38: =1000/$K$29-10 ->  | L38: =1000/$K$29-10 -> 
B39: Runoff, Q, (in) | F39: =(F37-0.2*F38)^2/(F37+0.8*F38) ->  | G39: =(G37-0.2*G38)^2/(G37+0.8*G38) ->  | L39: =(L37-0.2*L38)^2/(L37+0.8*L38) ->  | M39: =(M37-0.2*M38)^2/(M37+0.8*M38) ->  | N39: =(N37-0.2*N38)^2/(N37+0.8*N38) ->  | O39: =(O37-0.2*O38)^2/(O37+0.8*O38) -> 
B40: Runoff Volume, V, (ft3) | F40: =F39/12*$I$27*43560 ->  | K40: =K39/12*$N$27*43560 ->  | L40: =L39/12*$N$27*43560 -> 
B42: Storm Adjustment Factor: | G42: (from Figure 2.6)
B44: Runoff Volumes | H44: (from Runoff Volumes worksheet)
C46: Recharge Volume | F46: Rev => | G46: ='Runoff Volumes'!$K$47 -> 0
C47: Water Quality Volume | F47: WQv => | G47: ='Runoff Volumes'!$K$62 -> 
C48: Stream Protection | F48: Cpv => | G48: ='Runoff Volumes'!$K$74 -> 
C49: Overbank Control | F49: Qp-25 => | G49: ='Runoff Volumes'!$K$87 -> 
B51: Analysis Question: | E51: Does the proposed project result in runoff that will impact any adjacent property, or result in flooding of the developed property if the infiltration basin is filled beyond its design capacity? | O51: No
B53: If the answer to the above question is YES, then you must use Analysis #1, the Infiltration Basin using the Total Storm Volume.
B54: If the answer to the above question is NO, and you have verified that that post-construction conditions will NOT result
B55: in runoff discharging to or through another property before reaching a public stormwater system or waterway,
B56: AND the proposed development will not flood when the infiltration basin is filled, you may use Analysis #2, the
B57: Infiltration Basin using the Net Storm Volume.
B60: 1. Infiltration Basin using Total Storm Volume
B62: Infiltration Basin Analysis:
C64: Infiltration Rate (fc): | F64: in/min | H64: Initial Estimate of L & W of Basin
E65: =$E$64*60 -> 0 | F65: In/hr | I65: L (ft) =
E66: =$E$65/12 -> 0 | F66: ft/hr | I66: W (ft)=
B68: Equations from 2006 manual:
B69: Trapezoidal infiltration basin: | E69: Ab = (2Vw – Atdb)/(db – P/6 + fcT/6) | I69: (2006 CNMI Manual, Vol. 1, Sec. 3.2.4.3d)
E70: z = | G70: side slope (H:V) (z:1)
E71: Vw = | F71: =N40 ->  | G71: cf (design volume - Qp-25)
E72: At = | G72: sf (area at top of the basin - trial and error)
E73: db = | G73: ft (depth of basin - trial and error)
E74: P = | F74: =N37 -> 0 | G74: in (design rainfall depth)
E75: T = | F75: 24 | G75: hr (time to fill basin - 24 hours per GEPA guidance)
D76: Ab2 (basin bottom) | F76: =($J$65 - 2*$F$70*F73) * ($J$66 - 2*$F$70*$F$73) -> 0 | G76: sq. ft. [(L-2*z*db) * (W-2*z*db)]
D77: Ab1 (computed) = | F77: =IF($F$73="","",(2*F71-F72*F73)/(F73-F74/6+E65*F75/6)) ->  | G77: (surface area at bottom in square feet)
E78: Diff= | F78: =$F76+$F77 -> 
B79: Infiltration trench: | E79: Ap = Vw / (ndt + fcT/12) | I79: (2006 CNMI Manual, Vol. 1, Sec. 3.2.4.3d)
E80: Vw = | F80: =N40 ->  | G80: cf
E81: n = | G81: (porosity of limestone aggregate fill - use 0.4 per manual)
E82: dt = | G82: ft (trench depth - trial and error)
E83: T = | F83: 24 | G83: hr (time to fill trench in hours - 24 hours per GEPA guidance)
B85: Ap (computed) = | F85: =IF($F$81="","",F80/(F81*F82+E65*F83/12)) ->  | G85: sq. ft. (surface area at bottom of the trench in square feet)
B109: 2. Infiltration Basin using Net Storm Volume
B111: Infiltration Basin Analysis
C113: Infiltration Rate (fc) | F113: in/min | H113: Initial Estimate of L & W of Basin
E114: =E113*60 -> 0 | F114: in/hr | I114: L (ft) =
E115: =E114/12 -> 0 | F115: ft/hr | I115: W (ft)=
B117: Equations from 2006 manual:
B118: Trapezoidal infiltration basin: | E118: Ab1 = (2Vw – At*db)/(db – P/6 + fcT/6) | I118: (2006 CNMI Manual, Vol. 1, Sec. 3.2.4.3d)
E119: z = | G119: side slope (H:V) (z:1)
E120: Vw = | F120: =$N$40-$I$40 ->  | G120: cu. ft. (design volume - Qp-25, Post Dev. - Pre Dev.))
E121: At = | G121: sq. ft. (area at top of the basin - trial and error)
E122: db = | G122: ft (depth of basin - trial and error)
E123: P = | F123: =N37 -> 0 | G123: in (design rainfall depth)
E124: T = | G124: hr (time to fill basin - 24 hours per GEPA guidance)
D125: Ab2 (basin bottom) | F125: =($J$114 - 2*$F$119*F122) * ($J$115 - 2*$F$119*F122) -> 0 | G125: sq. ft. [(L-2*z*db) * (W-2*z*db)]
D126: Ab1 (computed) = | F126: =((2*F120)-F121*F122)/(F122-(F123/6)+(E114*F124/6)) ->  | G126: sq. ft. (surface area at bottom)
E127: Diff= | F127: =$F$125+$F$126 -> 
B128: Infiltration trench: | E128: Ap = Vw / (ndt + fcT/12) | I128: (2006 CNMI Manual, Vol. 1, Sec. 3.2.4.3d)
E129: Vw = | F129: =$N40-$I40 ->  | G129: cu. ft.
E130: n = | G130: (porosity of limestone aggregate fill - use 0.4 per manual)
E131: dt = | G131: ft (trench depth - trial and error)
E132: T = | G132: hr (time to fill trench in hours - 24 hours per GEPA guidance)
C134: Ap (computed) = | F134: =F129/(F130*F131+E114*F132/12) ->  | G134: sq. ft. (surface area at bottom of the trench)

Sheet Simplified Infil Basin
B1: SIMPLIFIED INFILTRATION BASIN DESIGN FROM GEPA
B3: Project:
B4: Designer: | J4: Checked:
B5: Date: | J5: Date:
B7: Rainfall Data:
B8: (adapted from Lander, 2004)
B10: Recurrence Int (yrs) | D10: 1 | E10: 2 | F10: 10 | G10: 25 | H10: 50
B11: Ave.Rain (in/24hrs) | D11: 3.5 | E11: 7 | F11: 10 | G11: 20 | H11: 27
B13: Location Information:
B15: Geologic Region: | D15: Volcanic | F15: Water Quality Region: | I15: S2 | K15: (Refer to CNMI Manual- Vol1, Figure 2.1 for values)
F16: Resource Designation: | I16: =IF(OR($I$15="M1",$I$15="S1"),"High","Moderate") -> Moderate
B19: Runoff Curve Number:
F20: Pre Development | K20: Post Development
B21: Cover Description | F21: CN Value Table 2-2 | G21: TR55 Fig 2-3 | H21: TR55 Fig 2-4 | I21: Area | J21: CN x Area | K21: CN Value Table 2-2 | L21: TR55 Fig 2-3 | M21: TR55 Fig 2-4 | N21: Area | O21: CN x Area
J22: =_xlfn.IFS($F22>0,$F22*$I22,$G22>0,$G22*$I22,$H22>0,$H22*$I22,TRUE,0) -> 0 | O22: =_xlfn.IFS($K22>0,$K22*$N22,$L22>0,$L22*$N22,$M22>0,$M22*$N22,TRUE,0) -> 0
J23: =_xlfn.IFS($F23>0,$F23*$I23,$G23>0,$G23*$I23,$H23>0,$H23*$I23,TRUE,0) -> 0 | O23: =_xlfn.IFS($K23>0,$K23*$N23,$L23>0,$L23*$N23,$M23>0,$M23*$N23,TRUE,0) -> 0
J24: =_xlfn.IFS($F24>0,$F24*$I24,$G24>0,$G24*$I24,$H24>0,$H24*$I24,TRUE,0) -> 0 | O24: =_xlfn.IFS($K24>0,$K24*$N24,$L24>0,$L24*$N24,$M24>0,$M24*$N24,TRUE,0) -> 0
J25: =_xlfn.IFS($F25>0,$F25*$I25,$G25>0,$G25*$I25,$H25>0,$H25*$I25,TRUE,0) -> 0 | O25: =_xlfn.IFS($K25>0,$K25*$N25,$L25>0,$L25*$N25,$M25>0,$M25*$N25,TRUE,0) -> 0
B26: Impervious | J26: =_xlfn.IFS($F26>0,$F26*$I26,$G26>0,$G26*$I26,$H26>0,$H26*$I26,TRUE,0) -> 0 | O26: =_xlfn.IFS($K26>0,$K26*$N26,$L26>0,$L26*$N26,$M26>0,$M26*$N26,TRUE,0) -> 0
E27: Total | I27: =SUM(I22:I26) -> 0 | J27: =SUM(J22:J26) -> 0 | N27: =SUM(N22:N26) -> 0 | O27: =SUM(O22:O26) -> 0
B29: Weighted CN Value | F29: =IF(F30="",(J27/I27),F30) ->  | K29: =ROUNDUP(IF(K30="",(O27/N27),K30),0) -> 
G30: < If CN known, enter here | L30: < If CN known, enter here
B32: Runoff Calculation:
F33: Pre Development | K33: Post Development
F34: Storm #1 | G34: Storm #2 | H34: Storm #3 | I34: Storm #4 | J34: Storm #5 | K34: Storm #1 | L34: Storm #2 | M34: Storm #3 | N34: Storm #4 | O34: Storm #5
B35: Storm Frequency (yr) | F35: 1 | G35: 2 | H35: 10 | I35: 25 | J35: 50 | K35: 1 | L35: 2 | M35: 10 | N35: 25 | O35: 50
B36: 24hr Rainfall, P, (in) | F36: 3.5 | G36: 7 | H36: 10 | I36: 20 | J36: 27 | K36: 3.5 | L36: 7 | M36: 10 | N36: 20 | O36: 27
B37: Location Adjusted Rainfall, P, (in) | F37: =F$36*$F$42 -> 0 | G37: =G$36*$F$42 -> 0 | H37: 0 | I37: 0 | J37: 0 | K37: 0 | L37: 0 | M37: 0 | N37: 0 | O37: 0
B38: Storage Factor, S, (in) | F38: =1000/$F$29-10 ->  | K38: =1000/$K$29-10 ->  | L38: =1000/$K$29-10 -> 
B39: Runoff, Q, (in) | F39: =(F37-0.2*F38)^2/(F37+0.8*F38) ->  | G39: =(G37-0.2*G38)^2/(G37+0.8*G38) -> 
B40: Runoff Volume, V, (ft3) | F40: =F39/12*$I$27*43560 ->  | K40: =K39/12*$N$27*43560 ->  | L40: =L39/12*$N$27*43560 -> 
B42: Storm Adjustment Factor: | G42: (from Figure 2.6)
B44: Runoff Volumes | H44: (from Runoff Volumes worksheet)
C46: Recharge Volume | F46: Rev => | G46: ='Runoff Volumes'!$K$47 -> 0
C47: Water Quality Volume | F47: WQv => | G47: ='Runoff Volumes'!$K$62 -> 
C48: Stream Protection | F48: Cpv => | G48: ='Runoff Volumes'!$K$74 -> 
C49: Overbank Control | F49: Qp-25 => | G49: ='Runoff Volumes'!$K$87 -> 
B51: Analysis Question: | E51: Does the proposed project result in runoff that will impact any adjacent property, or result in flooding of the developed property if the infiltration basin is filled beyond its design capacity? | O51: No
B53: If the answer to the above question is YES, then you must use Analysis #1, the Infiltration Basin using the Total Storm Volume.
B54: If the answer to the above question is NO, and you have verified that that post-construction conditions will NOT result
B55: in runoff discharging to or through another property before reaching a public stormwater system or waterway,
B56: AND the proposed development will not flood when the infiltration basin is filled, you may use Analysis #2, the
B57: Infiltration Basin using the Net Storm Volume.
B60: 1. Infiltration Basin using Total Storm Volume
B62: Infiltration Basin Analysis:
C64: Infiltration Rate (fc): | F64: in/min
E65: =$E$64*60 -> 0 | F65: In/hr
E66: =$E$65/12 -> 0 | F66: ft/hr
B68: Equations from 2006 manual:
B70: Trapezoidal infiltration basin: | E70: Ab = (2Vw – Atdb)/(db – P/6 + fcT/6) | I70: (2006 CNMI Manual, Vol. 1, Sec. 3.2.4.3d)
E71: Vw = | F71: =N40 ->  | G71: cf (design volume - Qp-25)
E72: At = | G72: sf (area at top of the basin - trial and error)
E73: db = | G73: ft (depth of basin - trial and error)
E74: P = | F74: =N37 -> 0 | G74: in (design rainfall depth)
E75: T = | F75: 24 | G75: hr (time to fill basin - 24 hours per GEPA guidance)
D77: Ab (computed) = | F77: =(2*F71-F72*F73)/(F73-F74/6+E65*F75/6) ->  | G77: (surface area at bottom in square feet)
B79: Infiltration trench: | E79: Ap = Vw / (ndt + fcT/12) | I79: (2006 CNMI Manual, Vol. 1, Sec. 3.2.4.3d)
E80: Vw = | F80: =N40 ->  | G80: cf
E81: n = | G81: (porosity of limestone aggregate fill - use 0.4 per manual)
E82: dt = | G82: ft (trench depth - trial and error)
E83: T = | F83: 24 | G83: hr (time to fill trench in hours - 24 hours per GEPA guidance)
B85: Ap (computed) = | F85: =F80/(F81*F82+E65*F83/12) ->  | G85: sq. ft. (surface area at bottom of the trench in square feet)
B87: Manual trial-and-error sizing: open basins
C88: Side slope | G88: :1 | H88: Trial-and-error: enter proposed basin dimensions,
C89: Top W | G89: ft | H89: and adjust until "Size error" close to zero and positive
C90: Top L | G90: ft
C91: Depth | G91: ft
C92: Bottom W | F92: =F89-2*F88*F91 -> 0 | G92: ft | H92: <-- CAUTION: bottom dimensions cannot be negative!
C93: Bottom L | F93: =F90-2*F88*F91 -> 0 | G93: ft | H93: Adjust W, L, or depth to ensure only positive dimensions.
C94: Basin Volume | F94: =F97*F91 -> 0 | G94: cu. ft.
C95: Top basin area | F95: =F89*F90 -> 0 | G95: sq. ft.
C96: Bottom basin area | F96: =F92*F93 -> 0 | G96: sq. ft.
C97: Average Basin area Aav | F97: =((F89*F90)+(F92*F93))/2 -> 0 | G97: sq. ft.
C98: Infiltration rate (AbX fc/12) | F98: =E65*F97/12 -> 0 | G98: cu. ft./hr
C99: Infiltration time (Time to fill) | F99: 24 | G99: hr
C100: Volume infiltrated (Infil. Rate x infil. Time) | F100: =F98*F99 -> 0 | G100: cft
C101: Size error (Vinfil - Vw) | F101: =(F100+F94)-N40 ->  | G101: cft | H101: (make this positive and as close to zero as possible)
C102: Check | F102: =IF((F94+F100)>N40,"OK!","ERROR") ->  | H102: (Is the Basin Vol. + Infiltrated Vol. >= Total Runoff Vol.)
B109: 2. Infiltration Basin using Net Storm Volume
B111: Infiltration Basin Analysis
C113: Infiltration Rate (fc) | F113: in/min | H113: <-- Enter percolation rate here in in/min
E114: =E113*60 -> 0 | F114: in/hr
E115: =E114/12 -> 0 | F115: ft/hr
B117: Equations from 2006 manual:
B119: Trapezoidal infiltration basin: | E119: Ab = (2Vw – At*db)/(db – P/6 + fcT/6) | I119: (2006 CNMI Manual, Vol. 1, Sec. 3.2.4.3d)
E120: Vw = | F120: =$N$40-$I$40 ->  | G120: cu. ft. (design volume - Qp-25, Post Dev. - Pre Dev.))
E121: At = | G121: sq. ft. (area at top of the basin - trial and error)
E122: db = | G122: ft (depth of basin - trial and error)
E123: P = | F123: =$N$37 -> 0 | G123: in (design rainfall depth)
E124: T = | G124: hr (time to fill basin - 24 hours per GEPA guidance)
D126: Ab (computed) = | F126: =(2*F120-F121*F122)/(F122-F123/6+E114*F124/6) ->  | G126: sq. ft. (surface area at bottom)
B128: Infiltration trench: | E128: Ap = Vw / (ndt + fcT/12) | I128: (2006 CNMI Manual, Vol. 1, Sec. 3.2.4.3d)
E129: Vw = | F129: =$N40-$I40 ->  | G129: cu. ft.
E130: n = | G130: (porosity of limestone aggregate fill - use 0.4 per manual)
E131: dt = | G131: ft (trench depth - trial and error)
E132: T = | G132: hr (time to fill trench in hours - 24 hours per GEPA guidance)
C134: Ap (computed) = | F134: =F129/(F130*F131+E114*F132/12) ->  | G134: sq. ft. (surface area at bottom of the trench)
B136: Manual trial-and-error sizing: open basins
C137: Side slope | G137: :1 | H137: Trial-and-error: enter proposed basin dimensions,
C138: Top W | G138: ft | H138: and adjust until "Size error" close to zero and positive
C139: Top L | G139: ft
C140: Depth | G140: ft
C141: Bottom W | F141: =F138-2*F137*F140 -> 0 | G141: ft | H141: <-- CAUTION: bottom dimensions cannot be negative!
C142: Bottom L | F142: =F139-2*F137*F140 -> 0 | G142: ft | H142: Adjust W, L, or depth to ensure only positive dimensions.
C143: Basin Volume | F143: =F146*F140 -> 0 | G143: cu. ft.
C144: Top basin area | F144: =F138*F139 -> 0 | G144: sq. ft.
C145: Bottom basin area | F145: =F141*F142 -> 0 | G145: sq. ft.
C146: Average Basin area Aav | F146: =((F138*F139)+(F141*F142))/2 -> 0 | G146: sq. ft.
C147: Infiltration rate (AbX fc/12) | F147: =E114*F146/12 -> 0 | G147: cu. ft./hr
C148: Infiltration time (Time to fill) | F148: 24 | G148: hr
C149: Volume infiltrated (Infil. Rate x infil. Time) | F149: =F147*F148 -> 0 | G149: cft
C150: Size error (Vinfil - Vw) | F150: =(F149+F143)-F120 ->  | G150: cft | H150: (make this positive and as close to zero as possible)
C151: Check | F151: =IF((F143+F149)>F120,"OK!","ERROR") ->  | H151: (Is the Basin Vol. + Infiltrated Vol. >= Design Vol.)

Sheet Detention Basins
A1: This tab sizes Detention Ponds according to the 2006 CNMI Manual
A3: Project:
A4: Designer:
A5: Date:
B7: Units: | C7: English
A9: 1. General Storage Volume Requirements | F9: (from "Runoff Volumes" worksheet)
B11: Recharge Volume (Acre-ft) | E11: Rev => | F11: ='Runoff Volumes'!$K$47 -> 0
B12: Water Quality Volume (Acre-ft) | E12: WQv => | F12: ='Runoff Volumes'!$K$62 -> 
B13: Stream Protection (Acre-ft) | E13: Cpv => | F13: ='Runoff Volumes'!$K$74 -> 
B14: Overbank Control (Acre-ft) | E14: Qp-25 => | F14: ='Runoff Volumes'!$K$87 -> 
A16: 2. Project Area Details
B18: Drainage Area, A, (Acres) | E18: =>
B19: Detention Pond Classification | E19: => | F19: P-2
A22: 3. Detention Basin Sizing
B24: Pretreatment Volume= (0.1)*(WQv) = | F24: =0.1*$F$12 -> 
B25: Permanent Pool Volume=(WQv)-(Rev) = | F25: =$F$12-$F$11 -> 
B27: Detention Basin Floor Elevation ==>
B28: Elevation Increment ==>
B29: Detention Basin Top Elevation ==>
A37: 4. Storage - Elevation Table
B39: Elevation | C39: Area | D39: Ave. Area | E39: Depth | F39: Cum. Vol. | G39: Cum. Vol. | H39: Vol. above | I39: Elevation
B40: (ft) | C40: (Sq.-ft.) | D40: (Sq.-ft.) | E40: (ft) | F40: (Cu-ft) | G40: (Ac-ft) | H40: Perm. Pool | I40: (ft)
H41: (Ac-ft)
B42: =$F$27 -> 0 | G42: 0 | H42: =IF($G42<$F$25," ",$G42-$F$25) ->  | I42: =$B42 -> 0
B43: =$B42+$F$28 -> 0 | D43: =($C43+$C42)/2 -> 0 | E43: =$B43-$B42 -> 0 | F43: =$D43*$E43 -> 0 | G43: =$F43/43560 -> 0 | I43: =$B43 -> 0
B44: =$B43+$F$28 -> 0 | D44: 0 | E44: =$B44-$B43 -> 0 | F44: =$F43+($D44*$E44) -> 0 | G44: 0 | I44: 0
B45: 0 | D45: 0 | E45: 0 | F45: 0 | G45: 0 | I45: 0
B46: 0 | D46: 0 | E46: 0 | F46: 0 | G46: 0 | I46: 0
B47: 0 | D47: 0 | E47: 0 | F47: 0 | G47: 0 | I47: 0
B48: 0 | D48: 0 | E48: 0 | F48: 0 | G48: 0 | I48: 0
B49: 0 | D49: 0 | E49: 0 | F49: 0 | G49: 0 | I49: 0
B50: 0 | D50: 0 | E50: 0 | F50: 0 | G50: 0 | I50: 0
B51: 0 | D51: 0 | E51: 0 | F51: 0 | G51: 0 | I51: 0
B52: 0 | D52: 0 | E52: 0 | F52: 0 | G52: 0 | I52: 0
B53: 0 | D53: 0 | E53: 0 | F53: 0 | G53: 0 | I53: 0
B54: 0 | D54: 0 | E54: 0 | F54: 0 | G54: 0 | I54: 0
A81: 5. Set Drain Rate for Basin
B83: Define Average Extended Detention Release Rate over 24 hours
C85: Cpv => | D85: ='Runoff Volumes'!$K$74 -> 
B86: Ave. Release Rate (cfs) => | D86: =($D$85*43560)/(24*3600) -> 
A89: 6. Define Basin Outlet Works
B91: Cpv Outlet Design Parameters | G91: 25 Yr Release Design Parameters
B92: =_xlfn.CONCAT("Required Cpv ",IF($C$7="ENGLISH","(Ac-ft)","(Cu-m)")) -> Required Cpv (Ac-ft) | E92: =IF($C$7="English",'Runoff Volumes'!K74,'Runoff Volumes'!G84*0.28317) ->  | G92: =_xlfn.CONCAT("Orifice Invert Elevation ",IF($C$7="ENGLISH","(ft)","(m)")) -> Orifice Invert Elevation (ft)
B93: =_xlfn.CONCAT("Average 24hr Release ",IF($C$7="ENGLISH","(cfs)","(cms)")) -> Average 24hr Release (cfs) | E93: =IF($C$7="English",'Runoff Volumes'!G85,'Runoff Volumes'!G85*0.28317) ->  | G93: =_xlfn.CONCAT("25 Yr Storage Elev. ",IF($C$7="ENGLISH","(ft)","(m)")) -> 25 Yr Storage Elev. (ft)
B94: =_xlfn.CONCAT("Cpv Storage Elev. ",IF($C$7="ENGLISH","(ft)","(m)")) -> Cpv Storage Elev. (ft) | G94: =_xlfn.CONCAT("Maximum Head ",IF($C$7="ENGLISH","(ft)","(m)")) -> Maximum Head (ft) | J94: =$J93-$J92 -> 0 | T94: =TAN(RADIANS($E$168/2)) -> 0
B95: =_xlfn.CONCAT("Orifice Inlet Elev. ",IF($C$7="ENGLISH","(ft)","(m)")) -> Orifice Inlet Elev. (ft) | G95: =_xlfn.CONCAT("Orifice Center Elevation ",IF($C$7="ENGLISH","(ft)","(m)")) -> Orifice Center Elevation (ft) | J95: =$J92+($J93-$J92)/2 -> 0 | K95: USE:
B96: =_xlfn.CONCAT("Available Head ",IF($C$7="ENGLISH","(ft)","(m)")) -> Available Head (ft) | E96: =($E$94-$E$95)/2 -> 0 | G96: =_xlfn.CONCAT("Compute Total Slot Length ",IF($C$7="ENGLISH","(ft)","(m)")) -> Compute Total Slot Length (ft) | J96: =($J104-$D86)/((3.1)*($J94)^1.5) ->  | T96: =TAN(RADIANS(53.2)) -> 1.33672759
B97: Discharge Coefficient, C | G97: =_xlfn.CONCAT("Compute Max Weir Flow ",IF($C$7="ENGLISH","(cfs)","(cms)")) -> Compute Max Weir Flow (cfs) | J97: =(($J$99)*($K$96)*($J$94)^1.5) -> 0
B98: =_xlfn.CONCAT("Req. Orifice Area ",IF($C$7="ENGLISH","(ft^2)","(m^2)")) -> Req. Orifice Area (ft^2) | E98: =$E$93/(($E$97)*((2*32.2)*($E$96))^0.5) ->  | G98: =_xlfn.CONCAT("Check Orifice Equ. ",IF($C$7="ENGLISH","(cfs)","(cms)")) -> Check Orifice Equ. (cfs) | J98: =$J101*($K96*$J94)*((64.4*($J$94)/2)^0.5) -> 0
B99: =_xlfn.CONCAT("Req. Orifice Diameter ",IF($C$7="ENGLISH","(ft)","(m)")) -> Req. Orifice Diameter (ft) | E99: =((4*$E$98/3.14)^0.5) ->  | G99: Weir Coefficient
B100: =_xlfn.CONCAT("Req. Orifice Diameter ",IF($C$7="ENGLISH","(in)","(mm)")) -> Req. Orifice Diameter (in) | E100: =$E99*12 ->  | G100: Orifice Type | J100: Square-edged
G101: Discharge Coefficient | J101: 0.6
B104: =_xlfn.CONCAT("Analysis Step Interval ",IF($C$7="ENGLISH","(ft)","(m)")) -> Analysis Step Interval (ft) | G104: =_xlfn.CONCAT("Allowable Release Rate ",IF($C$7="ENGLISH","(cfs)","(cms)")) -> Allowable Release Rate (cfs)
B105: Detention Basin Bottom Elev.
B106: Detention Basin Top Elev.
J107: `
B109: Outlet Barrel Capacity
B111: Pipe Data | G111: Pipe Hydraulic Characteristics
B112: Barrel Material Type | G112: Barrel Manning's n Value
B113: Barrel Diameter (in) | G113: Barrel Coefficient of Discharge
B114: Barrel Diameter (ft) | E114: =$E113/12 -> 0 | G114: Pond Water Surface Elev (ft)
B115: Barrel Cross Sectional Area (ft2) | E115: =(3.14*($E114)^2)/4 -> 0 | G115: Head above Barrel Inlet Cntrlne. (ft) | J115: =($J114-$E117)-($E114/2) -> 0
B116: Estimated Barrel Length (ft) | G116: Head above Barrel Outlet Crown. (ft) | J116: =($J114-($E118+$E114)) -> 0
B117: Barrel Inlet Invert (ft) | G117: Minor Loss Coefficient (km)
B118: Barrel Outlet Invert (ft) | G118: Pipe Friction Loss Coefficient (kp) | J118: =(5087)*($J$112)^2/($E$113)^1.333 -> 
C122: Inlet Control | G122: Outlet Control
C123: Q (cfs) = Cd*A*(2gh)0.5 | E123: =($J113)*($E115)*(2*32.2*($J115))^0.5 -> 0 | G123: Q (cfs) =A*[(2gH)/1+km+kp*L]0.5 | J123: =$E$115*((2*32.2*$J116)/(1+$J117+($J118*$E116)))^0.5 -> 
D125: Control Q (cfs) | F125: ==> | G125: =IF($E$123<$J$123,"Inlet","Outlet") ->  | H125: =IF($E$123<$J$123,$E$123,$J$123) -> 
B128: STAGE-STORAGE-DISCHARGE RESULTS
B131: Elevation (ft) | C131: Storage (Acre-ft) | D131: Riser | K131: Outlet Barrel | M131: Total Discharge
D132: Cpv | F132: High Stage | K132: 42" Pipe
D133: 8" Orifice | F133: Orifice | H133: Weir | J133: Control | K133: H | L133: Q
D134: H (ft) | E134: Q (cfs) | F134: H (ft) | G134: Q (cfs) | H134: H (ft) | I134: Q (cfs) | J134: Q (cfs) | K134: (ft) | L134: (cfs) | M134: Q (cfs)
B135: =E95 -> 0 | C135: =VLOOKUP($B135,$B42:$I54,7,FALSE) ->  | D135: 0 | E135: =1.59*($D135)^0.5 -> 0 | F135: =IF($B135-389.5<=0,0,$B135-389.5) -> 0 | G135: =($E$97)*($K$96*$J$94)*((64.4*$F135)^0.5) -> 0 | H135: =IF($B135-388<=0,0,$B135-388) -> 0 | I135: =$J$99*$K$96*($H135)^1.5 -> 0 | J135: =IF($G135<$I135,$G135,$I135) -> 0 | M135: =$E135+$J135 -> 0
B136: =IF(($B135+1)<=$J$93,$B135+1,$J$93) -> 0 | D136: =$B136-385.33 -> -385.33 | F136: 0 | G136: 0 | H136: 0 | I136: 0 | J136: 0
B137: 0 | D137: -385.33 | F137: 0 | G137: 0 | H137: 0 | I137: 0 | J137: 0
B138: 0 | D138: -385.33 | F138: 0 | G138: 0 | H138: 0 | I138: 0 | J138: 0
B139: 0 | D139: -385.33 | F139: 0 | G139: 0 | H139: 0 | I139: 0 | J139: 0
B140: 0 | D140: -385.33 | F140: 0 | G140: 0 | H140: 0 | I140: 0 | J140: 0
B141: 0 | D141: -385.33 | F141: 0 | G141: 0 | H141: 0 | I141: 0 | K141: =IF($G$125="Inlet",$J$115,$J$116) ->  | L141: =$H$125 ->  | N141: =IF($M$141<$J$104,"OK!","Recompute!") -> 
B142: =IF(($B141+1)<=$J$93,$B141+1," ") ->  | C142: =IF($B142=" "," ",(VLOOKUP($B142,$B49:$I61,7,FALSE))) ->  | D142: =IF($B142=" "," ",($B142-385.33)) ->  | E142: =IF($B142=" "," ",(1.59*($D142)^0.5)) ->  | F142: =IF($B142=" "," ",($B142-388)) ->  | G142: =IF($B142=" "," ",($B142-388)) ->  | H142: =IF($B142=" "," ",($B142-388)) ->  | I142: =IF($B142=" "," ",(21.7*($H142)^1.5)) ->  | M142: =IF($B142=" "," ",($E142+$J142)) -> 
B145: Emer. Spillway Design Parameters
B147: 50yr Post Development Storage Volume | F147: ==> | G147: (Vs/Vr) * P(50yr) * (1/12) * A ==> | J147: =$G$158*G$152*(1/12)*$F$18 ->  | K147: Acre-ft
J148: =$J$147*43560 ->  | K148: Cu-ft
G149: 50 Yr Post Dev. Storage Elevation (ft) | J149: 391.3
F151: Pre | G151: Post
B152: Runoff, Qp-50, (in.) | D152: (P-0.2S)2/(P+0.8S) | F152: =('TR55'!$I$23) ->  | G152: =('TR55'!$N$23) -> 
B153: 50 yr Peak Discharge (cfs) | F153: =('TR55'!$I$25) ->  | G153: =('TR55'!$N$25) -> 
B154: Runoff Volume (Acre-ft) | F154: =($F$152*$F$18)/12 ->  | G154: =($G$152*$F$18)/12 -> 
B155: Runoff Volume (Cu-ft) | F155: =$F$154*43560 ->  | G155: =$G$154*43560 -> 
B157: Ratio of Outflow to Inflow (qo/qi) = | G157: =$F153/$G153 -> 
B158: Vs/Vr= C0+C1(qo/qi)+C2(qo/qi)2+C3(qo/qi)3 = | G158: =IF($G$77="YES"," ",(Lookup!$N$30)+((Lookup!$O$30)*$G$157)+((Lookup!$P$30)*($G$157)^2)+((Lookup!$Q$30)*($G$157)^3)) -> 
B161: Emergency Spillway Discharge
B162: Type of weir | E162: trapezoidal
B163: =_xlfn.CONCAT("Weir Crest Elevation ",IF($C$7="ENGLISH","(ft)","(m)")) -> Weir Crest Elevation (ft)
B164: =_xlfn.CONCAT("Length of Weir Base ",IF($C$7="ENGLISH","(ft)","(m)")) -> Length of Weir Base (ft)
B165: Weir Coefficient | E165: =IF($C$7="English",3.33,1.84) -> 3.33
B166: Side Slope of Weir in Terms of H:V
B167: Side Slope of Weir (degrees) | E167: =ROUND(ATAN($E$166)*180/PI(),2) -> 0
B168: Virtual Notch for Trapezoid (degrees)
B169: Notch angle in Radians | E169: =RADIANS($E$168) -> 0
B170: notch angle (degrees)
B171: Discharge Coefficient c | E171: =(0.607165052-0.000874466963*IF(E162="triangular",$E$170,$E$168)+0.00000610393334*IF(E162="triangular",$E$170,$E$168)^2) -> 0.607165052
B172: =_xlfn.CONCAT("Head Correction Factor, k ",IF($C$7="ENGLISH","(ft)","m")) -> Head Correction Factor, k (ft) | E172: =(0.0144902648-0.00033955*IF(E162="triangular",$E$170,$E$168)+0.00000329819003*IF(E162="triangular",$E$170,$E$168)^2-0.0000000106215442*IF(E162="triangular",$E$170,$E$168)^3) -> 0.0144902648
B173: Max. Head (ft) | E173: =E106-E163 -> 0
B174: Max. Emer. Weir Discharge (cfs) | E174: =_xlfn.IFS($E$162="rectangular",$E$165*$E$164*(E106-$E$163)^(3/2),$E$162="triangular",4.28*$E$171*TAN(RADIANS($E$170/2))*(IF($C$7="ENGLISH",E106-$E$163,((E106-$E$163))*3.281)+$E$172)^(5/2)*IF($C$7="ENGLISH",1,1/35.315),$E$162="trapezoidal",($E$165*$E$164*(E106-$E$163)^(3/2))+4.28*$E$171*TAN(RADIANS($E$168/2))*(IF($C$7="ENGLISH",E106-$E$163,((E106-$E$163))*3.281)+$E$172)^(5/2)*IF($C$7="ENGLISH",1,1/35.315)) -> 0

Sheet Swales
A1: Swale Design
A3: Project:
A4: Designer: | H4: Checked:
A5: Date: | H5: Date:
A9: 1. General Storage Volume Requirements | F9: (from "Runoff Volumes" worksheet)
B11: Recharge Volume | E11: Rev => | F11: ='Runoff Volumes'!$K$47 -> 0 | I11: Q1-year (cfs) | J11: =>
B12: Water Quality Volume | E12: WQv => | F12: ='Runoff Volumes'!$K$62 ->  | I12: Q2-year (cfs) | J12: =>
B13: Stream Protection | E13: Cpv => | F13: ='Runoff Volumes'!$K$74 -> 
B14: Overbank Control | E14: Qp-25 => | F14: ='Runoff Volumes'!$K$87 -> 
A16: 2. Project Area Details
B18: Drainage Area (Acres): | E18: => | H18: Filter bed depth (ft) | J18: => | L18: from CNMI, Vol. 1, Figure 3.13
B19: Detention Pond Classification: | E19: => | F19: =IF($G$19="","-select-") -> -select- | H19: Filter Coeff. Of Perm. (ft/day) | J19: =>
B20: Geologic Region: | E20: => | F20: Volcanic | H20: Filter drain time( days) | J20: =>
B21: Water Quality Region: | E21: => | F21: S2 | H21: Ave water height above filter (ft) =>
B22: Resource Designation: | E22: => | F22: =IF(OR($F$21="M1",$F$21="S1"),"High","Moderate") -> Moderate | H22: Expected side Slopes (H:V) | J22: =>
A25: 3. Dry Swale
B27: Required Dry Swale Size - Af -(ft2) | E27: => | F27: =(($F$12*43560)*($K$18))/($K$19*($K$21+$K$18)*$K$20) -> 
B28: Af = (WQv)*(df) / (k)*(hf+df)*(tf)
B30: Available Length ft) | E30: =>
B31: Upstream Invert Elev. | E31: =>
B32: Downstream Invert Elev. | E32: =>
B33: Manning's "n" Value | E33: =>
G34: Is slope btwn 1% and 4%?
B35: Available Slope (%) | E35: => | F35: =(($F31-$F32)/$F30)*100 ->  | G35: =IF(AND($F$35>1<4),"NO","OK") -> 
B37: WQv Required Top Width (ft) | E37: => | F37: =$F$27/$F$30 -> 
B38: WQv Required Bottom Width (ft) | E38: => | F38: =$F$37-(2*(2*0.75)) ->  | G38: =IF($F$37<2,"OK","Bottom Width must be a minimum 2' Wide") -> 
B40: Adjusted Bottom Width (ft) | E40: => | F40: =IF($F$38>=2,$F$38,2) ->  | G40: If Required BW is <2, use 2
B41: Adjusted Ave. Depth (ft) | E41: => | F41: =IF($F$38>=2,$F$38,($F$37-2)/2*0.5) -> 
B42: Adjusted Max. Depth (ft) | E42: => | F42: =ROUNDUP($F$41*2,1) -> 
B44: Are Check Dams Required ? | E44: => | F44: =IF($F$35>2,"YES","NO") ->  | G44: If Slope > 2, then check dams are required
B45: Check Dam Interval (ft) | E45: => | F45: =$F$42/($F$35/100) -> 
B46: No. of Check Dams Required? | E46: => | F46: =$F$30/$F$45 -> 
B48: Check Erosive Vel. For 1yr storm:
B49: Discharge - 1yr storm (cfs) | E49: => | F49: =$K$11 -> 0
B50: Required Swale Depth (ft) | E50: =>
B51: Calculation to determine depth | E51: => | F51: =((3.95*$F$50)+(2*$F$50^2))*((1.49/$F$33)*((3.95*$F$50)+(2*$F$50^2))/((3.95+(4.47*$F$50)))^0.667*(0.027^0.5)) -> 
B53: 1yr Storm Velocity:
B54: Swale Cross Section Area: | E54: => | F54: =((3.95*$F$50)+(2*$F$50^2)) -> 0
B55: Velocity: v= Q/a (fps) | E55: => | F55: =$F$49/$F$54 ->  | G55: =IF($F$55<5,"OK","NO") ->  | H55: Is velocity <5 fps
B58: 2 Yr Storm Conveyance
B59: Discharge - 2yr storm (cfs) | E59: => | F59: =$K$12 -> 0
B60: Required Swale Depth (ft) | E60: =>
B61: Calculation to determine depth | E61: => | F61: =((3.95*$F$60)+(2*$F$60^2))*((1.49/$F$33)*((3.95*$F$60)+(2*$F$60^2))/((3.95+(4.47*$F$60)))^0.667*(0.027^0.5)) -> 
B63: Total Swale Depth:
C65: WQv Depth (ft) | E65: =$F$42 -> 
C66: 1yr Req'd Depth (ft) | E66: =$F$50 -> 0
C67: 2yr Req'd Depth (ft) | E67: =$F$60 -> 0
C68: Freeboard Depth (ft) | E68: 0.5
C70: Total Depth (ft) | E70: => | F70: =$E$65+$E$68+$E$67 -> 

Sheet Bioretention
A1: Bio-Remediation Measures
A3: Project:
A4: Designer: | H4: Checked:
A5: Date: | H5: Date:
A9: 1. General Storage Volume Requirements | F9: (from "Runoff Volumes" worksheet)
B11: Recharge Volume | E11: Rev => | F11: ='Runoff Volumes'!$K$47 -> 0 | G11: 0.088 | I11: Q1-year (cfs) | J11: =>
B12: Water Quality Volume | E12: WQv => | F12: ='Runoff Volumes'!$K$62 ->  | G12: 0.047 | I12: Q2-year (cfs) | J12: =>
B13: Stream Protection | E13: Cpv => | F13: ='Runoff Volumes'!$K$74 -> 
B14: Overbank Control | E14: Qp-25 => | F14: ='Runoff Volumes'!$K$87 -> 
A16: 2. Project Area Details
B18: Drainage Area (Acres) | E18: A => | H18: Filter bed depth (ft) | J18: =>
B19: Detention Pond Classification | E19: => | F19: =IF($G$19="","-select-") -> -select- | H19: Filter Coeff. Of Perm. (ft/day) | J19: =>
B20: Geologic Region: | E20: => | F20: =IF($G$20="","-select-") -> -select- | H20: Filter drain time( days) | J20: =>
B21: Water Quality Region: | E21: => | F21: =IF($G$21="","-select-") -> -select- | H21: Ave water height above filter (ft) =>
B22: Resource Designation: | E22: => | F22: =IF(OR($F$21="M1",$F$21="S1"),"High","Moderate") -> Moderate | H22: Expected side Slopes (H:V) | J22: =>
A25: 3. Determine Size of Bioretention Filter Area
B27: Treatment Volume Required (Ac-ft) | E27: => | F27: =IF($F12<$F11,$F11,$F11+$F12) -> 
B29: Required Filter Area - Af -(ft3) | E29: => | F29: =(($F$27*43560)*($K$18))/($K$19*($K$21+$K$18)*$K$20) -> 
B30: Af = (WQv)*(df) / (k)*(hf+df)*(tf) | I30: =0.78/640 -> 0.00121875
A32: 4. Determine Bioretention Inflow
B34: Rainfall Value, P (in) | E34: => | F34: =IF($F$20="Limestone",1.5,0.8) -> 0.8
B35: WQv Runoff Volume, Q (in) | E35: => | F35: =($F$27*12)/$F$18 -> 
B36: Q= (Req'd Vol)*(12)/A
B38: Compute CN based on WQv | E38: => | F38: =1000/((10+(5*($F$34))+(10*($F$35)))-10*((($F$35)^2)+(1.25*$F$35*$F$34))^0.5) -> 
B39: CN=1000/[10+5P+10Q-10(Q2+1.25QP)1/2]
B41: Time of Concentration (hrs) | G41: =TofC!$V$21 -> 0
B43: Initial Abstraction, (200/CN)-2, (in) | E43: => | F43: =(200/$F$38) -2 -> 
B45: Abstraction Ratio (Ia/P) | E45: => | F45: =$F43/$F34 -> 
B47: Unit Peak Discharge, qu, (csm/in) | E47: => | F47: 163
B49: Water Quality Peak Flow, Qp, (cfs) | E49: => | F49: =$F$47*($F$18/640)*$F$35 -> 
B50: Qp = qu*A*WQv

Sheet Sand Filter
A1: Sand Filter
A3: Project:
A4: Designer: | H4: Checked:
A5: Date: | H5: Date:
A8: 1. Project Area Details
B10: Drainage Area (Acres) | E10: A => | F10: 0.19 | I10: Q1-year (cfs) | J10: =>
B11: Detention Pond Classification | E11: => | F11: P-2 | I11: Q2-year (cfs) | J11: =>
B12: Geologic Region: | E12: => | F12: Limestone
B13: Water Quality Region: | E13: => | F13: M1
B14: Resource Designation: | E14: => | F14: =IF(OR($F$13="M1",$F$13="S1"),"High","Moderate") -> High
A16: 2. General Storage Volume Requirements | F16: (from "Runoff Volumes" worksheet)
B18: Recharge Volume (ac-ft) | E18: Rev => | F18: ='Runoff Volumes'!$K$47 -> 0
B19: Water Quality Volume (ac-ft) | E19: WQv => | F19: ='Runoff Volumes'!$K$62 ->  | G19: =F19*43560 -> 
B20: Stream Protection | E20: Cpv => | F20: ='Runoff Volumes'!$K$74 -> 
B21: Overbank Control | E21: Qp-25 => | F21: ='Runoff Volumes'!$K$87 ->  | H21: Min Req'd Vol. (cu-ft) | J21: => | K21: =0.75*($F$19*43560) -> 
A23: 3. Determine Available Head
B25: Low Ground Elevation, H, (ft) | E25: =>
B26: Freeboard Allowance, FB, (ft) | E26: =>
B27: Outfall Invert, Elout, (ft) | E27: =>
B28: Slope Allowance, S, (ft) | E28: =>
B29: Underdrain Cover, hu, (ft) | E29: =>
B30: Sand Filter Bed, hs , (ft) | E30: =>
B32: Available Head:
B33: H - FB - ( Elout + S + hu + hs ) | E33: => | F33: =$F25-$F26-($F27+$F28+$F29+$F30) -> 0
B35: Average Depth (ft) | E35: => | F35: =$F33/2 -> 0
A37: 4. Flow Diversion Structure
B39: Assumed 2yr Water Surface Elevation | E39: =>
B40: Assumed Head (ft) | E40: =>
B42: Find Weir Length using Weir Equation:
B43: Q=CLH3/2 | E43: => | F43: =$K11/(3.1*(POWER($F40,1.5))) -> 
B44: Use: | E44: => | F44: =IF($F43<=0.5,0.5,$F43) -> 
A47: 5. Size Filtration Bed Chamber
B49: Min. Required Filtration Area - Af -(ft2) | E49: => | F49: =(($F$19*43560)*($K$49))/($K$50*($K$52+$K$49)*$K$51) ->  | H49: Filter bed depth, df, (ft) | J49: =>
B50: Af = (WQv)*(df) / (k)*(hf+df)*(tf) | H50: Filter Coeff. Of Perm. (ft/day) | J50: =>
H51: Filter drain time( days) | J51: =>
B52: Assumed Width of Chamber (ft) | E52: => | H52: Ave water height above filter (ft) =>
B53: Assumed Length of Chamber (ft) | E53: => | F53: =$F49/$F52 ->  | H53: Sand Porosity, n | J53: =>
B54: Use (Round Up) | E54: =>
B55: Design Area, Af-des, (ft2) | E55: => | F55: =$F$52 * $F$54 -> 0 | G55: =IF($F$55>$F$49,"OK!","Recompute!") ->  | H55: Is Design Area > Req. Min. Area ?
A57: 6. Size Sedimentation Bed Chamber
B59: Req. Sedimentation Chamber, As , (ft2) | E59: => | F59: =0.066*($F19*43560) -> 
B60: As = 0.066 (WQv)
B62: Assumed Width of Chamber (ft) | E62: =>
B63: Assumed Length of Chamber (ft) | E63: => | F63: =$F59/$F62 -> 
B64: Use (Round Up) | E64: =>
B65: Design Area, As-des, (ft2) | E65: => | F65: =$F$62 * $F$64 -> 0 | G65: =IF($F$65>$F$59,"OK!","Recompute!") ->  | H65: Is Design Area > Req. Min. Area ?
A67: 7. Design Volume Checks
B69: Volume within Filter Bed, Vf, (ft3) | E69: => | F69: =$F$55*$K$49*$K$53 -> 0
B70: Vf = Af*(df)*(n)
B72: Storage above Filter Bed, Vf-temp, (ft3) | E72: => | F72: =2 * $K$52 * $F$55 -> 0
B73: Vf-temp = 2 * hf * Af
B75: Remaining Volume in Chamber, Vs, (ft3) | E75: => | F75: =$K$21 - ($F$69 + $F$72) -> 
B76: Vs = Vmin - (Vf + Vf-temp)
B78: Compute Sed Chamber Height, hs, (ft) | E78: => | F78: =$F$75 / ($F$52 * $F$54) ->  | G78: =IF($F$78>$F$33,"Recompute!","OK!") ->  | H78: Is Sed. Chamber Height > Avail. Head ?
B79: hs = Vs / A

Sheet SBUH
B3: Santa Barbara Urban Hydrograph
A5: Project:
A6: Designer: | I6: Checked:
A7: Date: | I7: Date:
P10: Units of Choice: | Q10: English
B11: 1 | C11: 2 | D11: 3 | E11: 4 | F11: 5 | G11: 6 | H11: 7 | I11: 8 | J11: 9 | K11: 10 | L11: 11 | M11: 12 | N11: 13
H12: Pervious | J12: Impervious | P12: Project Area(acres) =
B13: Tme Step | C13: Time | D13: Rainfall Dist | E13: Mass Curve | F13: Inc. Rain | G13: Acc. Rain | H13: Acc. Runoff | I13: Inc. Runoff | J13: Acc. Runoff | K13: Inc. Runoff | L13: Tot. Runoff | M13: Inst. Hydrograph | N13: Des. Hydrograph | P13: Total Runoff Depth (in)=
C14: (min) | D14: (frac) | F14: =IF($Q$10="ENGLISH","(in)","(mm)") -> (in) | G14: =IF($Q$10="ENGLISH","(in)","(mm)") -> (in) | H14: =IF($Q$10="ENGLISH","(in)","(mm)") -> (in) | I14: (in) | J14: (in) | K14: (in) | L14: (in) | M14: =IF($Q$10="ENGLISH","(cfs)","(cms)") -> (cfs) | N14: =IF($Q$10="ENGLISH","(cfs)","(cms)") -> (cfs) | P14: Time Step (min)=
P15: Time of Concentration=
B16: 1 | C16: 0 | D16: 0 | F16: =0 -> 0 | G16: 0 | H16: 0 | I16: 0 | J16: 0 | K16: 0 | L16: =($Q$17/$Q$12)*$I16+($Q$18/$Q$12)*$K16 ->  | M16: 0 | N16: 0
B17: =$B16+1 -> 2 | C17: =IF($Q$14="",10,$Q$14) -> 10 | D17: 0.004 | F17: =$D17*$Q$13 -> 0 | G17: =$G16+$F17 -> 0 | H17: =_xlfn.IFS($G17<$S$20,0,$G17>$S$20,((($G17-$S$20)^2)/($G17+(0.8*$Q$20)))) -> 0 | I17: =$H17-$H16 -> 0 | J17: =_xlfn.IFS($G17<$S$21,0,$G17>$S$21,((($G17-$S$21)^2)/($G17+(0.8*$Q$21)))) -> 0 | K17: =$J17-$J16 -> 0 | L17: =($Q$17/$Q$12)*$I17+($Q$18/$Q$12)*$K17 ->  | M17: =(60.5*$L17*$Q$12)/$Q$14 ->  | N17: =$N16+$Q$26*($M16+$M17-(2*$N16)) ->  | P17: Pervious Area= | R17: CN= | S17: 74
B18: =$B17+1 -> 3 | C18: =$C17+$Q$14 -> 10 | D18: 0.004 | F18: =$D18*$Q$13 -> 0 | G18: =$G17+$F18 -> 0 | H18: =_xlfn.IFS($G18<$S$20,0,$G18>$S$20,((($G18-$S$20)^2)/($G18+(0.8*$Q$20)))) -> 0 | I18: =$H18-$H17 -> 0 | J18: =_xlfn.IFS($G18<$S$21,0,$G18>$S$21,((($G18-$S$21)^2)/($G18+(0.8*$Q$21)))) -> 0 | K18: =$J18-$J17 -> 0 | M18: =(60.5*$L18*$Q$12)/$Q$14 ->  | N18: =$N17+$Q$26*($M17+$M18-(2*$N17)) ->  | P18: Impervious Area= | R18: CN= | S18: 98
B19: 4 | C19: =$C18+$Q$14 -> 10 | D19: 0.004 | F19: 0 | G19: 0 | H19: =_xlfn.IFS($G19<$S$20,0,$G19>$S$20,((($G19-$S$20)^2)/($G19+(0.8*$Q$20)))) -> 0 | I19: 0 | J19: =_xlfn.IFS($G19<$S$21,0,$G19>$S$21,((($G19-$S$21)^2)/($G19+(0.8*$Q$21)))) -> 0 | K19: 0
B20: 5 | C20: 10 | D20: 0.004 | F20: 0 | G20: 0 | H20: =_xlfn.IFS($G20<$S$20,0,$G20>$S$20,((($G20-$S$20)^2)/($G20+(0.8*$Q$20)))) -> 0 | I20: 0 | J20: =_xlfn.IFS($G20<$S$21,0,$G20>$S$21,((($G20-$S$21)^2)/($G20+(0.8*$Q$21)))) -> 0 | K20: 0 | P20: Pervious S= | Q20: =(1000/$S$17)-10 -> 3.513513514 | R20: I(a)=0.2S= | S20: =0.2*$Q$20 -> 0.7027027027
B21: 6 | C21: 10 | D21: 0.004 | F21: 0 | G21: 0 | H21: =_xlfn.IFS($G21<$S$20,0,$G21>$S$20,((($G21-$S$20)^2)/($G21+(0.8*$Q$20)))) -> 0 | I21: 0 | J21: =_xlfn.IFS($G21<$S$21,0,$G21>$S$21,((($G21-$S$21)^2)/($G21+(0.8*$Q$21)))) -> 0 | K21: 0 | P21: Impervious S= | Q21: =(1000/$S$18)-10 -> 0.2040816327 | R21: I(a)=0.2S= | S21: =0.2*$Q$21 -> 0.04081632653
B22: 7 | C22: 10 | D22: 0.004 | F22: 0 | G22: 0 | H22: =_xlfn.IFS($G22<$S$20,0,$G22>$S$20,((($G22-$S$20)^2)/($G22+(0.8*$Q$20)))) -> 0 | I22: 0 | J22: =_xlfn.IFS($G22<$S$21,0,$G22>$S$21,((($G22-$S$21)^2)/($G22+(0.8*$Q$21)))) -> 0 | K22: 0
B23: 8 | C23: 10 | D23: 0.004 | F23: 0 | G23: 0 | H23: =_xlfn.IFS($G23<$S$20,0,$G23>$S$20,((($G23-$S$20)^2)/($G23+(0.8*$Q$20)))) -> 0 | I23: 0 | J23: =_xlfn.IFS($G23<$S$21,0,$G23>$S$21,((($G23-$S$21)^2)/($G23+(0.8*$Q$21)))) -> 0 | K23: 0
B24: 9 | C24: 10 | D24: 0.004 | F24: 0 | G24: 0 | H24: =_xlfn.IFS($G24<$S$20,0,$G24>$S$20,((($G24-$S$20)^2)/($G24+(0.8*$Q$20)))) -> 0 | I24: 0 | J24: =_xlfn.IFS($G24<$S$21,0,$G24>$S$21,((($G24-$S$21)^2)/($G24+(0.8*$Q$21)))) -> 0 | K24: 0
B25: 10 | C25: 10 | D25: 0.004 | F25: 0 | G25: 0 | H25: =_xlfn.IFS($G25<$S$20,0,$G25>$S$20,((($G25-$S$20)^2)/($G25+(0.8*$Q$20)))) -> 0 | I25: 0 | J25: =_xlfn.IFS($G25<$S$21,0,$G25>$S$21,((($G25-$S$21)^2)/($G25+(0.8*$Q$21)))) -> 0 | K25: 0
B26: 11 | C26: 10 | D26: 0.004 | F26: 0 | G26: 0 | H26: =_xlfn.IFS($G26<$S$20,0,$G26>$S$20,((($G26-$S$20)^2)/($G26+(0.8*$Q$20)))) -> 0 | I26: 0 | J26: =_xlfn.IFS($G26<$S$21,0,$G26>$S$21,((($G26-$S$21)^2)/($G26+(0.8*$Q$21)))) -> 0 | K26: 0 | P26: Routing Constant (w)= | S26: =10/(2*73+10) -> 0.0641025641
B27: 12 | C27: 10 | D27: 0.005 | F27: 0 | G27: 0 | H27: =_xlfn.IFS($G27<$S$20,0,$G27>$S$20,((($G27-$S$20)^2)/($G27+(0.8*$Q$20)))) -> 0 | I27: 0 | J27: =_xlfn.IFS($G27<$S$21,0,$G27>$S$21,((($G27-$S$21)^2)/($G27+(0.8*$Q$21)))) -> 0 | K27: 0
B28: 13 | C28: 10 | D28: 0.005 | F28: 0 | G28: 0 | H28: =_xlfn.IFS($G28<$S$20,0,$G28>$S$20,((($G28-$S$20)^2)/($G28+(0.8*$Q$20)))) -> 0 | I28: 0 | J28: =_xlfn.IFS($G28<$S$21,0,$G28>$S$21,((($G28-$S$21)^2)/($G28+(0.8*$Q$21)))) -> 0 | K28: 0
B29: 14 | C29: 10 | D29: 0.005 | F29: 0 | G29: 0 | H29: =_xlfn.IFS($G29<$S$20,0,$G29>$S$20,((($G29-$S$20)^2)/($G29+(0.8*$Q$20)))) -> 0 | I29: 0 | J29: =_xlfn.IFS($G29<$S$21,0,$G29>$S$21,((($G29-$S$21)^2)/($G29+(0.8*$Q$21)))) -> 0 | K29: 0 | P29: =(1000/$S$17)-10 -> 3.513513514
B30: 15 | C30: 10 | D30: 0.005 | F30: 0 | G30: 0 | H30: =_xlfn.IFS($G30<$S$20,0,$G30>$S$20,((($G30-$S$20)^2)/($G30+(0.8*$Q$20)))) -> 0 | I30: 0 | J30: =_xlfn.IFS($G30<$S$21,0,$G30>$S$21,((($G30-$S$21)^2)/($G30+(0.8*$Q$21)))) -> 0 | K30: 0
B31: 16 | C31: 10 | D31: 0.005 | F31: 0 | G31: 0 | H31: =_xlfn.IFS($G31<$S$20,0,$G31>$S$20,((($G31-$S$20)^2)/($G31+(0.8*$Q$20)))) -> 0 | I31: 0 | J31: =_xlfn.IFS($G31<$S$21,0,$G31>$S$21,((($G31-$S$21)^2)/($G31+(0.8*$Q$21)))) -> 0 | K31: 0
B32: 17 | C32: 10 | D32: 0.005 | F32: 0 | G32: 0 | H32: =_xlfn.IFS($G32<$S$20,0,$G32>$S$20,((($G32-$S$20)^2)/($G32+(0.8*$Q$20)))) -> 0 | I32: 0 | J32: =_xlfn.IFS($G32<$S$21,0,$G32>$S$21,((($G32-$S$21)^2)/($G32+(0.8*$Q$21)))) -> 0 | K32: 0
B33: 18 | C33: 10 | D33: 0.006 | F33: 0 | G33: 0 | H33: =_xlfn.IFS($G33<$S$20,0,$G33>$S$20,((($G33-$S$20)^2)/($G33+(0.8*$Q$20)))) -> 0 | I33: 0 | J33: =_xlfn.IFS($G33<$S$21,0,$G33>$S$21,((($G33-$S$21)^2)/($G33+(0.8*$Q$21)))) -> 0 | K33: 0
B34: 19 | C34: 10 | D34: 0.006 | F34: 0 | G34: 0 | H34: =_xlfn.IFS($G34<$S$20,0,$G34>$S$20,((($G34-$S$20)^2)/($G34+(0.8*$Q$20)))) -> 0 | I34: 0 | J34: =_xlfn.IFS($G34<$S$21,0,$G34>$S$21,((($G34-$S$21)^2)/($G34+(0.8*$Q$21)))) -> 0 | K34: 0
B35: 20 | C35: 10 | D35: 0.006 | F35: 0 | G35: 0 | H35: =_xlfn.IFS($G35<$S$20,0,$G35>$S$20,((($G35-$S$20)^2)/($G35+(0.8*$Q$20)))) -> 0 | I35: 0 | J35: =_xlfn.IFS($G35<$S$21,0,$G35>$S$21,((($G35-$S$21)^2)/($G35+(0.8*$Q$21)))) -> 0 | K35: 0
B36: 21 | C36: 10 | D36: 0.006 | F36: 0 | G36: 0 | H36: =_xlfn.IFS($G36<$S$20,0,$G36>$S$20,((($G36-$S$20)^2)/($G36+(0.8*$Q$20)))) -> 0 | I36: 0 | J36: =_xlfn.IFS($G36<$S$21,0,$G36>$S$21,((($G36-$S$21)^2)/($G36+(0.8*$Q$21)))) -> 0 | K36: 0
B37: 22 | C37: 10 | D37: 0.006 | F37: 0 | G37: 0 | H37: =_xlfn.IFS($G37<$S$20,0,$G37>$S$20,((($G37-$S$20)^2)/($G37+(0.8*$Q$20)))) -> 0 | I37: 0 | J37: =_xlfn.IFS($G37<$S$21,0,$G37>$S$21,((($G37-$S$21)^2)/($G37+(0.8*$Q$21)))) -> 0 | K37: 0
B38: 23 | C38: 10 | D38: 0.006 | F38: 0 | G38: 0 | H38: =_xlfn.IFS($G38<$S$20,0,$G38>$S$20,((($G38-$S$20)^2)/($G38+(0.8*$Q$20)))) -> 0 | I38: 0 | J38: =_xlfn.IFS($G38<$S$21,0,$G38>$S$21,((($G38-$S$21)^2)/($G38+(0.8*$Q$21)))) -> 0 | K38: 0
B39: 24 | C39: 10 | D39: 0.007 | F39: 0 | G39: 0 | H39: =_xlfn.IFS($G39<$S$20,0,$G39>$S$20,((($G39-$S$20)^2)/($G39+(0.8*$Q$20)))) -> 0 | I39: 0 | J39: =_xlfn.IFS($G39<$S$21,0,$G39>$S$21,((($G39-$S$21)^2)/($G39+(0.8*$Q$21)))) -> 0 | K39: 0
B40: 25 | C40: 10 | D40: 0.007 | F40: 0 | G40: 0 | H40: =_xlfn.IFS($G40<$S$20,0,$G40>$S$20,((($G40-$S$20)^2)/($G40+(0.8*$Q$20)))) -> 0 | I40: 0 | J40: =_xlfn.IFS($G40<$S$21,0,$G40>$S$21,((($G40-$S$21)^2)/($G40+(0.8*$Q$21)))) -> 0 | K40: 0
B41: 26 | C41: 10 | D41: 0.007 | F41: 0 | G41: 0 | H41: =_xlfn.IFS($G41<$S$20,0,$G41>$S$20,((($G41-$S$20)^2)/($G41+(0.8*$Q$20)))) -> 0 | I41: 0 | J41: =_xlfn.IFS($G41<$S$21,0,$G41>$S$21,((($G41-$S$21)^2)/($G41+(0.8*$Q$21)))) -> 0 | K41: 0
B42: 27 | C42: 10 | D42: 0.007 | F42: 0 | G42: 0 | H42: =_xlfn.IFS($G42<$S$20,0,$G42>$S$20,((($G42-$S$20)^2)/($G42+(0.8*$Q$20)))) -> 0 | I42: 0 | J42: =_xlfn.IFS($G42<$S$21,0,$G42>$S$21,((($G42-$S$21)^2)/($G42+(0.8*$Q$21)))) -> 0 | K42: 0
B43: 28 | C43: 10 | D43: 0.007 | F43: 0 | G43: 0 | H43: =_xlfn.IFS($G43<$S$20,0,$G43>$S$20,((($G43-$S$20)^2)/($G43+(0.8*$Q$20)))) -> 0 | I43: 0 | J43: =_xlfn.IFS($G43<$S$21,0,$G43>$S$21,((($G43-$S$21)^2)/($G43+(0.8*$Q$21)))) -> 0 | K43: 0
B44: 29 | C44: 10 | D44: 0.007 | F44: 0 | G44: 0 | H44: =_xlfn.IFS($G44<$S$20,0,$G44>$S$20,((($G44-$S$20)^2)/($G44+(0.8*$Q$20)))) -> 0 | I44: 0 | J44: =_xlfn.IFS($G44<$S$21,0,$G44>$S$21,((($G44-$S$21)^2)/($G44+(0.8*$Q$21)))) -> 0 | K44: 0
B45: 30 | C45: 10 | D45: 0.008 | F45: 0 | G45: 0 | H45: =_xlfn.IFS($G45<$S$20,0,$G45>$S$20,((($G45-$S$20)^2)/($G45+(0.8*$Q$20)))) -> 0 | I45: 0 | J45: =_xlfn.IFS($G45<$S$21,0,$G45>$S$21,((($G45-$S$21)^2)/($G45+(0.8*$Q$21)))) -> 0 | K45: 0
B46: 31 | C46: 10 | D46: 0.008 | F46: 0 | G46: 0 | H46: =_xlfn.IFS($G46<$S$20,0,$G46>$S$20,((($G46-$S$20)^2)/($G46+(0.8*$Q$20)))) -> 0 | I46: 0 | J46: =_xlfn.IFS($G46<$S$21,0,$G46>$S$21,((($G46-$S$21)^2)/($G46+(0.8*$Q$21)))) -> 0 | K46: 0
B47: 32 | C47: 10 | D47: 0.008 | F47: 0 | G47: 0 | H47: =_xlfn.IFS($G47<$S$20,0,$G47>$S$20,((($G47-$S$20)^2)/($G47+(0.8*$Q$20)))) -> 0 | I47: 0 | J47: =_xlfn.IFS($G47<$S$21,0,$G47>$S$21,((($G47-$S$21)^2)/($G47+(0.8*$Q$21)))) -> 0 | K47: 0
B48: 33 | C48: 10 | D48: 0.008 | F48: 0 | G48: 0 | H48: =_xlfn.IFS($G48<$S$20,0,$G48>$S$20,((($G48-$S$20)^2)/($G48+(0.8*$Q$20)))) -> 0 | I48: 0 | J48: =_xlfn.IFS($G48<$S$21,0,$G48>$S$21,((($G48-$S$21)^2)/($G48+(0.8*$Q$21)))) -> 0 | K48: 0
B49: 34 | C49: 10 | D49: 0.008 | F49: 0 | G49: 0 | H49: =_xlfn.IFS($G49<$S$20,0,$G49>$S$20,((($G49-$S$20)^2)/($G49+(0.8*$Q$20)))) -> 0 | I49: 0 | J49: =_xlfn.IFS($G49<$S$21,0,$G49>$S$21,((($G49-$S$21)^2)/($G49+(0.8*$Q$21)))) -> 0 | K49: 0
B50: 35 | C50: 10 | D50: 0.008 | F50: 0 | G50: 0 | H50: =_xlfn.IFS($G50<$S$20,0,$G50>$S$20,((($G50-$S$20)^2)/($G50+(0.8*$Q$20)))) -> 0 | I50: 0 | J50: =_xlfn.IFS($G50<$S$21,0,$G50>$S$21,((($G50-$S$21)^2)/($G50+(0.8*$Q$21)))) -> 0 | K50: 0
B51: 36 | C51: 10 | D51: 0.01 | F51: 0 | G51: 0 | H51: =_xlfn.IFS($G51<$S$20,0,$G51>$S$20,((($G51-$S$20)^2)/($G51+(0.8*$Q$20)))) -> 0 | I51: 0 | J51: =_xlfn.IFS($G51<$S$21,0,$G51>$S$21,((($G51-$S$21)^2)/($G51+(0.8*$Q$21)))) -> 0 | K51: 0
B52: 37 | C52: 10 | D52: 0.01 | F52: 0 | G52: 0 | H52: =_xlfn.IFS($G52<$S$20,0,$G52>$S$20,((($G52-$S$20)^2)/($G52+(0.8*$Q$20)))) -> 0 | I52: 0 | J52: =_xlfn.IFS($G52<$S$21,0,$G52>$S$21,((($G52-$S$21)^2)/($G52+(0.8*$Q$21)))) -> 0 | K52: 0
B53: 38 | C53: 10 | D53: 0.01 | F53: 0 | G53: 0 | H53: =_xlfn.IFS($G53<$S$20,0,$G53>$S$20,((($G53-$S$20)^2)/($G53+(0.8*$Q$20)))) -> 0 | I53: 0 | J53: =_xlfn.IFS($G53<$S$21,0,$G53>$S$21,((($G53-$S$21)^2)/($G53+(0.8*$Q$21)))) -> 0 | K53: 0
B54: 39 | C54: 10 | D54: 0.01 | F54: 0 | G54: 0 | H54: =_xlfn.IFS($G54<$S$20,0,$G54>$S$20,((($G54-$S$20)^2)/($G54+(0.8*$Q$20)))) -> 0 | I54: 0 | J54: =_xlfn.IFS($G54<$S$21,0,$G54>$S$21,((($G54-$S$21)^2)/($G54+(0.8*$Q$21)))) -> 0 | K54: 0
B55: 40 | C55: 10 | D55: 0.01 | F55: 0 | G55: 0 | H55: =_xlfn.IFS($G55<$S$20,0,$G55>$S$20,((($G55-$S$20)^2)/($G55+(0.8*$Q$20)))) -> 0 | I55: 0 | J55: =_xlfn.IFS($G55<$S$21,0,$G55>$S$21,((($G55-$S$21)^2)/($G55+(0.8*$Q$21)))) -> 0 | K55: 0
B56: 41 | C56: 10 | D56: 0.01 | F56: 0 | G56: 0 | H56: =_xlfn.IFS($G56<$S$20,0,$G56>$S$20,((($G56-$S$20)^2)/($G56+(0.8*$Q$20)))) -> 0 | I56: 0 | J56: =_xlfn.IFS($G56<$S$21,0,$G56>$S$21,((($G56-$S$21)^2)/($G56+(0.8*$Q$21)))) -> 0 | K56: 0
B57: 42 | C57: 10 | D57: 0.013 | F57: 0 | G57: 0 | H57: =_xlfn.IFS($G57<$S$20,0,$G57>$S$20,((($G57-$S$20)^2)/($G57+(0.8*$Q$20)))) -> 0 | I57: 0 | J57: =_xlfn.IFS($G57<$S$21,0,$G57>$S$21,((($G57-$S$21)^2)/($G57+(0.8*$Q$21)))) -> 0 | K57: 0
B58: 43 | C58: 10 | D58: 0.013 | F58: 0 | G58: 0 | H58: =_xlfn.IFS($G58<$S$20,0,$G58>$S$20,((($G58-$S$20)^2)/($G58+(0.8*$Q$20)))) -> 0 | I58: 0 | J58: =_xlfn.IFS($G58<$S$21,0,$G58>$S$21,((($G58-$S$21)^2)/($G58+(0.8*$Q$21)))) -> 0 | K58: 0
B59: 44 | C59: 10 | D59: 0.013 | F59: 0 | G59: 0 | H59: =_xlfn.IFS($G59<$S$20,0,$G59>$S$20,((($G59-$S$20)^2)/($G59+(0.8*$Q$20)))) -> 0 | I59: 0 | J59: =_xlfn.IFS($G59<$S$21,0,$G59>$S$21,((($G59-$S$21)^2)/($G59+(0.8*$Q$21)))) -> 0 | K59: 0
B60: 45 | C60: 10 | D60: 0.018 | F60: 0 | G60: 0 | H60: =_xlfn.IFS($G60<$S$20,0,$G60>$S$20,((($G60-$S$20)^2)/($G60+(0.8*$Q$20)))) -> 0 | I60: 0 | J60: =_xlfn.IFS($G60<$S$21,0,$G60>$S$21,((($G60-$S$21)^2)/($G60+(0.8*$Q$21)))) -> 0 | K60: 0
B61: 46 | C61: 10 | D61: 0.018 | F61: 0 | G61: 0 | H61: =_xlfn.IFS($G61<$S$20,0,$G61>$S$20,((($G61-$S$20)^2)/($G61+(0.8*$Q$20)))) -> 0 | I61: 0 | J61: =_xlfn.IFS($G61<$S$21,0,$G61>$S$21,((($G61-$S$21)^2)/($G61+(0.8*$Q$21)))) -> 0 | K61: 0
B62: 47 | C62: 10 | D62: 0.034 | F62: 0 | G62: 0 | H62: =_xlfn.IFS($G62<$S$20,0,$G62>$S$20,((($G62-$S$20)^2)/($G62+(0.8*$Q$20)))) -> 0 | I62: 0 | J62: =_xlfn.IFS($G62<$S$21,0,$G62>$S$21,((($G62-$S$21)^2)/($G62+(0.8*$Q$21)))) -> 0 | K62: 0
B63: 48 | C63: 10 | D63: 0.054 | F63: 0 | G63: 0 | H63: =_xlfn.IFS($G63<$S$20,0,$G63>$S$20,((($G63-$S$20)^2)/($G63+(0.8*$Q$20)))) -> 0 | I63: 0 | J63: =_xlfn.IFS($G63<$S$21,0,$G63>$S$21,((($G63-$S$21)^2)/($G63+(0.8*$Q$21)))) -> 0 | K63: 0
B64: 49 | C64: 10 | D64: 0.027 | F64: 0 | G64: 0 | H64: =_xlfn.IFS($G64<$S$20,0,$G64>$S$20,((($G64-$S$20)^2)/($G64+(0.8*$Q$20)))) -> 0 | I64: 0 | J64: =_xlfn.IFS($G64<$S$21,0,$G64>$S$21,((($G64-$S$21)^2)/($G64+(0.8*$Q$21)))) -> 0 | K64: 0
B65: 50 | C65: 10 | D65: 0.018 | F65: 0 | G65: 0 | H65: =_xlfn.IFS($G65<$S$20,0,$G65>$S$20,((($G65-$S$20)^2)/($G65+(0.8*$Q$20)))) -> 0 | I65: 0 | J65: =_xlfn.IFS($G65<$S$21,0,$G65>$S$21,((($G65-$S$21)^2)/($G65+(0.8*$Q$21)))) -> 0 | K65: 0
B66: 51 | C66: 10 | D66: 0.013 | F66: 0 | G66: 0 | H66: =_xlfn.IFS($G66<$S$20,0,$G66>$S$20,((($G66-$S$20)^2)/($G66+(0.8*$Q$20)))) -> 0 | I66: 0 | J66: =_xlfn.IFS($G66<$S$21,0,$G66>$S$21,((($G66-$S$21)^2)/($G66+(0.8*$Q$21)))) -> 0 | K66: 0
B67: 52 | C67: 10 | D67: 0.013 | F67: 0 | G67: 0 | H67: =_xlfn.IFS($G67<$S$20,0,$G67>$S$20,((($G67-$S$20)^2)/($G67+(0.8*$Q$20)))) -> 0 | I67: 0 | J67: =_xlfn.IFS($G67<$S$21,0,$G67>$S$21,((($G67-$S$21)^2)/($G67+(0.8*$Q$21)))) -> 0 | K67: 0
B68: 53 | C68: 10 | D68: 0.013 | F68: 0 | G68: 0 | H68: =_xlfn.IFS($G68<$S$20,0,$G68>$S$20,((($G68-$S$20)^2)/($G68+(0.8*$Q$20)))) -> 0 | I68: 0 | J68: =_xlfn.IFS($G68<$S$21,0,$G68>$S$21,((($G68-$S$21)^2)/($G68+(0.8*$Q$21)))) -> 0 | K68: 0
B69: 54 | C69: 10 | D69: 0.009 | F69: 0 | G69: 0 | H69: =_xlfn.IFS($G69<$S$20,0,$G69>$S$20,((($G69-$S$20)^2)/($G69+(0.8*$Q$20)))) -> 0 | I69: 0 | J69: =_xlfn.IFS($G69<$S$21,0,$G69>$S$21,((($G69-$S$21)^2)/($G69+(0.8*$Q$21)))) -> 0 | K69: 0
B70: 55 | C70: 10 | D70: 0.009 | F70: 0 | G70: 0 | H70: =_xlfn.IFS($G70<$S$20,0,$G70>$S$20,((($G70-$S$20)^2)/($G70+(0.8*$Q$20)))) -> 0 | I70: 0 | J70: =_xlfn.IFS($G70<$S$21,0,$G70>$S$21,((($G70-$S$21)^2)/($G70+(0.8*$Q$21)))) -> 0 | K70: 0
B71: 56 | C71: 10 | D71: 0.009 | F71: 0 | G71: 0 | H71: =_xlfn.IFS($G71<$S$20,0,$G71>$S$20,((($G71-$S$20)^2)/($G71+(0.8*$Q$20)))) -> 0 | I71: 0 | J71: =_xlfn.IFS($G71<$S$21,0,$G71>$S$21,((($G71-$S$21)^2)/($G71+(0.8*$Q$21)))) -> 0 | K71: 0
B72: 57 | C72: 10 | D72: 0.009 | F72: 0 | G72: 0 | H72: =_xlfn.IFS($G72<$S$20,0,$G72>$S$20,((($G72-$S$20)^2)/($G72+(0.8*$Q$20)))) -> 0 | I72: 0 | J72: =_xlfn.IFS($G72<$S$21,0,$G72>$S$21,((($G72-$S$21)^2)/($G72+(0.8*$Q$21)))) -> 0 | K72: 0
B73: 58 | C73: 10 | D73: 0.009 | F73: 0 | G73: 0 | H73: =_xlfn.IFS($G73<$S$20,0,$G73>$S$20,((($G73-$S$20)^2)/($G73+(0.8*$Q$20)))) -> 0 | I73: 0 | J73: =_xlfn.IFS($G73<$S$21,0,$G73>$S$21,((($G73-$S$21)^2)/($G73+(0.8*$Q$21)))) -> 0 | K73: 0
B74: 59 | C74: 10 | D74: 0.009 | F74: 0 | G74: 0 | H74: =_xlfn.IFS($G74<$S$20,0,$G74>$S$20,((($G74-$S$20)^2)/($G74+(0.8*$Q$20)))) -> 0 | I74: 0 | J74: =_xlfn.IFS($G74<$S$21,0,$G74>$S$21,((($G74-$S$21)^2)/($G74+(0.8*$Q$21)))) -> 0 | K74: 0
B75: 60 | C75: 10 | D75: 0.009 | F75: 0 | G75: 0 | H75: =_xlfn.IFS($G75<$S$20,0,$G75>$S$20,((($G75-$S$20)^2)/($G75+(0.8*$Q$20)))) -> 0 | I75: 0 | J75: =_xlfn.IFS($G75<$S$21,0,$G75>$S$21,((($G75-$S$21)^2)/($G75+(0.8*$Q$21)))) -> 0 | K75: 0
B76: 61 | C76: 10 | D76: 0.009 | F76: 0 | G76: 0 | H76: =_xlfn.IFS($G76<$S$20,0,$G76>$S$20,((($G76-$S$20)^2)/($G76+(0.8*$Q$20)))) -> 0 | I76: 0 | J76: =_xlfn.IFS($G76<$S$21,0,$G76>$S$21,((($G76-$S$21)^2)/($G76+(0.8*$Q$21)))) -> 0 | K76: 0
B77: 62 | C77: 10 | D77: 0.009 | F77: 0 | G77: 0 | H77: =_xlfn.IFS($G77<$S$20,0,$G77>$S$20,((($G77-$S$20)^2)/($G77+(0.8*$Q$20)))) -> 0 | I77: 0 | J77: =_xlfn.IFS($G77<$S$21,0,$G77>$S$21,((($G77-$S$21)^2)/($G77+(0.8*$Q$21)))) -> 0 | K77: 0
B78: 63 | C78: 10 | D78: 0.009 | F78: 0 | G78: 0 | H78: =_xlfn.IFS($G78<$S$20,0,$G78>$S$20,((($G78-$S$20)^2)/($G78+(0.8*$Q$20)))) -> 0 | I78: 0 | J78: =_xlfn.IFS($G78<$S$21,0,$G78>$S$21,((($G78-$S$21)^2)/($G78+(0.8*$Q$21)))) -> 0 | K78: 0
B79: 64 | C79: 10 | D79: 0.009 | F79: 0 | G79: 0 | H79: =_xlfn.IFS($G79<$S$20,0,$G79>$S$20,((($G79-$S$20)^2)/($G79+(0.8*$Q$20)))) -> 0 | I79: 0 | J79: =_xlfn.IFS($G79<$S$21,0,$G79>$S$21,((($G79-$S$21)^2)/($G79+(0.8*$Q$21)))) -> 0 | K79: 0
B80: 65 | C80: 10 | D80: 0.009 | F80: 0 | G80: 0 | H80: =_xlfn.IFS($G80<$S$20,0,$G80>$S$20,((($G80-$S$20)^2)/($G80+(0.8*$Q$20)))) -> 0 | I80: 0 | J80: =_xlfn.IFS($G80<$S$21,0,$G80>$S$21,((($G80-$S$21)^2)/($G80+(0.8*$Q$21)))) -> 0 | K80: 0
B81: 66 | C81: 10 | D81: 0.007 | F81: 0 | G81: 0 | H81: =_xlfn.IFS($G81<$S$20,0,$G81>$S$20,((($G81-$S$20)^2)/($G81+(0.8*$Q$20)))) -> 0 | I81: 0 | J81: =_xlfn.IFS($G81<$S$21,0,$G81>$S$21,((($G81-$S$21)^2)/($G81+(0.8*$Q$21)))) -> 0 | K81: 0 | L81: =($Q$17/$Q$12)*$I81+($Q$18/$Q$12)*$K81 -> 
B82: 67 | C82: 10 | D82: 0.007 | F82: =$D82*$Q$13 -> 0 | G82: =$G81+$F82 -> 0 | H82: =_xlfn.IFS($G82<$S$20,0,$G82>$S$20,((($G82-$S$20)^2)/($G82+(0.8*$Q$20)))) -> 0 | I82: =$H82-$H81 -> 0 | J82: =_xlfn.IFS($G82<$S$21,0,$G82>$S$21,((($G82-$S$21)^2)/($G82+(0.8*$Q$21)))) -> 0 | K82: =$J82-$J81 -> 0 | M82: =(60.5*$L82*$Q$12)/$Q$14 ->  | N82: =$N81+$Q$26*($M81+$M82-(2*$N81)) -> 
B83: =$B82+1 -> 68 | C83: =$C82+$Q$14 -> 10 | D83: 0.007 | F83: 0 | G83: 0 | H83: =_xlfn.IFS($G83<$S$20,0,$G83>$S$20,((($G83-$S$20)^2)/($G83+(0.8*$Q$20)))) -> 0 | I83: 0 | J83: =_xlfn.IFS($G83<$S$21,0,$G83>$S$21,((($G83-$S$21)^2)/($G83+(0.8*$Q$21)))) -> 0 | K83: 0
B84: 69 | C84: 10 | D84: 0.007 | F84: 0 | G84: 0 | H84: =_xlfn.IFS($G84<$S$20,0,$G84>$S$20,((($G84-$S$20)^2)/($G84+(0.8*$Q$20)))) -> 0 | I84: 0 | J84: =_xlfn.IFS($G84<$S$21,0,$G84>$S$21,((($G84-$S$21)^2)/($G84+(0.8*$Q$21)))) -> 0 | K84: 0
B85: 70 | C85: 10 | D85: 0.007 | F85: 0 | G85: 0 | H85: =_xlfn.IFS($G85<$S$20,0,$G85>$S$20,((($G85-$S$20)^2)/($G85+(0.8*$Q$20)))) -> 0 | I85: 0 | J85: =_xlfn.IFS($G85<$S$21,0,$G85>$S$21,((($G85-$S$21)^2)/($G85+(0.8*$Q$21)))) -> 0 | K85: 0
B86: 71 | C86: 10 | D86: 0.007 | F86: 0 | G86: 0 | H86: =_xlfn.IFS($G86<$S$20,0,$G86>$S$20,((($G86-$S$20)^2)/($G86+(0.8*$Q$20)))) -> 0 | I86: 0 | J86: =_xlfn.IFS($G86<$S$21,0,$G86>$S$21,((($G86-$S$21)^2)/($G86+(0.8*$Q$21)))) -> 0 | K86: 0
B87: 72 | C87: 10 | D87: 0.007 | F87: 0 | G87: 0 | H87: =_xlfn.IFS($G87<$S$20,0,$G87>$S$20,((($G87-$S$20)^2)/($G87+(0.8*$Q$20)))) -> 0 | I87: 0 | J87: =_xlfn.IFS($G87<$S$21,0,$G87>$S$21,((($G87-$S$21)^2)/($G87+(0.8*$Q$21)))) -> 0 | K87: 0
B88: 73 | C88: 10 | D88: 0.007 | F88: 0 | G88: 0 | H88: =_xlfn.IFS($G88<$S$20,0,$G88>$S$20,((($G88-$S$20)^2)/($G88+(0.8*$Q$20)))) -> 0 | I88: 0 | J88: =_xlfn.IFS($G88<$S$21,0,$G88>$S$21,((($G88-$S$21)^2)/($G88+(0.8*$Q$21)))) -> 0 | K88: 0
B89: 74 | C89: 10 | D89: 0.007 | F89: 0 | G89: 0 | H89: =_xlfn.IFS($G89<$S$20,0,$G89>$S$20,((($G89-$S$20)^2)/($G89+(0.8*$Q$20)))) -> 0 | I89: 0 | J89: =_xlfn.IFS($G89<$S$21,0,$G89>$S$21,((($G89-$S$21)^2)/($G89+(0.8*$Q$21)))) -> 0 | K89: 0
B90: 75 | C90: 10 | D90: 0.007 | F90: 0 | G90: 0 | H90: =_xlfn.IFS($G90<$S$20,0,$G90>$S$20,((($G90-$S$20)^2)/($G90+(0.8*$Q$20)))) -> 0 | I90: 0 | J90: =_xlfn.IFS($G90<$S$21,0,$G90>$S$21,((($G90-$S$21)^2)/($G90+(0.8*$Q$21)))) -> 0 | K90: 0
B91: 76 | C91: 10 | D91: 0.007 | F91: 0 | G91: 0 | H91: =_xlfn.IFS($G91<$S$20,0,$G91>$S$20,((($G91-$S$20)^2)/($G91+(0.8*$Q$20)))) -> 0 | I91: 0 | J91: =_xlfn.IFS($G91<$S$21,0,$G91>$S$21,((($G91-$S$21)^2)/($G91+(0.8*$Q$21)))) -> 0 | K91: 0
B92: 77 | C92: 10 | D92: 0.007 | F92: 0 | G92: 0 | H92: =_xlfn.IFS($G92<$S$20,0,$G92>$S$20,((($G92-$S$20)^2)/($G92+(0.8*$Q$20)))) -> 0 | I92: 0 | J92: =_xlfn.IFS($G92<$S$21,0,$G92>$S$21,((($G92-$S$21)^2)/($G92+(0.8*$Q$21)))) -> 0 | K92: 0
B93: 78 | C93: 10 | D93: 0.006 | F93: 0 | G93: 0 | H93: =_xlfn.IFS($G93<$S$20,0,$G93>$S$20,((($G93-$S$20)^2)/($G93+(0.8*$Q$20)))) -> 0 | I93: 0 | J93: =_xlfn.IFS($G93<$S$21,0,$G93>$S$21,((($G93-$S$21)^2)/($G93+(0.8*$Q$21)))) -> 0 | K93: 0
B94: 79 | C94: 10 | D94: 0.006 | F94: 0 | G94: 0 | H94: =_xlfn.IFS($G94<$S$20,0,$G94>$S$20,((($G94-$S$20)^2)/($G94+(0.8*$Q$20)))) -> 0 | I94: 0 | J94: =_xlfn.IFS($G94<$S$21,0,$G94>$S$21,((($G94-$S$21)^2)/($G94+(0.8*$Q$21)))) -> 0 | K94: 0
B95: 80 | C95: 10 | D95: 0.006 | F95: 0 | G95: 0 | H95: =_xlfn.IFS($G95<$S$20,0,$G95>$S$20,((($G95-$S$20)^2)/($G95+(0.8*$Q$20)))) -> 0 | I95: 0 | J95: =_xlfn.IFS($G95<$S$21,0,$G95>$S$21,((($G95-$S$21)^2)/($G95+(0.8*$Q$21)))) -> 0 | K95: 0
B96: 81 | C96: 10 | D96: 0.006 | F96: 0 | G96: 0 | H96: =_xlfn.IFS($G96<$S$20,0,$G96>$S$20,((($G96-$S$20)^2)/($G96+(0.8*$Q$20)))) -> 0 | I96: 0 | J96: =_xlfn.IFS($G96<$S$21,0,$G96>$S$21,((($G96-$S$21)^2)/($G96+(0.8*$Q$21)))) -> 0 | K96: 0
B97: 82 | C97: 10 | D97: 0.006 | F97: 0 | G97: 0 | H97: =_xlfn.IFS($G97<$S$20,0,$G97>$S$20,((($G97-$S$20)^2)/($G97+(0.8*$Q$20)))) -> 0 | I97: 0 | J97: =_xlfn.IFS($G97<$S$21,0,$G97>$S$21,((($G97-$S$21)^2)/($G97+(0.8*$Q$21)))) -> 0 | K97: 0
B98: 83 | C98: 10 | D98: 0.006 | F98: 0 | G98: 0 | H98: =_xlfn.IFS($G98<$S$20,0,$G98>$S$20,((($G98-$S$20)^2)/($G98+(0.8*$Q$20)))) -> 0 | I98: 0 | J98: =_xlfn.IFS($G98<$S$21,0,$G98>$S$21,((($G98-$S$21)^2)/($G98+(0.8*$Q$21)))) -> 0 | K98: 0
B99: 84 | C99: 10 | D99: 0.006 | F99: 0 | G99: 0 | H99: =_xlfn.IFS($G99<$S$20,0,$G99>$S$20,((($G99-$S$20)^2)/($G99+(0.8*$Q$20)))) -> 0 | I99: 0 | J99: =_xlfn.IFS($G99<$S$21,0,$G99>$S$21,((($G99-$S$21)^2)/($G99+(0.8*$Q$21)))) -> 0 | K99: 0
B100: 85 | C100: 10 | D100: 0.006 | F100: 0 | G100: 0 | H100: =_xlfn.IFS($G100<$S$20,0,$G100>$S$20,((($G100-$S$20)^2)/($G100+(0.8*$Q$20)))) -> 0 | I100: 0 | J100: =_xlfn.IFS($G100<$S$21,0,$G100>$S$21,((($G100-$S$21)^2)/($G100+(0.8*$Q$21)))) -> 0 | K100: 0
B101: 86 | C101: 10 | D101: 0.006 | F101: 0 | G101: 0 | H101: =_xlfn.IFS($G101<$S$20,0,$G101>$S$20,((($G101-$S$20)^2)/($G101+(0.8*$Q$20)))) -> 0 | I101: 0 | J101: =_xlfn.IFS($G101<$S$21,0,$G101>$S$21,((($G101-$S$21)^2)/($G101+(0.8*$Q$21)))) -> 0 | K101: 0
B102: 87 | C102: 10 | D102: 0.006 | F102: 0 | G102: 0 | H102: =_xlfn.IFS($G102<$S$20,0,$G102>$S$20,((($G102-$S$20)^2)/($G102+(0.8*$Q$20)))) -> 0 | I102: 0 | J102: =_xlfn.IFS($G102<$S$21,0,$G102>$S$21,((($G102-$S$21)^2)/($G102+(0.8*$Q$21)))) -> 0 | K102: 0
B103: 88 | C103: 10 | D103: 0.006 | F103: 0 | G103: 0 | H103: =_xlfn.IFS($G103<$S$20,0,$G103>$S$20,((($G103-$S$20)^2)/($G103+(0.8*$Q$20)))) -> 0 | I103: 0 | J103: =_xlfn.IFS($G103<$S$21,0,$G103>$S$21,((($G103-$S$21)^2)/($G103+(0.8*$Q$21)))) -> 0 | K103: 0
B104: 89 | C104: 10 | D104: 0.006 | F104: 0 | G104: 0 | H104: =_xlfn.IFS($G104<$S$20,0,$G104>$S$20,((($G104-$S$20)^2)/($G104+(0.8*$Q$20)))) -> 0 | I104: 0 | J104: =_xlfn.IFS($G104<$S$21,0,$G104>$S$21,((($G104-$S$21)^2)/($G104+(0.8*$Q$21)))) -> 0 | K104: 0
B105: 90 | C105: 10 | D105: 0.005 | F105: 0 | G105: 0 | H105: =_xlfn.IFS($G105<$S$20,0,$G105>$S$20,((($G105-$S$20)^2)/($G105+(0.8*$Q$20)))) -> 0 | I105: 0 | J105: =_xlfn.IFS($G105<$S$21,0,$G105>$S$21,((($G105-$S$21)^2)/($G105+(0.8*$Q$21)))) -> 0 | K105: 0
B106: 91 | C106: 10 | D106: 0.005 | F106: 0 | G106: 0 | H106: =_xlfn.IFS($G106<$S$20,0,$G106>$S$20,((($G106-$S$20)^2)/($G106+(0.8*$Q$20)))) -> 0 | I106: 0 | J106: =_xlfn.IFS($G106<$S$21,0,$G106>$S$21,((($G106-$S$21)^2)/($G106+(0.8*$Q$21)))) -> 0 | K106: 0
B107: 92 | C107: 10 | D107: 0.005 | F107: 0 | G107: 0 | H107: =_xlfn.IFS($G107<$S$20,0,$G107>$S$20,((($G107-$S$20)^2)/($G107+(0.8*$Q$20)))) -> 0 | I107: 0 | J107: =_xlfn.IFS($G107<$S$21,0,$G107>$S$21,((($G107-$S$21)^2)/($G107+(0.8*$Q$21)))) -> 0 | K107: 0
B108: 93 | C108: 10 | D108: 0.005 | F108: 0 | G108: 0 | H108: =_xlfn.IFS($G108<$S$20,0,$G108>$S$20,((($G108-$S$20)^2)/($G108+(0.8*$Q$20)))) -> 0 | I108: 0 | J108: =_xlfn.IFS($G108<$S$21,0,$G108>$S$21,((($G108-$S$21)^2)/($G108+(0.8*$Q$21)))) -> 0 | K108: 0
B109: 94 | C109: 10 | D109: 0.005 | F109: 0 | G109: 0 | H109: =_xlfn.IFS($G109<$S$20,0,$G109>$S$20,((($G109-$S$20)^2)/($G109+(0.8*$Q$20)))) -> 0 | I109: 0 | J109: =_xlfn.IFS($G109<$S$21,0,$G109>$S$21,((($G109-$S$21)^2)/($G109+(0.8*$Q$21)))) -> 0 | K109: 0
B110: 95 | C110: 10 | D110: 0.005 | F110: 0 | G110: 0 | H110: =_xlfn.IFS($G110<$S$20,0,$G110>$S$20,((($G110-$S$20)^2)/($G110+(0.8*$Q$20)))) -> 0 | I110: 0 | J110: =_xlfn.IFS($G110<$S$21,0,$G110>$S$21,((($G110-$S$21)^2)/($G110+(0.8*$Q$21)))) -> 0 | K110: 0
B111: 96 | C111: 10 | D111: 0.005 | F111: 0 | G111: 0 | H111: =_xlfn.IFS($G111<$S$20,0,$G111>$S$20,((($G111-$S$20)^2)/($G111+(0.8*$Q$20)))) -> 0 | I111: 0 | J111: =_xlfn.IFS($G111<$S$21,0,$G111>$S$21,((($G111-$S$21)^2)/($G111+(0.8*$Q$21)))) -> 0 | K111: 0
B112: 97 | C112: 10 | D112: 0.005 | F112: 0 | G112: 0 | H112: =_xlfn.IFS($G112<$S$20,0,$G112>$S$20,((($G112-$S$20)^2)/($G112+(0.8*$Q$20)))) -> 0 | I112: 0 | J112: =_xlfn.IFS($G112<$S$21,0,$G112>$S$21,((($G112-$S$21)^2)/($G112+(0.8*$Q$21)))) -> 0 | K112: 0
B113: 98 | C113: 10 | D113: 0.005 | F113: 0 | G113: 0 | H113: =_xlfn.IFS($G113<$S$20,0,$G113>$S$20,((($G113-$S$20)^2)/($G113+(0.8*$Q$20)))) -> 0 | I113: 0 | J113: =_xlfn.IFS($G113<$S$21,0,$G113>$S$21,((($G113-$S$21)^2)/($G113+(0.8*$Q$21)))) -> 0 | K113: 0
B114: 99 | C114: 10 | D114: 0.005 | F114: 0 | G114: 0 | H114: =_xlfn.IFS($G114<$S$20,0,$G114>$S$20,((($G114-$S$20)^2)/($G114+(0.8*$Q$20)))) -> 0 | I114: 0 | J114: =_xlfn.IFS($G114<$S$21,0,$G114>$S$21,((($G114-$S$21)^2)/($G114+(0.8*$Q$21)))) -> 0 | K114: 0
B115: 100 | C115: 10 | D115: 0.005 | F115: 0 | G115: 0 | H115: =_xlfn.IFS($G115<$S$20,0,$G115>$S$20,((($G115-$S$20)^2)/($G115+(0.8*$Q$20)))) -> 0 | I115: 0 | J115: =_xlfn.IFS($G115<$S$21,0,$G115>$S$21,((($G115-$S$21)^2)/($G115+(0.8*$Q$21)))) -> 0 | K115: 0
B116: 101 | C116: 10 | D116: 0.005 | F116: 0 | G116: 0 | H116: =_xlfn.IFS($G116<$S$20,0,$G116>$S$20,((($G116-$S$20)^2)/($G116+(0.8*$Q$20)))) -> 0 | I116: 0 | J116: =_xlfn.IFS($G116<$S$21,0,$G116>$S$21,((($G116-$S$21)^2)/($G116+(0.8*$Q$21)))) -> 0 | K116: 0
B117: 102 | C117: 10 | D117: 0.004 | F117: 0 | G117: 0 | H117: =_xlfn.IFS($G117<$S$20,0,$G117>$S$20,((($G117-$S$20)^2)/($G117+(0.8*$Q$20)))) -> 0 | I117: 0 | J117: =_xlfn.IFS($G117<$S$21,0,$G117>$S$21,((($G117-$S$21)^2)/($G117+(0.8*$Q$21)))) -> 0 | K117: 0
B118: 103 | C118: 10 | D118: 0.004 | F118: 0 | G118: 0 | H118: =_xlfn.IFS($G118<$S$20,0,$G118>$S$20,((($G118-$S$20)^2)/($G118+(0.8*$Q$20)))) -> 0 | I118: 0 | J118: =_xlfn.IFS($G118<$S$21,0,$G118>$S$21,((($G118-$S$21)^2)/($G118+(0.8*$Q$21)))) -> 0 | K118: 0
B119: 104 | C119: 10 | D119: 0.004 | F119: 0 | G119: 0 | H119: =_xlfn.IFS($G119<$S$20,0,$G119>$S$20,((($G119-$S$20)^2)/($G119+(0.8*$Q$20)))) -> 0 | I119: 0 | J119: =_xlfn.IFS($G119<$S$21,0,$G119>$S$21,((($G119-$S$21)^2)/($G119+(0.8*$Q$21)))) -> 0 | K119: 0
B120: 105 | C120: 10 | D120: 0.004 | F120: 0 | G120: 0 | H120: =_xlfn.IFS($G120<$S$20,0,$G120>$S$20,((($G120-$S$20)^2)/($G120+(0.8*$Q$20)))) -> 0 | I120: 0 | J120: =_xlfn.IFS($G120<$S$21,0,$G120>$S$21,((($G120-$S$21)^2)/($G120+(0.8*$Q$21)))) -> 0 | K120: 0
B121: 106 | C121: 10 | D121: 0.004 | F121: 0 | G121: 0 | H121: =_xlfn.IFS($G121<$S$20,0,$G121>$S$20,((($G121-$S$20)^2)/($G121+(0.8*$Q$20)))) -> 0 | I121: 0 | J121: =_xlfn.IFS($G121<$S$21,0,$G121>$S$21,((($G121-$S$21)^2)/($G121+(0.8*$Q$21)))) -> 0 | K121: 0
B122: 107 | C122: 10 | D122: 0.004 | F122: 0 | G122: 0 | H122: =_xlfn.IFS($G122<$S$20,0,$G122>$S$20,((($G122-$S$20)^2)/($G122+(0.8*$Q$20)))) -> 0 | I122: 0 | J122: =_xlfn.IFS($G122<$S$21,0,$G122>$S$21,((($G122-$S$21)^2)/($G122+(0.8*$Q$21)))) -> 0 | K122: 0
B123: 108 | C123: 10 | D123: 0.004 | F123: 0 | G123: 0 | H123: =_xlfn.IFS($G123<$S$20,0,$G123>$S$20,((($G123-$S$20)^2)/($G123+(0.8*$Q$20)))) -> 0 | I123: 0 | J123: =_xlfn.IFS($G123<$S$21,0,$G123>$S$21,((($G123-$S$21)^2)/($G123+(0.8*$Q$21)))) -> 0 | K123: 0
B124: 109 | C124: 10 | D124: 0.004 | F124: 0 | G124: 0 | H124: =_xlfn.IFS($G124<$S$20,0,$G124>$S$20,((($G124-$S$20)^2)/($G124+(0.8*$Q$20)))) -> 0 | I124: 0 | J124: =_xlfn.IFS($G124<$S$21,0,$G124>$S$21,((($G124-$S$21)^2)/($G124+(0.8*$Q$21)))) -> 0 | K124: 0
B125: 110 | C125: 10 | D125: 0.004 | F125: 0 | G125: 0 | H125: =_xlfn.IFS($G125<$S$20,0,$G125>$S$20,((($G125-$S$20)^2)/($G125+(0.8*$Q$20)))) -> 0 | I125: 0 | J125: =_xlfn.IFS($G125<$S$21,0,$G125>$S$21,((($G125-$S$21)^2)/($G125+(0.8*$Q$21)))) -> 0 | K125: 0
B126: 111 | C126: 10 | D126: 0.004 | F126: 0 | G126: 0 | H126: =_xlfn.IFS($G126<$S$20,0,$G126>$S$20,((($G126-$S$20)^2)/($G126+(0.8*$Q$20)))) -> 0 | I126: 0 | J126: =_xlfn.IFS($G126<$S$21,0,$G126>$S$21,((($G126-$S$21)^2)/($G126+(0.8*$Q$21)))) -> 0 | K126: 0
B127: 112 | C127: 10 | D127: 0.004 | F127: 0 | G127: 0 | H127: =_xlfn.IFS($G127<$S$20,0,$G127>$S$20,((($G127-$S$20)^2)/($G127+(0.8*$Q$20)))) -> 0 | I127: 0 | J127: =_xlfn.IFS($G127<$S$21,0,$G127>$S$21,((($G127-$S$21)^2)/($G127+(0.8*$Q$21)))) -> 0 | K127: 0
B128: 113 | C128: 10 | D128: 0.004 | F128: 0 | G128: 0 | H128: =_xlfn.IFS($G128<$S$20,0,$G128>$S$20,((($G128-$S$20)^2)/($G128+(0.8*$Q$20)))) -> 0 | I128: 0 | J128: =_xlfn.IFS($G128<$S$21,0,$G128>$S$21,((($G128-$S$21)^2)/($G128+(0.8*$Q$21)))) -> 0 | K128: 0
B129: 114 | C129: 10 | D129: 0.004 | F129: 0 | G129: 0 | H129: =_xlfn.IFS($G129<$S$20,0,$G129>$S$20,((($G129-$S$20)^2)/($G129+(0.8*$Q$20)))) -> 0 | I129: 0 | J129: =_xlfn.IFS($G129<$S$21,0,$G129>$S$21,((($G129-$S$21)^2)/($G129+(0.8*$Q$21)))) -> 0 | K129: 0
B130: 115 | C130: 10 | D130: 0.004 | F130: 0 | G130: 0 | H130: =_xlfn.IFS($G130<$S$20,0,$G130>$S$20,((($G130-$S$20)^2)/($G130+(0.8*$Q$20)))) -> 0 | I130: 0 | J130: =_xlfn.IFS($G130<$S$21,0,$G130>$S$21,((($G130-$S$21)^2)/($G130+(0.8*$Q$21)))) -> 0 | K130: 0
B131: 116 | C131: 10 | D131: 0.004 | F131: 0 | G131: 0 | H131: =_xlfn.IFS($G131<$S$20,0,$G131>$S$20,((($G131-$S$20)^2)/($G131+(0.8*$Q$20)))) -> 0 | I131: 0 | J131: =_xlfn.IFS($G131<$S$21,0,$G131>$S$21,((($G131-$S$21)^2)/($G131+(0.8*$Q$21)))) -> 0 | K131: 0
B132: 117 | C132: 10 | D132: 0.004 | F132: 0 | G132: 0 | H132: =_xlfn.IFS($G132<$S$20,0,$G132>$S$20,((($G132-$S$20)^2)/($G132+(0.8*$Q$20)))) -> 0 | I132: 0 | J132: =_xlfn.IFS($G132<$S$21,0,$G132>$S$21,((($G132-$S$21)^2)/($G132+(0.8*$Q$21)))) -> 0 | K132: 0
B133: 118 | C133: 10 | D133: 0.004 | F133: 0 | G133: 0 | H133: =_xlfn.IFS($G133<$S$20,0,$G133>$S$20,((($G133-$S$20)^2)/($G133+(0.8*$Q$20)))) -> 0 | I133: 0 | J133: =_xlfn.IFS($G133<$S$21,0,$G133>$S$21,((($G133-$S$21)^2)/($G133+(0.8*$Q$21)))) -> 0 | K133: 0
B134: 119 | C134: 10 | D134: 0.004 | F134: 0 | G134: 0 | H134: =_xlfn.IFS($G134<$S$20,0,$G134>$S$20,((($G134-$S$20)^2)/($G134+(0.8*$Q$20)))) -> 0 | I134: 0 | J134: =_xlfn.IFS($G134<$S$21,0,$G134>$S$21,((($G134-$S$21)^2)/($G134+(0.8*$Q$21)))) -> 0 | K134: 0
B135: 120 | C135: 10 | D135: 0.004 | F135: 0 | G135: 0 | H135: =_xlfn.IFS($G135<$S$20,0,$G135>$S$20,((($G135-$S$20)^2)/($G135+(0.8*$Q$20)))) -> 0 | I135: 0 | J135: =_xlfn.IFS($G135<$S$21,0,$G135>$S$21,((($G135-$S$21)^2)/($G135+(0.8*$Q$21)))) -> 0 | K135: 0
B136: 121 | C136: 10 | D136: 0.004 | F136: 0 | G136: 0 | H136: =_xlfn.IFS($G136<$S$20,0,$G136>$S$20,((($G136-$S$20)^2)/($G136+(0.8*$Q$20)))) -> 0 | I136: 0 | J136: =_xlfn.IFS($G136<$S$21,0,$G136>$S$21,((($G136-$S$21)^2)/($G136+(0.8*$Q$21)))) -> 0 | K136: 0
B137: 122 | C137: 10 | D137: 0.004 | F137: 0 | G137: 0 | H137: =_xlfn.IFS($G137<$S$20,0,$G137>$S$20,((($G137-$S$20)^2)/($G137+(0.8*$Q$20)))) -> 0 | I137: 0 | J137: =_xlfn.IFS($G137<$S$21,0,$G137>$S$21,((($G137-$S$21)^2)/($G137+(0.8*$Q$21)))) -> 0 | K137: 0
B138: 123 | C138: 10 | D138: 0.004 | F138: 0 | G138: 0 | H138: =_xlfn.IFS($G138<$S$20,0,$G138>$S$20,((($G138-$S$20)^2)/($G138+(0.8*$Q$20)))) -> 0 | I138: 0 | J138: =_xlfn.IFS($G138<$S$21,0,$G138>$S$21,((($G138-$S$21)^2)/($G138+(0.8*$Q$21)))) -> 0 | K138: 0
B139: 124 | C139: 10 | D139: 0.004 | F139: 0 | G139: 0 | H139: =_xlfn.IFS($G139<$S$20,0,$G139>$S$20,((($G139-$S$20)^2)/($G139+(0.8*$Q$20)))) -> 0 | I139: 0 | J139: =_xlfn.IFS($G139<$S$21,0,$G139>$S$21,((($G139-$S$21)^2)/($G139+(0.8*$Q$21)))) -> 0 | K139: 0
B140: 125 | C140: 10 | D140: 0.004 | F140: 0 | G140: 0 | H140: =_xlfn.IFS($G140<$S$20,0,$G140>$S$20,((($G140-$S$20)^2)/($G140+(0.8*$Q$20)))) -> 0 | I140: 0 | J140: =_xlfn.IFS($G140<$S$21,0,$G140>$S$21,((($G140-$S$21)^2)/($G140+(0.8*$Q$21)))) -> 0 | K140: 0
B141: 126 | C141: 10 | D141: 0.004 | F141: 0 | G141: 0 | H141: =_xlfn.IFS($G141<$S$20,0,$G141>$S$20,((($G141-$S$20)^2)/($G141+(0.8*$Q$20)))) -> 0 | I141: 0 | J141: =_xlfn.IFS($G141<$S$21,0,$G141>$S$21,((($G141-$S$21)^2)/($G141+(0.8*$Q$21)))) -> 0 | K141: 0
B142: 127 | C142: 10 | D142: 0.004 | F142: 0 | G142: 0 | H142: =_xlfn.IFS($G142<$S$20,0,$G142>$S$20,((($G142-$S$20)^2)/($G142+(0.8*$Q$20)))) -> 0 | I142: 0 | J142: =_xlfn.IFS($G142<$S$21,0,$G142>$S$21,((($G142-$S$21)^2)/($G142+(0.8*$Q$21)))) -> 0 | K142: 0
B143: 128 | C143: 10 | D143: 0.004 | F143: 0 | G143: 0 | H143: =_xlfn.IFS($G143<$S$20,0,$G143>$S$20,((($G143-$S$20)^2)/($G143+(0.8*$Q$20)))) -> 0 | I143: 0 | J143: =_xlfn.IFS($G143<$S$21,0,$G143>$S$21,((($G143-$S$21)^2)/($G143+(0.8*$Q$21)))) -> 0 | K143: 0
B144: 129 | C144: 10 | D144: 0.004 | F144: 0 | G144: 0 | H144: =_xlfn.IFS($G144<$S$20,0,$G144>$S$20,((($G144-$S$20)^2)/($G144+(0.8*$Q$20)))) -> 0 | I144: 0 | J144: =_xlfn.IFS($G144<$S$21,0,$G144>$S$21,((($G144-$S$21)^2)/($G144+(0.8*$Q$21)))) -> 0 | K144: 0
B145: 130 | C145: 10 | D145: 0.004 | F145: 0 | G145: 0 | H145: =_xlfn.IFS($G145<$S$20,0,$G145>$S$20,((($G145-$S$20)^2)/($G145+(0.8*$Q$20)))) -> 0 | I145: 0 | J145: =_xlfn.IFS($G145<$S$21,0,$G145>$S$21,((($G145-$S$21)^2)/($G145+(0.8*$Q$21)))) -> 0 | K145: 0 | L145: =($Q$17/$Q$12)*$I145+($Q$18/$Q$12)*$K145 -> 
B146: 131 | C146: 10 | D146: 0.004 | F146: =$D146*$Q$13 -> 0 | G146: =$G145+$F146 -> 0 | H146: =_xlfn.IFS($G146<$S$20,0,$G146>$S$20,((($G146-$S$20)^2)/($G146+(0.8*$Q$20)))) -> 0 | I146: =$H146-$H145 -> 0 | J146: =_xlfn.IFS($G146<$S$21,0,$G146>$S$21,((($G146-$S$21)^2)/($G146+(0.8*$Q$21)))) -> 0 | K146: =$J146-$J145 -> 0 | M146: =(60.5*$L146*$Q$12)/$Q$14 ->  | N146: =$N145+$Q$26*($M145+$M146-(2*$N145)) -> 
B147: =$B146+1 -> 132 | C147: =$C146+$Q$14 -> 10 | D147: 0.004 | F147: 0 | G147: 0 | H147: =_xlfn.IFS($G147<$S$20,0,$G147>$S$20,((($G147-$S$20)^2)/($G147+(0.8*$Q$20)))) -> 0 | I147: 0 | J147: =_xlfn.IFS($G147<$S$21,0,$G147>$S$21,((($G147-$S$21)^2)/($G147+(0.8*$Q$21)))) -> 0 | K147: 0
B148: 133 | C148: 10 | D148: 0.004 | F148: 0 | G148: 0 | H148: =_xlfn.IFS($G148<$S$20,0,$G148>$S$20,((($G148-$S$20)^2)/($G148+(0.8*$Q$20)))) -> 0 | I148: 0 | J148: =_xlfn.IFS($G148<$S$21,0,$G148>$S$21,((($G148-$S$21)^2)/($G148+(0.8*$Q$21)))) -> 0 | K148: 0
B149: 134 | C149: 10 | D149: 0.004 | F149: 0 | G149: 0 | H149: =_xlfn.IFS($G149<$S$20,0,$G149>$S$20,((($G149-$S$20)^2)/($G149+(0.8*$Q$20)))) -> 0 | I149: 0 | J149: =_xlfn.IFS($G149<$S$21,0,$G149>$S$21,((($G149-$S$21)^2)/($G149+(0.8*$Q$21)))) -> 0 | K149: 0
B150: 135 | C150: 10 | D150: 0.004 | F150: 0 | G150: 0 | H150: =_xlfn.IFS($G150<$S$20,0,$G150>$S$20,((($G150-$S$20)^2)/($G150+(0.8*$Q$20)))) -> 0 | I150: 0 | J150: =_xlfn.IFS($G150<$S$21,0,$G150>$S$21,((($G150-$S$21)^2)/($G150+(0.8*$Q$21)))) -> 0 | K150: 0
B151: 136 | C151: 10 | D151: 0.004 | F151: 0 | G151: 0 | H151: =_xlfn.IFS($G151<$S$20,0,$G151>$S$20,((($G151-$S$20)^2)/($G151+(0.8*$Q$20)))) -> 0 | I151: 0 | J151: =_xlfn.IFS($G151<$S$21,0,$G151>$S$21,((($G151-$S$21)^2)/($G151+(0.8*$Q$21)))) -> 0 | K151: 0
B152: 137 | C152: 10 | D152: 0.004 | F152: 0 | G152: 0 | H152: =_xlfn.IFS($G152<$S$20,0,$G152>$S$20,((($G152-$S$20)^2)/($G152+(0.8*$Q$20)))) -> 0 | I152: 0 | J152: =_xlfn.IFS($G152<$S$21,0,$G152>$S$21,((($G152-$S$21)^2)/($G152+(0.8*$Q$21)))) -> 0 | K152: 0
B153: 138 | C153: 10 | D153: 0.004 | F153: 0 | G153: 0 | H153: =_xlfn.IFS($G153<$S$20,0,$G153>$S$20,((($G153-$S$20)^2)/($G153+(0.8*$Q$20)))) -> 0 | I153: 0 | J153: =_xlfn.IFS($G153<$S$21,0,$G153>$S$21,((($G153-$S$21)^2)/($G153+(0.8*$Q$21)))) -> 0 | K153: 0
B154: 139 | C154: 10 | D154: 0.004 | F154: 0 | G154: 0 | H154: =_xlfn.IFS($G154<$S$20,0,$G154>$S$20,((($G154-$S$20)^2)/($G154+(0.8*$Q$20)))) -> 0 | I154: 0 | J154: =_xlfn.IFS($G154<$S$21,0,$G154>$S$21,((($G154-$S$21)^2)/($G154+(0.8*$Q$21)))) -> 0 | K154: 0
B155: 140 | C155: 10 | D155: 0.004 | F155: 0 | G155: 0 | H155: =_xlfn.IFS($G155<$S$20,0,$G155>$S$20,((($G155-$S$20)^2)/($G155+(0.8*$Q$20)))) -> 0 | I155: 0 | J155: =_xlfn.IFS($G155<$S$21,0,$G155>$S$21,((($G155-$S$21)^2)/($G155+(0.8*$Q$21)))) -> 0 | K155: 0
B156: 141 | C156: 10 | D156: 0.004 | F156: 0 | G156: 0 | H156: =_xlfn.IFS($G156<$S$20,0,$G156>$S$20,((($G156-$S$20)^2)/($G156+(0.8*$Q$20)))) -> 0 | I156: 0 | J156: =_xlfn.IFS($G156<$S$21,0,$G156>$S$21,((($G156-$S$21)^2)/($G156+(0.8*$Q$21)))) -> 0 | K156: 0
B157: 142 | C157: 10 | D157: 0.004 | F157: 0 | G157: 0 | H157: =_xlfn.IFS($G157<$S$20,0,$G157>$S$20,((($G157-$S$20)^2)/($G157+(0.8*$Q$20)))) -> 0 | I157: 0 | J157: =_xlfn.IFS($G157<$S$21,0,$G157>$S$21,((($G157-$S$21)^2)/($G157+(0.8*$Q$21)))) -> 0 | K157: 0
B158: 143 | C158: 10 | D158: 0.004 | F158: 0 | G158: 0 | H158: =_xlfn.IFS($G158<$S$20,0,$G158>$S$20,((($G158-$S$20)^2)/($G158+(0.8*$Q$20)))) -> 0 | I158: 0 | J158: =_xlfn.IFS($G158<$S$21,0,$G158>$S$21,((($G158-$S$21)^2)/($G158+(0.8*$Q$21)))) -> 0 | K158: 0
B159: 144 | C159: 10 | D159: 0.004 | E159: =$E158+$D159 -> 0.004 | F159: 0 | G159: 0 | H159: =_xlfn.IFS($G159<$S$20,0,$G159>$S$20,((($G159-$S$20)^2)/($G159+(0.8*$Q$20)))) -> 0 | I159: 0 | J159: =_xlfn.IFS($G159<$S$21,0,$G159>$S$21,((($G159-$S$21)^2)/($G159+(0.8*$Q$21)))) -> 0 | K159: 0
B160: 145 | C160: 10 | D160: 0.004 | E160: 0.008 | F160: 0 | G160: 0 | H160: =_xlfn.IFS($G160<$S$20,0,$G160>$S$20,((($G160-$S$20)^2)/($G160+(0.8*$Q$20)))) -> 0 | I160: 0 | J160: =_xlfn.IFS($G160<$S$21,0,$G160>$S$21,((($G160-$S$21)^2)/($G160+(0.8*$Q$21)))) -> 0 | K160: 0
D162: =SUM(D16:D161) -> 1.003 | F162: =SUM(F16:F161) -> 0

Sheet Lookup
AE1: EM 1110-2-1417 | AO1: LTAP manual | AZ1: LTAP MANUAL | BK1: LTAP
C2: Manning's Values | K2: Runoff Coefficients | S2: new runoff coefficients, from Mays 2010 Water Resources Engineering. | AE2: Flood-Runoff Analysis | AO2: rural | AZ2: URBAN | BK2: composite runoff
S4: surface | T4: 25 year
S5: Asphaltic | T5: 0.86 | U5: Asphaltic C=0.86
S6: Concrete/roof | T6: 0.88 | U6: Concrete/roof C=0.88
S7: Grass, <50% grass area, 0-2% slope | T7: 0.4 | U7: Grass, <50% grass area, 0-2% slope C=0.4
S8: Grass, <50% grass area, 2-7% slope | T8: 0.46 | U8: Grass, <50% grass area, 2-7% slope C=0.46
S9: Grass, <50% grass area, over 7% slope | T9: 0.49 | U9: Grass, <50% grass area, over 7% slope C=0.49
S10: Grass, 50-75% grass area, 0-2% slope | T10: 0.34 | U10: Grass, 50-75% grass area, 0-2% slope C=0.34
S11: Grass, 50-75% grass area, 2-7% slope | T11: 0.42 | U11: Grass, 50-75% grass area, 2-7% slope C=0.42
S12: Grass, 50-75% grass area, over 7% slope | T12: 0.46 | U12: Grass, 50-75% grass area, over 7% slope C=0.46
S13: Grass, over 75% grass area, 0-2% slope | T13: 0.29 | U13: Grass, over 75% grass area, 0-2% slope C=0.29
S14: Grass, over 75% grass area, 2-7% slope | T14: 0.39 | U14: Grass, over 75% grass area, 2-7% slope C=0.39
S15: Grass, over 75% grass area, over 7% slope | T15: 0.44 | U15: Grass, over 75% grass area, over 7% slope C=0.44
S16: cultivated land, 0-2% slope | T16: 0.4 | U16: cultivated land, 0-2% slope C=0.4
S17: cultivated land, 2-7% slope | T17: 0.44 | U17: cultivated land, 2-7% slope C=0.44
S18: cultivated land, over 7% slope | T18: 0.48 | U18: cultivated land, over 7% slope C=0.48
S19: pasture/range, 0-2% slope | T19: 0.34 | U19: pasture/range, 0-2% slope C=0.34
S20: pasture/range, 2-7% slope | T20: 0.42 | U20: pasture/range, 2-7% slope C=0.42
S21: pasture/range, over 7% slope | T21: 0.46 | U21: pasture/range, over 7% slope C=0.46
S22: forest/woodlands, 0-2% slope | T22: 0.31 | U22: forest/woodlands, 0-2% slope C=0.31
S23: forest/woodlands, 2-7% slope | T23: 0.4 | U23: forest/woodlands, 2-7% slope C=0.4
S24: forest/woodlands, over 7% slope | T24: 0.45 | U24: forest/woodlands, over 7% slope C=0.45
L27: Detention Basin Routing Coefficients
L28: Rainfall | N28: Equation Coffficients | T28: Runoff Coefficients from TR55
L29: Distribution | N29: C0 | O29: C1 | P29: C2 | Q29: C3
L30: I, IA | N30: 0.66 | O30: -1.76 | P30: 1.96 | Q30: -0.73
L31: II, III | N31: 0.682 | O31: -1.43 | P31: 1.64 | Q31: -0.804
L34: Design Infiltration Rates (fc) for Different Soil Textures Classes
L35: (from CNMI Stormwater Manual - Vol. 1, Table 3.5
M37: USDA Soil Texture | O37: fc | P37: fc
O38: in/hr | P38: ft/min
M40: Sand | O40: 8.27 | P40: 0.0115
M41: Loamy Sand | O41: 2.41 | P41: 0.0033
M42: Sandy Sand | O42: 1.02 | P42: 0.0014
B43: Southern Guam Regression Equations | M43: Loamy Sand | O43: 0.52 | P43: 0.0007
B44: Q=10^X*A^Y*I24H2Y^Z | M44: Silt Loam | O44: 0.27 | P44: 0.0004
A45: Metric | F45: English | M45: Sandy Clay Loam | O45: 0.17 | P45: 0.0002
A46: Return Period | B46: X | C46: Y | D46: Z | F46: Return Period | G46: X | H46: Y | I46: Z | M46: Clay Loam | O46: 0.09 | P46: 0.0001
A47: 2 | B47: -6.47 | C47: 0.561 | D47: 3.37 | F47: 2 | G47: 0.038 | H47: 0.561 | I47: 3.37 | M47: Silty Clay Loam | O47: 0.06 | P47: 0.0001
A48: 5 | B48: -6.46 | C48: 0.575 | D48: 3.44 | F48: 5 | G48: 0.149 | H48: 0.575 | I48: 3.44 | M48: Sandy Clay | O48: 0.05 | P48: 0.0001
A49: 10 | B49: -6.49 | C49: 0.596 | D49: 3.52 | F49: 10 | G49: 0.254 | H49: 0.596 | I49: 3.52 | M49: Silty Clay | O49: 0.04 | P49: 0.0001
A50: 25 | B50: -6.51 | C50: 0.609 | D50: 3.57 | F50: 25 | G50: 0.307 | H50: 0.609 | I50: 3.57 | M50: Clay | O50: 0.02 | P50: 0
A51: 50 | B51: -6.55 | C51: 0.626 | D51: 3.64 | F51: 50 | G51: 0.361 | H51: 0.626 | I51: 3.64
A52: 100 | B52: -6.58 | C52: 0.637 | D52: 3.68 | F52: 100 | G52: 0.395 | H52: 0.637 | I52: 3.68
A53: 250 | B53: -6.62 | C53: 0.649 | D53: 3.72 | F53: 250 | G53: 0.425 | H53: 0.649 | I53: 3.72 | L53: Water Quality Volume Distribution in Pond Designs
A54: 500 | B54: -6.66 | C54: 0.664 | D54: 3.77 | F54: 500 | G54: 0.46 | H54: 0.664 | I54: 3.77 | L54: (from CNMI Stormwater Manual Volume 1, Table 3.4)
A56: A is in square kilometers, range: 0.681-18.2 square km | G56: A is in square miles, range: 0.26293557 - 7.027 | L56: Design | M56: % WQv
A57: I24H2Y is in mm, range: 139-187 mm | G57: I24H2Y is in inches | L57: Variation | M57: Permanent Pool | O57: Extended Detention
L59: P-1 | M59: 20% Min | O59: 80% Max
A60: Southern Guam Intensity Regression Equations | F60: Northern Guam Intensity Regression Equations | L60: P-2 | M60: 1 | O60: 0
B61: Intensity=X*tc^Y | G61: Intensity=X*tc^Y | L61: P-3 | M61: 50% Min | O61: 50% Max
A62: English | F62: English
A63: Return Period | B63: X | C63: Y | F63: Return Period | G63: X | H63: Y
A64: 100 | B64: 20.971 | C64: -0.476 | F64: 100 | G64: 20.971 | H64: -0.476
A65: 50 | B65: 20.04 | C65: -0.492 | F65: 50 | G65: 20.04 | H65: -0.492
A66: 25 | B66: 19.187 | C66: -0.512 | F66: 25 | G66: 19.187 | H66: -0.512
A67: 10 | B67: 18.086 | C67: -0.545 | F67: 10 | G67: 18.086 | H67: -0.545
A68: 3 | B68: 16.781 | C68: -0.613 | F68: 3 | G68: 16.781 | H68: -0.613
A69: 2 | B69: 16.322 | C69: -0.651 | F69: 2 | G69: 16.322 | H69: -0.651
A70: 1 | B70: 18.591 | C70: -1.067 | F70: 1 | G70: 18.591 | H70: -1.067
A73: 24 Hour Rainfall Events for Northern Guam (adapted from Lander, 2004)
A75: Ret. Per. | B75: Exc. Freq. | C75: Ave.24 Hour Rainfall | E75: Ave. Rainfall Rate
A76: (Yrs) | B76: (%) | C76: (inches/24 Hrs) | E76: (inches / Hr)
A77: 1 | B77: 100 | C77: 3.5 | E77: 0.15
A78: 2 | B78: 50 | C78: 7 | E78: 0.29
A79: 10 | B79: 10 | C79: 10 | E79: 0.42
A80: 25 | B80: 4 | C80: 20 | E80: 0.83
A81: 50 | B81: 2 | C81: 27 | E81: 1.13

Sheet Soils
D2: Hydrologic Soil Groups of Guam | H2: Typical Design Infiltration Rates for Different Soil Textures (Table 3.5, CNMI Manual, Vol. 1, Sect. 3.2.4.3d)
H3: USDA Soil Texture | K3: Infiltration Rate (fc) (in/min) | M3: Infiltration Rate (fc) (in/hr) | O3: Infiltration Rate (fc) (ft/min) | Q3: Infiltration Rate (fc) (ft/hr)
D5: Soil Name | E5: HSG | H5: Sand | K5: =$M5/60 -> 0.1378333333 | M5: 8.27 | O5: 0.0115 | Q5: =$M5/12 -> 0.6891666667
H6: Loamy Sand | K6: =$M6/60 -> 0.04016666667 | M6: 2.41 | O6: 0.0033 | Q6: =$M6/12 -> 0.2008333333
D7: Agfayan clay, 15 to 30 percent slopes | E7: D | H7: Sandy Loam | K7: 0.017 | M7: 1.02 | O7: 0.0014 | Q7: 0.085
D8: Agfayan clay, 30 to 60 percent slopes | E8: D | H8: Loam | K8: 0.008666666667 | M8: 0.52 | O8: 0.0007 | Q8: 0.04333333333
D9: Agfayan-Rock outcrop complex, 7 to 15 percent slopes | E9: D | H9: Silt Loam | K9: 0.0045 | M9: 0.27 | O9: 0.0004 | Q9: 0.0225
D10: Agfayan-Rock outcrop complex, 15 to 30 percent slopes | E10: D | H10: Sandy Clay Loam | K10: 0.002833333333 | M10: 0.17 | O10: 0.0002 | Q10: 0.01416666667
D11: Agfayan-Rock outcrop complex, 30 to 60 percent slopes | E11: D | H11: Clay Loam | K11: 0.0015 | M11: 0.09 | O11: 0.0001 | Q11: 0.0075
D12: Agfayan-Akina association, extremely steep | E12: D | H12: Silty Clay Loam | K12: 0.001 | M12: 0.06 | O12: 0.0001 | Q12: 0.005
D13: Agfayan-Akina association, extremely steep | E13: C | H13: Sandy Clay Loam | K13: 0.0008333333333 | M13: 0.05 | O13: 0.0001 | Q13: 0.004166666667
D14: Agfayan-Akina-Rock outcrop association, extremely steep | E14: C | H14: Silty Clay Loam | K14: 0.0006666666667 | M14: 0.04 | O14: 0.0001 | Q14: 0.003333333333
D15: Agfayan-Akina-Rock outcrop association, extremely steep | E15: D | H15: Clay Loam | K15: 0.0003333333333 | M15: 0.02 | O15: 0 | Q15: 0.001666666667
D16: Akina silty clay, 3 to 7 percent slopes | E16: C
D17: Akina silty clay 7 to 15 percent slopes | E17: C
D18: Akina silty clay, 15 to 30 percent slopes | E18: C
D19: Akina slity clay, 30 to 60 percent slopes | E19: C
D20: Akina-Agfayan association, steep | E20: D
D21: Akina-Agfayan association, steep | E21: C
D22: Akina-Atate slity clays, 0 to 7 percent slopes | E22: C
D23: Akina-Atate slity clays, 0 to 7 percent slopes | E23: B
D24: Akina-Atate silty clays, 7 to 15 percent slopes | E24: C
D25: Akina-Atate silty clays, 7 to 15 percent slopes | E25: B
D26: Akina-Atate silty clays, 15 to 30 percent slopes | E26: B
D27: Akina-Atate silty clays, 15 to 30 percent slopes | E27: C
D28: Akina-Atate silty clays, 30 to 60 percent slopes | E28: C
D29: Akina-Atate silty clays, 30 to 60 percent slopes | E29: B
D30: Akina-Atate association, steep | E30: C
D31: Akina-Atate association, steep | E31: B
D32: Akina-Badland complex, 7 to 15 percent slopes | E32: C
D33: Akina-Badland association, steep | E33: C
D34: Akina-Urban land complex, 0 to 7 percent slopes | E34: C
D35: Chacha clay, 0 to 5 percent slopes | E35: D
D36: Chacha variant clay, 0 to 3 percent slopes | E36: C/D
D37: Guam cobbly clay loam, 3 to 7 percent slopes | E37: D
D38: Guam cobbly clay loam, 7 to 15 percent slopes | E38: D
D39: Guam-Saipan complex, 0 to 7 percent slopes | E39: D
D40: Guam-Saipan complex, 0 to 7 percent slopes | E40: B
D41: Guam-Urban land complex, 0 to 3 percent slopes | E41: D
D42: Guam-Yigo complex, 0 to 7 percent slopes | E42: D
D43: Guam-Yigo complex, 0 to 7 percent slopes | E43: B
D44: Inarajan clay, 0 to 4 percent slopes | E44: D
D45: Inarajan sandy clay loam, 0 to 3 percent slopes | E45: D
D46: Inarajan variant mucky clay, 0 to 3 percent slopes | E46: C/D
D47: Pulantat clay, 3 to 7 percent slopes | E47: D
D48: Pulantat clay, 7 to 15 percent slopes | E48: D
D49: Pulantat clay, 15 to 30 percent slopes | E49: D
D50: Pulantat clay, 30 to 60 percent slopes | E50: D
D51: Pulantat-Chacha clays, undulating | E51: D
D52: Pulantat-Chacha clays, rolling | E52: D
D53: Pulantat-Kagman clays, 0 to 7 percent slopes | E53: D
D54: Pulantat-Kagman clays, 0 to 7 percent slopes | E54: C
D55: Pulantat-Kagman clays, 7 to 15 percent slopes | E55: D
D56: Pulantat-Kagman clays, 7 to 15 percent slopes | E56: C
D57: Pulantat-Urban land complex, 0 to 7 percent slopes | E57: D
D58: Pulantat-Urban land complex, 7 to 15 percent slopes | E58: D
D59: Ritidian-Rock outcrop complex, 3 to 15 percent slopes | E59: D
D60: Ritidian-Rock outcrop complex, 15 to 60 percent slopes | E60: D
D61: Rock outcrop-Ritidian complex, 60 to 99 percent slopes | E61: D
D62: Sasalaguan clay, 7 to 15 percent slopes
D63: Shioya loamy sand, 0 to 5 percent slopes | E63: A
D64: Togcha-Akina silty clays, 3 to 7 percent slopes | E64: B
D65: Togcha-Akina silty clays, 3 to 7 percent slopes | E65: C
D66: Togcha-Akina silty clays, 7 to 15 percent slopes | E66: B
D67: Togcha-Akina silty clays, 7 to 15 percent slopes | E67: C
D68: Togcha-Ylig complex, 3 to 7 percent slopes | E68: B
D69: Togcha-Ylig complex, 3 to 7 percent slopes | E69: C
D70: Togcha-Ylig complex, 7 to 15 percent slopes | E70: C
D71: Togcha-Ylig complex, 7 to 15 percent slopes | E71: B
D72: Troposaprists, 0 to 1 percent slopes | E72: B/D
D73: Urban land-Ustorthents complex, nearly level
D74: Ylig clay, 0 to 3 percent slopes | E74: C
D75: Ylig clay, 3 to 7 percent slopes | E75: C
D76: Akina-Badland complex, 30 to 60 percent slopes, MLRA 192 | E76: C
D77: Akina-Badland complex, 15 to 30 percent slopes, MLRA 192 | E77: C

Sheet Help
A1: TR55 PEAK RUNOFF CALCULATION
A2: GRAPHICAL METHOD
A4: This spreadsheet computes peak flow runoff from a watershed using the graphical method
A5: found in TR55, Urban Hydrology for Small Watersheds.
A9: You will need to input data regarding the area(s) you are draining to a point,
A10: such as drainage area, channel shapes and slopes, and soil hydrologic group,
A11: to arrive at peak flow rates. You can then print out the peak flow rates.
A13: Inputs
A16: You must first determine the composite runoff curve number for the area
A17: by clicking on the RCN Data button and then entering areas, in acres, for each of the
A18: land uses and hydrologic soil groups represented in the drainage area. Once you
A19: have filled in the appropriate entries, click on the Finished button at the bottom and
A20: you will be returned to the runoff table area. If you need help on determining the
A21: correct hydrologic soil group, select the "SOILS" tab. This gives information
A22: about obtaining HSG data from the NRCS Web Soil Survey. After filling in the RCN
A23: table with the appropriate areas and clicking on the "Finished" button, you will notice
A24: that the drainage area and the runoff curve number will be automatically filled in
A25: for you form the information given in the RCN table. Optionally, you can enter the area
A26: and RCN number manually. CAUTION: if you do this, be careful not to save this
A27: worksheet over your master copy, or you will copy over some equations.
A29: Time of Concentration
A31: To calculate the time of concentration, you will need to click on the Go To Tc Table
A32: Button. This will take you to a page for inputting values for sheet flow, shallow
A33: concentrated flow, and open channel flows. You will need to enter the length, slope,
A34: and surface codes for sheet and shallow concentrated flows. Lengths for sheet flow
A35: are usually limited to 300'. For open channel flow, you will need to enter the length
A36: and slope of the channel, and also the mannings' "N" value, area, and wetted
A37: perimeter. When you are finished with these inputs, click on the FINISHED button
A38: to return to the runoff computation page. The input should be complete now.
A39: The bottom line of the table gives you the peak flow rates, in cubic feet per second,
A40: for each of the design storms.
A42: At this point you are able to print out the runoff computations, runoff
A43: curve number table, and the travel time computation pages by clicking on the
A44: appropriate buttons.
A46: Hydrologic Soils Data
A48: Hydrologic soil groups vary depending on location. This may mean that two soils
A49: with the same mapping units, but in different counties may have different hydrologic soil types.
A53: Acknowledgements
A55: The TR55 worksheets were originally designed by Dennis Biddick of the Wisconsin Department of
A56: Agriculture, Trade and Consumer Protection and Jeremy Balousek of the Dane County
A57: Land Conservation Department. Version 1.99 was released in Jan. 1999.
A58: Revised April 2005. By NRCS SO staff
A69: This workbook was adapted for use by the Territory of Guam by Paul Murawski, US Army Corps of Engineers,
A70: Honolulu District.
